Service Area Categorisation,Service Division Categorisation,Responsible Unit,Expenses Type,Expenses Sub Type,Expense  Code,Detailed Expenses Type,Invoice Date,Transaction Number,Amount,Capital/Revenue,Supplier Name
Central Services,SupS Chief Execs,Local Involvement Network               ,Third Party Payments          ,Private Contractors           ,EH10,Contract Payments,01/02/2013,1,"8,342.91",R,MERTON VOLUNTARY SERV COUNCIL 
Cultural Env Reg&Plan Services,Comm Safety (Crime Reduction),CCTV                                    ,Employees                     ,Direct Employee Expenses      ,AA96,SALARY SACRIFICE (TEACHERS),15/02/2013,2,"1,000.00",R,F.W.EVANS CYCLES (UK) LTD.    
Adult Social Care,Substance Abuse (Addictions),Retention in Drug Treatmt Srvs          ,Third Party Payments          ,Private Contractors           ,EH02,Miscellaneous Hired Services,30/01/2013,3,"47,194.00",R,SW LONDON ST GEORGES NHS TRUST
Adult Social Care,Substance Abuse (Addictions),Retention in Drug Treatmt Srvs          ,Third Party Payments          ,Private Contractors           ,EH02,Miscellaneous Hired Services,03/01/2013,4,"4,000.00",R,OTTAWAY STRATEGIC MANAGEMENT  
Adult Social Care,Substance Abuse (Addictions),Retention in Drug Treatmt Srvs          ,Third Party Payments          ,Private Contractors           ,EH02,Miscellaneous Hired Services,15/02/2013,5,"5,700.00",R,CIDARIS CONSULTING LIMITED    
Adult Social Care,Substance Abuse (Addictions),Retention in Drug Treatmt Srvs          ,Third Party Payments          ,Private Contractors           ,EH02,Miscellaneous Hired Services,15/01/2012,6,"10,000.00",R,ST MARY�S UNIVERSITY COLLEGE  
Central Services,SupS Chief Execs,NON-STATUTORY MARKETING & COMM ,Premises Related Expenditure  ,Rents                         ,BC03,Room/venue rental hire,08/02/2013,7,"4,285.00",R,REDACTED
Central Services,SupS Chief Execs,NON-STATUTORY MARKETING & COMM ,Supplies & Services           ,Prntng Stnry Gen Off Exp      ,DE22,Marketing,10/12/2012,8,"3,503.20",R,LONDON LETTERBOX MARKETING    
Central Services,SupS Chief Execs,NON-STATUTORY MARKETING & COMM ,Supplies & Services           ,Prntng Stnry Gen Off Exp      ,DE22,Marketing,19/11/2012,9,800,R,LONDON BOROUGH OF SUTTON      
Central Services,SupS Chief Execs,NON-STATUTORY MARKETING & COMM ,Supplies & Services           ,Prntng Stnry Gen Off Exp      ,DE22,Marketing,30/01/2013,10,501.65,R,RECOGNITION EXPRESS           
Central Services,SupS Chief Execs,NON-STATUTORY MARKETING & COMM ,Supplies & Services           ,Services                      ,DF02,Misc Advertising/Publicity,19/11/2012,11,500,R,LONDON BOROUGH OF SUTTON      
Central Services,SupS Chief Execs,NON-STATUTORY MARKETING & COMM ,Supplies & Services           ,Services                      ,DF02,Misc Advertising/Publicity,25/01/2013,12,537.5,R,JCDECAUX UNITED KINGDOM       
Central Services,SupS Chief Execs,NON-STATUTORY MARKETING & COMM ,Supplies & Services           ,Services                      ,DF02,Misc Advertising/Publicity,30/01/2013,13,537.5,R,JCDECAUX UNITED KINGDOM       
Central Services,SupS Chief Execs,NON-STATUTORY MARKETING & COMM ,Supplies & Services           ,Services                      ,DF02,Misc Advertising/Publicity,29/01/2013,14,777,R,PARENTS NEWS                  
Central Services,SupS Chief Execs,NON-STATUTORY MARKETING & COMM ,Supplies & Services           ,Services                      ,DF35,Graphic Design,21/03/2012,15,675,R,MERTON DESIGN LTD             
Central Services,SupS Chief Execs,NON-STATUTORY MARKETING & COMM ,Supplies & Services           ,Services                      ,DF35,Graphic Design,01/02/2013,16,"3,060.00",R,THE BIG IDEA
Central Services,SupS Chief Execs,Democratic Services                     ,Supplies & Services           ,Expenses                      ,DH79,Incoming Mayor (May-March),21/02/2013,17,774.65,R,REDACTED
Central Services,SupS Chief Execs,Democratic Services                     ,Supplies & Services           ,Expenses                      ,DH79,Incoming Mayor (May-March),21/02/2013,18,772.7,R,REDACTED
Central Services,SupS Chief Execs,Press and Public Relations.             ,Employees                     ,Direct Employee Expenses      ,AA17,Agency Staff & Casual Paymts,29/01/2013,19,"1,130.00",R,HAYS RECRUITING EXPERTS       
Central Services,SupS Chief Execs,Press and Public Relations.             ,Employees                     ,Direct Employee Expenses      ,AA17,Agency Staff & Casual Paymts,29/01/2013,20,"1,130.00",R,HAYS RECRUITING EXPERTS       
Central Services,SupS Chief Execs,Press and Public Relations.             ,Employees                     ,Direct Employee Expenses      ,AA17,Agency Staff & Casual Paymts,04/02/2013,21,"1,130.00",R,HAYS RECRUITING EXPERTS       
Central Services,SupS Chief Execs,Press and Public Relations.             ,Employees                     ,Direct Employee Expenses      ,AA17,Agency Staff & Casual Paymts,14/02/2013,22,"1,130.00",R,HAYS RECRUITING EXPERTS       
Central Services,SupS Chief Execs,Press and Public Relations.             ,Supplies & Services           ,Expenses                      ,DH21,Christma Lights               ,13/11/2012,23,"21,404.00",R,BLACHERE ILLUMINATION         
Central Services,SupS Chief Execs,Press and Public Relations.             ,Supplies & Services           ,Expenses                      ,DH21,Christma Lights               ,14/01/2013,24,"8,176.00",R,BLACHERE ILLUMINATION         
CS -Oth Operating Inc & Expend,T/A Corporate Services,Prtng Jobs - Ext Agncy                  ,Supplies & Services           ,Prntng Stnry Gen Off Exp      ,DE01,External Printing,20/02/2013,25,820.25,R,COLLECTOR SET PRINTERS LTD    
CS -Oth Operating Inc & Expend,T/A Corporate Services,PrintUnit-HighVolPhtcopying             ,Supplies & Services           ,Equip Furniture/Materials     ,DA06,Paper-Internal Print Jobs,28/01/2013,26,"10,150.00",R,RAINBOW OFFICE SUPPLIES LTD   
CS -Oth Operating Inc & Expend,T/A Corporate Services,PrintUnit-HighVolPhtcopying             ,Supplies & Services           ,Prntng Stnry Gen Off Exp      ,DE01,External Printing,22/02/2013,27,590,R,ENNISFIELD                    
CS -Oth Operating Inc & Expend,T/A Corporate Services,Translation Services                    ,Supplies & Services           ,Services                      ,DF45,Payment of Sessional workers,21/01/2013,28,594,R,REDACTED
CS -Oth Operating Inc & Expend,T/A Corporate Services,Translation Services                    ,Supplies & Services           ,Services                      ,DF45,Payment of Sessional workers,04/02/2013,29,729,R,REDACTED
Central Services,SupS Best Value,Merton Link                             ,Supplies & Services           ,Comms and Computing           ,DG15,Network Maintenance,01/02/2013,30,732.35,R,NORTHGATE INFORMATION SOLUTION
Central Services,SupS Comm and Member Services,Local Strategic Partnership             ,Supplies & Services           ,Grants and Subscriptions      ,DJ01,Grants,02/10/2012,31,"9,304.00",R,MERTON VOLUNTARY SERV COUNCIL 
Central Services,SupS Comm and Member Services,Local Strategic Partnership             ,Supplies & Services           ,Grants and Subscriptions      ,DJ01,Grants,22/01/2013,32,"4,948.00",R,MERTON VOLUNTARY SERV COUNCIL 
Central Services,SupS Comm and Member Services,COMMERICIAL SERVICES                    ,Employees                     ,Direct Employee Expenses      ,AA17,Agency Staff & Casual Paymts,24/01/2013,33,678,R,HAYS RECRUITING EXPERTS       
Central Services,SupS Comm and Member Services,COMMERICIAL SERVICES                    ,Employees                     ,Direct Employee Expenses      ,AA17,Agency Staff & Casual Paymts,24/01/2013,34,"3,390.00",R,HAYS RECRUITING EXPERTS       
Central Services,SupS Comm and Member Services,COMMERICIAL SERVICES                    ,Employees                     ,Direct Employee Expenses      ,AA17,Agency Staff & Casual Paymts,01/02/2013,35,"3,390.00",R,HAYS RECRUITING EXPERTS       
Central Services,SupS Comm and Member Services,COMMERICIAL SERVICES                    ,Employees                     ,Direct Employee Expenses      ,AA17,Agency Staff & Casual Paymts,07/02/2013,36,"3,390.00",R,HAYS RECRUITING EXPERTS       
Central Services,Registn Birth/Death/Marriage,Reg of B. Deaths & Ms                   ,Premises Related Expenditure  ,RepairsAlterations&MtceOfBldgs,BA06,Repairs & Maintenance General,20/02/2013,37,"3,970.00",R,RITEC DECORATORS LIMITED      
Central Services,SupS Health & Safety,Learning and Development                ,Employees                     ,Indirect Employee Expenses    ,AB56,Internal Training Costs,06/12/2012,38,560,R,TOTAL COURSES                 
Central Services,SupS Health & Safety,Learning and Development                ,Employees                     ,Indirect Employee Expenses    ,AB57,External Training Costs,15/01/2013,39,500,R,GRANT RICHES COMM. CONSUL.    
CS -Oth Operating Inc & Expend,T/A Corporate Services,CHAS Scheme                             ,Supplies & Services           ,Services                      ,DF11,Counsel's fees,30/11/2012,40,"1,493.50",R,WEIGHTMANS LLP                
CS -Oth Operating Inc & Expend,T/A Corporate Services,CHAS Scheme                             ,Supplies & Services           ,Services                      ,DF11,Counsel's fees,27/12/2012,41,"1,247.00",R,WEIGHTMANS LLP                
CS -Oth Operating Inc & Expend,T/A Corporate Services,CHAS Scheme                             ,Supplies & Services           ,Services                      ,DF88,Assessor Fees,17/01/2013,42,548,R,MCG HEALTH & SAFETY LTD       
CS -Oth Operating Inc & Expend,T/A Corporate Services,CHAS Scheme                             ,Supplies & Services           ,Services                      ,DF88,Assessor Fees,27/01/2013,43,729,R,REDACTED
CS -Oth Operating Inc & Expend,T/A Corporate Services,CHAS Scheme                             ,Supplies & Services           ,Services                      ,DF88,Assessor Fees,22/01/2013,44,"2,100.00",R,REDACTED
CS -Oth Operating Inc & Expend,T/A Corporate Services,CHAS Scheme                             ,Supplies & Services           ,Services                      ,DF88,Assessor Fees,19/01/2013,45,929,R,TERN ASSOCIATES LTD           
CS -Oth Operating Inc & Expend,T/A Corporate Services,CHAS Scheme                             ,Supplies & Services           ,Services                      ,DF88,Assessor Fees,31/01/2013,46,"1,063.00",R,WEST WALES SAFETY SERVICES    
CS -Oth Operating Inc & Expend,T/A Corporate Services,CHAS Scheme                             ,Supplies & Services           ,Services                      ,DF88,Assessor Fees,01/02/2013,47,562,R,REDACTED
CS -Oth Operating Inc & Expend,T/A Corporate Services,CHAS Scheme                             ,Supplies & Services           ,Services                      ,DF88,Assessor Fees,24/01/2013,48,"1,985.00",R,HOLLYGLADE LTD T/A BEACONRISK 
CS -Oth Operating Inc & Expend,T/A Corporate Services,CHAS Scheme                             ,Supplies & Services           ,Services                      ,DF88,Assessor Fees,25/01/2013,49,"3,490.00",R,ALIMOR SAFETY LTD             
CS -Oth Operating Inc & Expend,T/A Corporate Services,CHAS Scheme                             ,Supplies & Services           ,Services                      ,DF88,Assessor Fees,28/01/2013,50,515,R,REDACTED
CS -Oth Operating Inc & Expend,T/A Corporate Services,CHAS Scheme                             ,Supplies & Services           ,Services                      ,DF88,Assessor Fees,18/01/2013,51,"1,390.00",R,REDACTED
CS -Oth Operating Inc & Expend,T/A Corporate Services,CHAS Scheme                             ,Supplies & Services           ,Services                      ,DF88,Assessor Fees,31/01/2013,52,"1,919.00",R,REDACTED
CS -Oth Operating Inc & Expend,T/A Corporate Services,CHAS Scheme                             ,Supplies & Services           ,Services                      ,DF88,Assessor Fees,31/01/2013,53,"1,893.00",R,2ND NATURE SAFETY SOLUTIONS UK
CS -Oth Operating Inc & Expend,T/A Corporate Services,CHAS Scheme                             ,Supplies & Services           ,Services                      ,DF88,Assessor Fees,31/01/2013,54,762,R,REDACTED
CS -Oth Operating Inc & Expend,T/A Corporate Services,CHAS Scheme                             ,Supplies & Services           ,Services                      ,DF88,Assessor Fees,29/01/2013,55,715,R,WOODS CONSULTANCY SERVICES LTD
CS -Oth Operating Inc & Expend,T/A Corporate Services,CHAS Scheme                             ,Supplies & Services           ,Services                      ,DF88,Assessor Fees,31/01/2013,56,"1,064.55",R,REDACTED
CS -Oth Operating Inc & Expend,T/A Corporate Services,CHAS Scheme                             ,Supplies & Services           ,Services                      ,DF88,Assessor Fees,31/01/2013,57,"2,674.45",R,SOUTH EAST HEALTH & SAFETY LTD
CS -Oth Operating Inc & Expend,T/A Corporate Services,CHAS Scheme                             ,Supplies & Services           ,Services                      ,DF88,Assessor Fees,01/02/2013,58,"1,444.00",R,REDACTED
CS -Oth Operating Inc & Expend,T/A Corporate Services,CHAS Scheme                             ,Supplies & Services           ,Services                      ,DF88,Assessor Fees,31/01/2013,59,"1,437.00",R,REDACTED
CS -Oth Operating Inc & Expend,T/A Corporate Services,CHAS Scheme                             ,Supplies & Services           ,Services                      ,DF88,Assessor Fees,31/01/2013,60,602,R,REDACTED
CS -Oth Operating Inc & Expend,T/A Corporate Services,CHAS Scheme                             ,Supplies & Services           ,Services                      ,DF88,Assessor Fees,31/01/2013,61,682,R,REDACTED
CS -Oth Operating Inc & Expend,T/A Corporate Services,CHAS Scheme                             ,Supplies & Services           ,Services                      ,DF88,Assessor Fees,31/01/2013,62,"2,098.00",R,REDACTED
CS -Oth Operating Inc & Expend,T/A Corporate Services,CHAS Scheme                             ,Supplies & Services           ,Services                      ,DF88,Assessor Fees,31/01/2013,63,809,R,REDACTED
CS -Oth Operating Inc & Expend,T/A Corporate Services,CHAS Scheme                             ,Supplies & Services           ,Services                      ,DF88,Assessor Fees,07/01/2013,64,555,R,REDACTED
CS -Oth Operating Inc & Expend,T/A Corporate Services,CHAS Scheme                             ,Supplies & Services           ,Services                      ,DF88,Assessor Fees,31/01/2013,65,"3,548.00",R,STALLARD KANE ASSOCIATES LTD  
CS -Oth Operating Inc & Expend,T/A Corporate Services,CHAS Scheme                             ,Supplies & Services           ,Services                      ,DF88,Assessor Fees,01/02/2013,66,"4,955.00",R,ARC ASSOCIATES (UK)           
CS -Oth Operating Inc & Expend,T/A Corporate Services,CHAS Scheme                             ,Supplies & Services           ,Services                      ,DF88,Assessor Fees,31/01/2013,67,635,R,REDACTED
CS -Oth Operating Inc & Expend,T/A Corporate Services,CHAS Scheme                             ,Supplies & Services           ,Services                      ,DF88,Assessor Fees,31/01/2013,68,555,R,REDACTED
CS -Oth Operating Inc & Expend,T/A Corporate Services,CHAS Scheme                             ,Supplies & Services           ,Services                      ,DF88,Assessor Fees,11/02/2013,69,"1,692.00",R,REDACTED
CS -Oth Operating Inc & Expend,T/A Corporate Services,CHAS Scheme                             ,Supplies & Services           ,Services                      ,DF88,Assessor Fees,31/01/2013,70,976,R,REDACTED
CS -Oth Operating Inc & Expend,T/A Corporate Services,CHAS Scheme                             ,Supplies & Services           ,Services                      ,DF88,Assessor Fees,31/01/2013,71,776,R,REDACTED
CS -Oth Operating Inc & Expend,T/A Corporate Services,CHAS Scheme                             ,Supplies & Services           ,Services                      ,DF88,Assessor Fees,10/02/2013,72,"1,437.00",R,REDACTED
CS -Oth Operating Inc & Expend,T/A Corporate Services,CHAS Scheme                             ,Supplies & Services           ,Services                      ,DF88,Assessor Fees,31/01/2013,73,"3,368.00",R,REDACTED
CS -Oth Operating Inc & Expend,T/A Corporate Services,CHAS Scheme                             ,Supplies & Services           ,Services                      ,DF88,Assessor Fees,31/01/2013,74,"1,799.00",R,REDACTED
CS -Oth Operating Inc & Expend,T/A Corporate Services,CHAS Scheme                             ,Supplies & Services           ,Services                      ,DF88,Assessor Fees,02/02/2013,75,607.3,R,REDACTED
CS -Oth Operating Inc & Expend,T/A Corporate Services,CHAS Scheme                             ,Supplies & Services           ,Services                      ,DF88,Assessor Fees,01/02/2013,76,722,R,REDACTED
CS -Oth Operating Inc & Expend,T/A Corporate Services,CHAS Scheme                             ,Supplies & Services           ,Services                      ,DF88,Assessor Fees,01/02/2013,77,856,R,REDACTED
CS -Oth Operating Inc & Expend,T/A Corporate Services,CHAS Scheme                             ,Supplies & Services           ,Services                      ,DF88,Assessor Fees,04/02/2013,78,682,R,REDACTED
CS -Oth Operating Inc & Expend,T/A Corporate Services,CHAS Scheme                             ,Supplies & Services           ,Services                      ,DF88,Assessor Fees,04/02/2013,79,809,R,REDACTED
CS -Oth Operating Inc & Expend,T/A Corporate Services,CHAS Scheme                             ,Supplies & Services           ,Services                      ,DF88,Assessor Fees,11/02/2013,80,588,R,REDACTED
CS -Oth Operating Inc & Expend,T/A Corporate Services,CHAS Scheme                             ,Supplies & Services           ,Services                      ,DF88,Assessor Fees,03/02/2013,81,"2,408.00",R,REDACTED
CS -Oth Operating Inc & Expend,T/A Corporate Services,CHAS Scheme                             ,Supplies & Services           ,Services                      ,DF88,Assessor Fees,12/02/2013,82,"1,611.00",R,REDACTED
CS -Oth Operating Inc & Expend,T/A Corporate Services,CHAS Scheme                             ,Supplies & Services           ,Services                      ,DF88,Assessor Fees,04/02/2013,83,"1,924.00",R,MGW SAFETY SERVICES           
CS -Oth Operating Inc & Expend,T/A Corporate Services,CHAS Scheme                             ,Supplies & Services           ,Services                      ,DF88,Assessor Fees,08/02/2013,84,"1,269.55",R,REDACTED
CS -Oth Operating Inc & Expend,T/A Corporate Services,CHAS Scheme                             ,Supplies & Services           ,Services                      ,DF88,Assessor Fees,10/02/2013,85,609,R,REDACTED
CS -Oth Operating Inc & Expend,T/A Corporate Services,CHAS Scheme                             ,Supplies & Services           ,Services                      ,DF88,Assessor Fees,31/01/2013,86,595,R,REDACTED
CS -Oth Operating Inc & Expend,T/A Corporate Services,CHAS Scheme                             ,Supplies & Services           ,Services                      ,DF88,Assessor Fees,07/02/2013,87,821,R,REDACTED
CS -Oth Operating Inc & Expend,T/A Corporate Services,CHAS Scheme                             ,Supplies & Services           ,Services                      ,DF88,Assessor Fees,08/02/2013,88,"2,175.00",R,REDACTED
CS -Oth Operating Inc & Expend,T/A Corporate Services,CHAS Scheme                             ,Supplies & Services           ,Services                      ,DF88,Assessor Fees,31/01/2013,89,729,R,REDACTED
CS -Oth Operating Inc & Expend,T/A Corporate Services,CHAS Scheme                             ,Supplies & Services           ,Services                      ,DF88,Assessor Fees,10/02/2013,90,"1,146.50",R,REDACTED
CS -Oth Operating Inc & Expend,T/A Corporate Services,CHAS Scheme                             ,Supplies & Services           ,Services                      ,DF88,Assessor Fees,15/02/2013,91,556.85,R,MCG HEALTH & SAFETY LTD       
CS -Oth Operating Inc & Expend,T/A Corporate Services,CHAS Scheme                             ,Supplies & Services           ,Services                      ,DF88,Assessor Fees,30/09/2012,92,"1,235.00",R,REDACTED
CS -Oth Operating Inc & Expend,T/A Corporate Services,CHAS Scheme                             ,Supplies & Services           ,Services                      ,DF88,Assessor Fees,13/02/2013,93,"1,139.00",R,REDACTED
CS -Oth Operating Inc & Expend,T/A Corporate Services,CHAS Scheme                             ,Supplies & Services           ,Services                      ,DF88,Assessor Fees,31/01/2013,94,983,R,REDACTED
CS -Oth Operating Inc & Expend,T/A Corporate Services,CHAS Scheme                             ,Supplies & Services           ,Services                      ,DF88,Assessor Fees,16/02/2013,95,650.6,R,REDACTED
CS -Oth Operating Inc & Expend,T/A Corporate Services,CHAS Scheme                             ,Supplies & Services           ,Services                      ,DF88,Assessor Fees,19/02/2013,96,635,R,REDACTED
CS -Oth Operating Inc & Expend,T/A Corporate Services,CHAS Scheme                             ,Supplies & Services           ,Services                      ,DF88,Assessor Fees,03/01/2013,97,609,R,REDACTED
Central Services,SupS Health & Safety,Occupational Health                     ,Supplies & Services           ,Services                      ,DF14,Doctors and other fees,31/01/2013,98,"1,428.25",R,EDENRED (UK GROUP) LTD        
,,CCTV (match funding)                    ,New Construction Conversion and Renovation,,B1,Design and Supervision - Consultants Fee,25/01/2013,99,"1,483.64",C,GOODWILL ASSOCIATES LIMITED   
,,CCTV (match funding)                    ,New Construction Conversion and Renovation,,B1,Design and Supervision - Consultants Fee,20/12/2012,100,"1,021.82",C,GOODWILL ASSOCIATES LIMITED   
,,Disabled Facilities Grant DCLG          ,Other Capital Expenditure,,E1,Grants,01/02/2013,101,"5,355.00",C,EXCEL INTERIOR REFURBISHMENT  
,,Disabled Facilities Grant DCLG          ,Other Capital Expenditure,,E1,Grants,01/02/2013,102,"1,730.44",C,EXCEL INTERIOR REFURBISHMENT  
,,Disabled Facilities Grant DCLG          ,Other Capital Expenditure,,E1,Grants,01/02/2013,103,"5,710.00",C,EXCEL INTERIOR REFURBISHMENT  
,,Disabled Facilities Grant DCLG          ,Other Capital Expenditure,,E1,Grants,01/02/2013,104,"3,583.00",C,TOTAL HYGIENE LIMITED         
,,Disabled Facilities Grant DCLG          ,Other Capital Expenditure,,E1,Grants,01/02/2013,105,"1,631.80",C,STAYING FIRST                 
,,Disabled Facilities Grant DCLG          ,Other Capital Expenditure,,E1,Grants,01/02/2013,106,"1,567.90",C,STAYING FIRST                 
,,Disabled Facilities Grant DCLG          ,Other Capital Expenditure,,E1,Grants,07/02/2013,107,"4,527.56",C,EXCEL INTERIOR REFURBISHMENT  
,,Disabled Facilities Grant DCLG          ,Other Capital Expenditure,,E1,Grants,07/02/2013,108,534,C,ATRIUM DESIGN & INSTALLATION  
,,Disabled Facilities Grant DCLG          ,Other Capital Expenditure,,E1,Grants,09/02/2013,109,"3,247.42",C,PREMIER ADAPTATIONS LTD       
,,Disabled Facilities Grant DCLG          ,Other Capital Expenditure,,E1,Grants,14/02/2013,110,"1,594.36",C,CBS ADAPTATION                
,,Disabled Facilities Grant DCLG          ,Other Capital Expenditure,,E1,Grants,14/02/2013,111,"5,502.00",C,DAKIN CONSTRUCTION LTD        
,,Disabled Facilities Grant DCLG          ,Other Capital Expenditure,,E1,Grants,20/02/2013,112,"6,194.00",C,DAKIN CONSTRUCTION LTD        
,,Disabled Facilities Grant DCLG          ,Other Capital Expenditure,,E1,Grants,20/02/2013,113,"5,210.00",C,ASCENDIT LIFTS LTD            
,,Disabled Facilities Grant DCLG          ,Other Capital Expenditure,,E1,Grants,20/02/2013,114,"1,509.40",C,CBS ADAPTATION                
,,Disabled Facilities Grant DCLG          ,Other Capital Expenditure,,E1,Grants,20/02/2013,115,"5,030.00",C,TBS ADAPTATIONS LTD           
,,Disabled Facilities Grant DCLG          ,Other Capital Expenditure,,E1,Grants,25/02/2013,116,"7,592.70",C,CHILTERN INVADEX              
,,Disabled Facilities Grant DCLG          ,Other Capital Expenditure,,E1,Grants,27/02/2013,117,938.21,C,ABLE 2 OCCUP.THERAPY SERV.LTD 
,,Disabled Facilities Grant DCLG          ,Other Capital Expenditure,,E1,Grants,27/02/2013,118,"2,268.75",C,ABLE 2 OCCUP.THERAPY SERV.LTD 
,,Disabled Facilities Grant DCLG          ,Other Capital Expenditure,,E1,Grants,27/02/2013,119,738.88,C,ABLE 2 OCCUP.THERAPY SERV.LTD 
,,Disabled Facilities Grant DCLG          ,Other Capital Expenditure,,E1,Grants,27/02/2013,120,850,C,VISTA SCAPES                  
,,Gap Road Cemetery Railings              ,New Construction Conversion and Renovation,,B4,Site Works - Contractor,06/02/2013,121,"20,000.00",C,JUST METAL UK LTD             
,,Surface Water Drainage                  ,New Construction Conversion and Renovation,,B4,Site Works - Contractor,26/01/2013,122,"1,906.24",C,FM CONWAY LTD                 
,,Borough Roads Maintenance               ,New Construction Conversion and Renovation,,B4,Site Works - Contractor,05/02/2013,123,738.4,C,FM CONWAY LTD                 
,,Borough Roads Maintenance               ,New Construction Conversion and Renovation,,B4,Site Works - Contractor,05/02/2013,124,"8,602.26",C,FM CONWAY LTD                 
,,Borough Roads Maintenance               ,New Construction Conversion and Renovation,,B4,Site Works - Contractor,05/02/2013,125,"75,000.00",C,FM CONWAY LTD                 
,,Borough Roads Maintenance               ,New Construction Conversion and Renovation,,B4,Site Works - Contractor,05/02/2013,126,"35,978.56",C,FM CONWAY LTD                 
,,Borough Roads Maintenance               ,New Construction Conversion and Renovation,,B4,Site Works - Contractor,05/02/2013,127,"12,268.87",C,FM CONWAY LTD                 
,,Borough Roads Maintenance               ,New Construction Conversion and Renovation,,B4,Site Works - Contractor,15/02/2013,128,"34,018.62",C,FM CONWAY LTD                 
,,Borough Roads Maintenance               ,New Construction Conversion and Renovation,,B4,Site Works - Contractor,15/02/2013,129,"17,271.58",C,FM CONWAY LTD                 
,,Repairs to Footways                     ,New Construction Conversion and Renovation,,B4,Site Works - Contractor,05/02/2013,130,"40,000.00",C,FM CONWAY LTD                 
,,Repairs to Footways                     ,New Construction Conversion and Renovation,,B4,Site Works - Contractor,15/02/2013,131,648,C,FM CONWAY LTD                 
,,Repairs to Footways                     ,New Construction Conversion and Renovation,,B4,Site Works - Contractor,15/02/2013,132,"100,000.00",C,FM CONWAY LTD                 
,,Leisure Centre Plant & Machine          ,New Construction Conversion and Renovation,,B4,Site Works - Contractor,25/01/2013,133,"1,670.62",C,MAY GURNEY LTD T/A CARTLEDGE  
,,Garth Rd Workshop                       ,New Construction Conversion and Renovation,,B2,Design and Supervision - Site Surveys,12/12/2012,134,"4,325.00",C,SITE ANALYICAL SERVICES LTD   
,,Garth Rd Workshop                       ,New Construction Conversion and Renovation,,B4,Site Works - Contractor,24/01/2013,135,"1,557.50",C,KC DRAINS LTD                 
,,Garth Rd Workshop                       ,New Construction Conversion and Renovation,,B4,Site Works - Contractor,22/01/2013,136,"10,766.20",C,FARNRISE CONSTRUCTION LTD     
,,Garth Rd Workshop                       ,New Construction Conversion and Renovation,,B4,Site Works - Contractor,21/01/2013,137,"1,163.96",C,PJ HARVEY & CO LTD            
,,Garth Rd Workshop                       ,New Construction Conversion and Renovation,,B4,Site Works - Contractor,31/01/2013,138,720,C,PJ HARVEY & CO LTD            
,,Improve markings & road signs           ,New Construction Conversion and Renovation,,B4,Site Works - Contractor,15/02/2013,139,"7,052.76",C,FM CONWAY LTD                 
,,Improve markings & road signs           ,New Construction Conversion and Renovation,,B4,Site Works - Contractor,15/02/2013,140,"1,522.60",C,FM CONWAY LTD                 
,,Improve markings & road signs           ,Vehicles Plant Equipment and Machinery,,D5,Software,05/02/2013,141,"2,600.00",C,TRAFFIC SAFETY SYSTEMS LTD    
,,Improve markings & road signs           ,Vehicles Plant Equipment and Machinery,,D5,Software,05/02/2013,142,"1,000.00",C,TRAFFIC SAFETY SYSTEMS LTD    
,,Improve markings & road signs           ,Vehicles Plant Equipment and Machinery,,D5,Software,08/02/2013,143,899.88,C,MISCO                         
,,Street Lighting Replacement Pr          ,New Construction Conversion and Renovation,,B4,Site Works - Contractor,18/02/2013,144,"2,080.74",C,MAY GURNEY LTD T/A CARTLEDGE  
,,Street Lighting Replacement Pr          ,New Construction Conversion and Renovation,,B4,Site Works - Contractor,22/02/2013,145,849,C,MAY GURNEY LTD T/A CARTLEDGE  
,,Street Lighting Replacement Pr          ,New Construction Conversion and Renovation,,B4,Site Works - Contractor,14/02/2013,146,"2,400.00",C,MAY GURNEY LTD T/A CARTLEDGE  
,,Street Lighting Replacement Pr          ,New Construction Conversion and Renovation,,B4,Site Works - Contractor,22/02/2013,147,"5,273.16",C,MAY GURNEY LTD T/A CARTLEDGE  
,,Street Lighting Replacement Pr          ,New Construction Conversion and Renovation,,B6,Site Works - Other Costs,10/12/2012,148,"1,054.00",C,UK POWER NETWORKS (OPERATIONS)
,,Alley Gating Scheme - Fly Tip           ,Other Capital Expenditure,,E1,Grants,04/02/2012,149,"2,475.00",C,MYRNA GATEWAY                 
,,Alley Gating Scheme - Fly Tip           ,Other Capital Expenditure,,E1,Grants,19/02/2013,150,691.2,C,8-22 BEECHOLME AVENUE GATES   
,,Alley Gating Scheme - Fly Tip           ,Other Capital Expenditure,,E1,Grants,19/02/2013,151,982.26,C,LEBASY GATING ASSOCIATION     
,,Kingston/Hartfield Rd StratCor          ,New Construction Conversion and Renovation,,B2,Design and Supervision - Site Surveys,31/01/2013,152,"1,988.00",C,HYDER CONSULTING LTD          
,,Kingston/Hartfield Rd StratCor          ,New Construction Conversion and Renovation,,B4,Site Works - Contractor,05/02/2013,153,"40,000.00",C,FM CONWAY LTD                 
,,Kingston/Hartfield Rd StratCor          ,New Construction Conversion and Renovation,,B6,Site Works - Other Costs,15/02/2013,154,"40,480.76",C,TRANSPORT FOR LONDON          
,,Kingston/Hartfield Rd StratCor          ,New Construction Conversion and Renovation,,B6,Site Works - Other Costs,15/02/2013,155,"3,178.81",C,TRANSPORT FOR LONDON          
,,Accesibility Programme                  ,New Construction Conversion and Renovation,,B4,Site Works - Contractor,28/01/2013,156,"3,138.05",C,FM CONWAY LTD                 
,,School & Road Safety Campaigns          ,Other Capital Expenditure,,E4,TFL Other,31/01/2013,157,865,C,BLAKES DRIVER TRAINING        
,,Bikeability cycle training Pro          ,Other Capital Expenditure,,E4,TFL Other,31/01/2013,158,"1,000.00",C,ROYAL BOROUGH OF KINGSTON UPON
,,Cycle Improvements                      ,New Construction Conversion and Renovation,,B5,Site Works - Suppliers,15/01/2013,159,"1,182.60",C,BARCHAM TREES P.L.C.          
,,Highway Asset Management                ,New Construction Conversion and Renovation,,B4,Site Works - Contractor,28/01/2013,160,"1,092.33",C,FM CONWAY LTD                 
,,New Traffic Schemes                     ,New Construction Conversion and Renovation,,B4,Site Works - Contractor,05/02/2013,161,"6,718.68",C,FM CONWAY LTD                 
,,New Traffic Schemes                     ,New Construction Conversion and Renovation,,B4,Site Works - Contractor,05/02/2013,162,"60,000.00",C,FM CONWAY LTD                 
,,New Traffic Schemes                     ,New Construction Conversion and Renovation,,B6,Site Works - Other Costs,15/02/2013,163,"23,096.65",C,TRANSPORT FOR LONDON          
,,New Traffic Schemes                     ,New Construction Conversion and Renovation,,C3,Public Notices,26/01/2013,164,"1,178.10",C,NEWSQUEST (LONDON)LTD         
,,Civic Centre Windows                    ,New Construction Conversion and Renovation,,B4,Site Works - Contractor,16/01/2013,165,"3,947.00",C,SSD LIMITED                   
,,Invest to Save schemes-General          ,New Construction Conversion and Renovation,,B4,Site Works - Contractor,15/01/2013,166,966.6,C,ENERGY SAVING LIGHTING (UK) LT
,,Invest to Save schemes-General          ,New Construction Conversion and Renovation,,B4,Site Works - Contractor,15/01/2013,167,"2,121.00",C,ENERGY SAVING LIGHTING (UK) LT
,,St Ann's - Targeted Capital             ,New Construction Conversion and Renovation,,B4,Site Works - Contractor,23/01/2013,168,"12,825.00",C,R DURTNELL & SONS LTD         
,,St Ann's - Targeted Capital             ,New Construction Conversion and Renovation,,B4,Site Works - Contractor,16/01/2013,169,"85,360.00",C,MANSELL CONSTRUCTION SERVICES 
,,St Ann's - Targeted Capital             ,New Construction Conversion and Renovation,,B4,Site Works - Contractor,01/02/2013,170,680.34,C,PORTAKABIN LIMITED            
,,St Ann's - Targeted Capital             ,New Construction Conversion and Renovation,,B5,Site Works - Suppliers,05/02/2013,171,"3,714.23",C,BOSHIRE LTD                   
,,Brightwell                              ,New Construction Conversion and Renovation,,B4,Site Works - Contractor,22/11/2012,172,"60,052.58",C,STP SOLUTIONS                 
,,St Mary's expansion                     ,New Construction Conversion and Renovation,,B1,Design and Supervision - Consultants Fee,29/01/2013,173,"27,885.00",C,NPS PROPERTY CONSULTANTS LTD  
,,St Mary's expansion                     ,New Construction Conversion and Renovation,,B2,Design and Supervision - Site Surveys,31/01/2013,174,800,C,ALPHA ACOUSTICS               
,,Pupil Growth - Unallocated              ,New Construction Conversion and Renovation,,B2,Design and Supervision - Site Surveys,15/02/2013,175,"2,878.21",C,JMP CONSULTANTS LTD           
,,Pupil Growth - Unallocated              ,New Construction Conversion and Renovation,,B2,Design and Supervision - Site Surveys,15/02/2013,176,"3,408.21",C,JMP CONSULTANTS LTD           
,,Joseph Hood Permanent Expansn           ,New Construction Conversion and Renovation,,B4,Site Works - Contractor,12/12/2012,177,"6,248.00",C,PJ HARVEY & CO LTD            
,,Joseph Hood Permanent Expansn           ,New Construction Conversion and Renovation,,B4,Site Works - Contractor,04/02/2013,178,"100,000.00",C,GEE CONSTRUCTION LTD          
,,Joseph Hood Permanent Expansn           ,New Construction Conversion and Renovation,,B5,Site Works - Suppliers,31/01/2013,179,799.63,C,BLUE CUBE CONNECTIONS LTD     
,,Garden PCP                              ,New Construction Conversion and Renovation,,B4,Site Works - Contractor,04/02/2013,180,"70,557.04",C,R DURTNELL & SONS LTD         
,,Gorringe Park expansion                 ,New Construction Conversion and Renovation,,B4,Site Works - Contractor,21/01/2013,181,"80,000.00",C,GEE CONSTRUCTION LTD          
,,Gorringe Park expansion                 ,New Construction Conversion and Renovation,,B4,Site Works - Contractor,15/02/2013,182,"118,000.00",C,GEE CONSTRUCTION LTD          
,,Hillcross School Expansion              ,New Construction Conversion and Renovation,,B1,Design and Supervision - Consultants Fee,30/01/2013,183,"24,827.00",C,CURL LA TOURELLE ARCHITECTS   
,,Hillcross School Expansion              ,New Construction Conversion and Renovation,,B2,Design and Supervision - Site Surveys,31/01/2013,184,750,C,CLEAR VIEW LTD                
,,Hillcross School Expansion              ,New Construction Conversion and Renovation,,B2,Design and Supervision - Site Surveys,31/01/2013,185,"5,125.00",C,CLEAR VIEW LTD                
,,Hillcross School Expansion              ,New Construction Conversion and Renovation,,B2,Design and Supervision - Site Surveys,15/02/2013,186,"3,803.21",C,JMP CONSULTANTS LTD           
,,Hillcross School Expansion              ,New Construction Conversion and Renovation,,B4,Site Works - Contractor,17/01/2013,187,"3,686.00",C,MOY CONSTRUCTION CO LTD       
,,Merton Abbey Temp Accomodation          ,New Construction Conversion and Renovation,,B1,Design and Supervision - Consultants Fee,05/02/2013,188,"21,435.00",C,PELLINGS LLP                  
,,Merton Abbey Temp Accomodation          ,New Construction Conversion and Renovation,,B1,Design and Supervision - Consultants Fee,05/02/2013,189,"27,475.00",C,PELLINGS LLP                  
,,Merton Abbey Temp Accomodation          ,New Construction Conversion and Renovation,,B2,Design and Supervision - Site Surveys,31/01/2013,190,"2,156.80",C,KEEGANS LIMITED               
,,Merton Abbey Temp Accomodation          ,New Construction Conversion and Renovation,,B2,Design and Supervision - Site Surveys,14/02/2013,191,"-2,156.80",C,KEEGANS LIMITED               
,,Merton Abbey Temp Accomodation          ,New Construction Conversion and Renovation,,B4,Site Works - Contractor,13/02/2013,192,"1,056.00",C,PORTAKABIN LIMITED            
,,Merton Abbey Temp Accomodation          ,New Construction Conversion and Renovation,,B4,Site Works - Contractor,14/12/2012,193,"6,602.31",C,PORTAKABIN LIMITED            
,,Pelham School Expansion                 ,New Construction Conversion and Renovation,,B1,Design and Supervision - Consultants Fee,31/01/2013,194,"1,200.00",C,EIGHT ASSOCIATES              
,,Pelham School Expansion                 ,New Construction Conversion and Renovation,,B2,Design and Supervision - Site Surveys,07/02/2013,195,"1,300.00",C,JPD TECHNICAL SERVICES        
,,Pelham School Expansion                 ,New Construction Conversion and Renovation,,B2,Design and Supervision - Site Surveys,07/02/2013,196,"1,500.00",C,JPD TECHNICAL SERVICES        
,,Pelham School Expansion                 ,New Construction Conversion and Renovation,,B2,Design and Supervision - Site Surveys,07/02/2013,197,"1,500.00",C,JPD TECHNICAL SERVICES        
,,Dundonald expansion                     ,New Construction Conversion and Renovation,,B1,Design and Supervision - Consultants Fee,31/01/2013,198,500,C,SYNERGY CPC LLP               
,,St Ann's Primary Phase                  ,New Construction Conversion and Renovation,,B2,Design and Supervision - Site Surveys,30/01/2013,199,"1,435.00",C,AOC ARCHAEOLOGY GROUP         
,,Poplar Permanent Expansion              ,New Construction Conversion and Renovation,,B2,Design and Supervision - Site Surveys,31/01/2013,200,"2,676.36",C,KEEGANS LIMITED               
,,Poplar Permanent Expansion              ,New Construction Conversion and Renovation,,B2,Design and Supervision - Site Surveys,14/02/2013,201,"-2,676.36",C,KEEGANS LIMITED               
,,Liberty expansion                       ,New Construction Conversion and Renovation,,B4,Site Works - Contractor,04/02/2013,202,"160,506.16",C,R DURTNELL & SONS LTD         
,,Wimbledon Park expansion                ,New Construction Conversion and Renovation,,B1,Design and Supervision - Consultants Fee,31/01/2013,203,"2,400.00",C,SYNERGY CPC LLP               
,,Wimbledon Park expansion                ,New Construction Conversion and Renovation,,B4,Site Works - Contractor,04/02/2013,204,"80,682.69",C,GEE CONSTRUCTION LTD          
,,Wimbledon Park expansion                ,Vehicles Plant Equipment and Machinery,,D3,Equipment,05/12/2012,205,687.03,C,MM-ICT LIMITED                
,,Wimbledon Park expansion                ,Vehicles Plant Equipment and Machinery,,D3,Equipment,05/12/2012,206,653.49,C,MM-ICT LIMITED                
,,Wimbledon Park expansion                ,Vehicles Plant Equipment and Machinery,,D3,Equipment,05/12/2012,207,"2,995.00",C,MM-ICT LIMITED                
,,Wimbledon Park expansion                ,Vehicles Plant Equipment and Machinery,,D3,Equipment,05/12/2012,208,823.99,C,MM-ICT LIMITED                
,,Wimbledon Park expansion                ,Vehicles Plant Equipment and Machinery,,D3,Equipment,05/12/2012,209,788.49,C,MM-ICT LIMITED                
,,Breaks-disabled children grant          ,New Construction Conversion and Renovation,,B4,Site Works - Contractor,22/11/2012,210,"6,065.00",C,STP SOLUTIONS                 
,,Disaster recovery                       ,Vehicles Plant Equipment and Machinery,,D3,Equipment,15/02/2013,211,"1,491.56",C,ON365.CO.UK                   
,,Disaster recovery                       ,Vehicles Plant Equipment and Machinery,,D3,Equipment,15/02/2013,212,"1,940.00",C,ON365.CO.UK                   
,,Disaster recovery                       ,Vehicles Plant Equipment and Machinery,,D3,Equipment,15/02/2013,213,"4,708.00",C,ON365.CO.UK                   
,,IT Equipment                            ,Vehicles Plant Equipment and Machinery,,D3,Equipment,23/01/2013,214,"31,200.00",C,COMPUTERLAND                  
,,IT Equipment                            ,Vehicles Plant Equipment and Machinery,,D3,Equipment,21/01/2013,215,"2,333.50",C,SPECIALIST COMPUTER CENT. PLC 
,,IT Equipment                            ,Vehicles Plant Equipment and Machinery,,D3,Equipment,23/01/2013,216,"2,288.50",C,SPECIALIST COMPUTER CENT. PLC 
,,IT Equipment                            ,Vehicles Plant Equipment and Machinery,,D3,Equipment,23/01/2013,217,"2,288.50",C,SPECIALIST COMPUTER CENT. PLC 
,,IT Equipment                            ,Other Capital Expenditure,,E3,Miscellaneous Capital Expenditure,15/01/2013,218,"1,960.00",C,COMPUTERLAND                  
,,Information lifecycle Mgt               ,Vehicles Plant Equipment and Machinery,,D3,Equipment,15/02/2013,219,"3,130.44",C,ON365.CO.UK                   
,,Information lifecycle Mgt               ,Vehicles Plant Equipment and Machinery,,D3,Equipment,15/02/2013,220,"3,608.65",C,ON365.CO.UK                   
,,Information lifecycle Mgt               ,Vehicles Plant Equipment and Machinery,,D3,Equipment,15/02/2013,221,882.6,C,ON365.CO.UK                   
,,Information lifecycle Mgt               ,Vehicles Plant Equipment and Machinery,,D3,Equipment,15/02/2013,222,695,C,ON365.CO.UK                   
,,IT Strategy - unallocated               ,New Construction Conversion and Renovation,,B4,Site Works - Contractor,31/01/2013,223,"1,949.25",C,DATA TECHNIQUES               
,,IT Strategy - unallocated               ,New Construction Conversion and Renovation,,B4,Site Works - Contractor,31/01/2013,224,"1,570.95",C,DATA TECHNIQUES               
,,IT Strategy - unallocated               ,Other Capital Expenditure,,E3,Miscellaneous Capital Expenditure,24/12/2012,225,"3,757.00",C,NEC (UK) LTD                  
,,IT Strategy - unallocated               ,Other Capital Expenditure,,E3,Miscellaneous Capital Expenditure,24/12/2012,226,"8,775.00",C,NEC (UK) LTD                  
,,IT Strategy - unallocated               ,Other Capital Expenditure,,E3,Miscellaneous Capital Expenditure,31/01/2013,227,880,C,NETWORK SOLUTIONS INC         
,,Stability Networks                      ,Vehicles Plant Equipment and Machinery,,D3,Equipment,12/02/2013,228,"7,200.00",C,VIGLEN LIMITED                
,,Cloud Computing - Cap Ambition          ,Other Capital Expenditure,,E3,Miscellaneous Capital Expenditure,31/01/2013,229,"1,450.00",C,FORDWAY LTD                   
,,Cloud Computing - Cap Ambition          ,Other Capital Expenditure,,E3,Miscellaneous Capital Expenditure,31/01/2013,230,"1,450.00",C,FORDWAY LTD                   
,,Cloud Computing - Cap Ambition          ,Other Capital Expenditure,,E3,Miscellaneous Capital Expenditure,31/01/2013,231,950,C,FORDWAY LTD                   
Central Services,Council tax collection,Local Taxation Services                 ,Supplies & Services           ,Services                      ,DF11,Counsel's fees,26/10/2012,232,855,R,INCASSO DEBT RECOVERY         
Central Services,Council tax collection,Local Taxation Services                 ,Supplies & Services           ,Services                      ,DF11,Counsel's fees,26/01/2013,233,"1,480.00",R,INCASSO DEBT RECOVERY         
Central Services,Council tax collection,Local Taxation Services                 ,Supplies & Services           ,Services                      ,DF11,Counsel's fees,30/01/2013,234,920,R,WELBECK LAW LLP               
Central Services,Council tax collection,Local Taxation Services                 ,Supplies & Services           ,Services                      ,DF11,Counsel's fees,07/02/2013,235,920,R,WELBECK LAW LLP               
Central Services,Council tax collection,Local Taxation Services                 ,Supplies & Services           ,Services                      ,DF11,Counsel's fees,26/09/2012,236,650,R,INCASSO DEBT RECOVERY         
Central Services,Council tax collection,Local Taxation Services                 ,Supplies & Services           ,Comms and Computing           ,DG02,Software Licences,21/02/2013,237,"20,280.00",R,ONESTEP SOLUTIONS PLC         
Central Services,Council tax collection,Local Taxation Services                 ,Supplies & Services           ,Comms and Computing           ,DG09,Computer Purchases - Misc,29/01/2013,238,"2,103.30",R,CIVICA UK LIMITED             
Central Services,Council tax collection,Local Taxation Services                 ,Supplies & Services           ,Comms and Computing           ,DG09,Computer Purchases - Misc,11/02/2013,239,560,R,CIVICA UK LIMITED             
Central Services,Council tax collection,Local Taxation Services                 ,Supplies & Services           ,Comms and Computing           ,DG09,Computer Purchases - Misc,14/02/2013,240,815.8,R,CIVICA UK LIMITED             
Housing Services,HB Administration,Benefits Administration                 ,Supplies & Services           ,Comms and Computing           ,DG09,Computer Purchases - Misc,14/02/2013,241,928.8,R,CIVICA UK LIMITED             
Housing Services,HB Administration,Benefits Administration                 ,Supplies & Services           ,Comms and Computing           ,DG09,Computer Purchases - Misc,14/02/2013,242,928.8,R,CIVICA UK LIMITED             
Central Services,SupS Corporate Finance,TRANSACTIONS                            ,Employees                     ,Direct Employee Expenses      ,AA04,Shared Services Salaries,17/12/2012,243,"58,105.00",R,LONDON BOROUGH OF SUTTON      
Central Services,SupS Payroll,Payroll                                 ,Supplies & Services           ,Services                      ,DF01,General Office Expenses,07/02/2013,244,"9,706.62",R,SS PETER & PAUL RC PRIMARY SCH
Central Services,SupS Payroll,Payroll                                 ,Third Party Payments          ,Private Contractors           ,EH10,Contract Payments,25/01/2013,245,"5,453.43",R,LONDON BOROUGH OF SUTTON      
Central Services,SupS DOF,AD Customer Services                    ,Supplies & Services           ,Grants and Subscriptions      ,DJ04,Subscriptions,21/02/2013,246,630,R,CIPFA BUSINESS LTD            
Central Services,SupS Facilities,Post Room                               ,Supplies & Services           ,Prntng Stnry Gen Off Exp      ,DE30,General Office Expense        ,29/01/2013,247,600,R,TRAVELCARE                    
Central Services,SupS Facilities,Security Services                       ,Employees                     ,Direct Employee Expenses      ,AA17,Agency Staff & Casual Paymts,01/02/2013,248,"1,872.00",R,REDACTED
Central Services,SupS Facilities,Civic Centre                            ,Premises Related Expenditure  ,RepairsAlterations&MtceOfBldgs,BA29,Build Maint Mgt Fees,19/02/2013,249,"10,976.00",R,UNIQUE OFFICE SOLUTIONS LTD   
Central Services,SupS Facilities,Civic Centre                            ,Premises Related Expenditure  ,RepairsAlterations&MtceOfBldgs,BA29,Build Maint Mgt Fees,19/02/2013,250,"4,000.00",R,UNIQUE OFFICE SOLUTIONS LTD   
Central Services,SupS Facilities,Civic Centre                            ,Premises Related Expenditure  ,RepairsAlterations&MtceOfBldgs,BA29,Build Maint Mgt Fees,02/02/2013,251,"3,480.00",R,KH FLOORING LTD               
Central Services,SupS Facilities,Civic Centre                            ,Premises Related Expenditure  ,Cleaning and Domestic Supplies,BH03,Cleaning Services,01/02/2013,252,"3,035.93",R,BIRKIN CLEANING SERVICES LTD  
Central Services,SupS Facilities,Civic Centre                            ,Premises Related Expenditure  ,Cleaning and Domestic Supplies,BH03,Cleaning Services,01/02/2013,253,819.47,R,BIRKIN CLEANING SERVICES LTD  
Central Services,SupS Facilities,Civic Centre                            ,Premises Related Expenditure  ,Cleaning and Domestic Supplies,BH03,Cleaning Services,01/02/2013,254,"1,464.69",R,BIRKIN CLEANING SERVICES LTD  
Central Services,SupS Facilities,Civic Centre                            ,Premises Related Expenditure  ,Cleaning and Domestic Supplies,BH03,Cleaning Services,01/02/2013,255,"1,511.31",R,BIRKIN CLEANING SERVICES LTD  
Central Services,SupS Facilities,Civic Centre                            ,Premises Related Expenditure  ,Cleaning and Domestic Supplies,BH03,Cleaning Services,01/02/2013,256,"6,473.18",R,BIRKIN CLEANING SERVICES LTD  
Central Services,SupS Facilities,Civic Centre                            ,Premises Related Expenditure  ,Cleaning and Domestic Supplies,BH03,Cleaning Services,01/02/2013,257,"1,395.29",R,BIRKIN CLEANING SERVICES LTD  
Central Services,SupS Facilities,Civic Centre                            ,Premises Related Expenditure  ,Cleaning and Domestic Supplies,BH03,Cleaning Services,01/02/2013,258,"1,642.40",R,BIRKIN CLEANING SERVICES LTD  
Central Services,SupS Facilities,Civic Centre                            ,Premises Related Expenditure  ,Cleaning and Domestic Supplies,BH03,Cleaning Services,01/02/2013,259,"1,199.41",R,BIRKIN CLEANING SERVICES LTD  
Central Services,SupS Facilities,Civic Centre                            ,Premises Related Expenditure  ,Cleaning and Domestic Supplies,BH03,Cleaning Services,01/02/2013,260,"1,215.98",R,BIRKIN CLEANING SERVICES LTD  
Central Services,SupS Facilities,Facilities                              ,Employees                     ,Indirect Employee Expenses    ,AB02,Recruitment Adverts,11/01/2013,261,"6,135.80",R,HAYS EXECUTIVE                
Central Services,SupS Facilities,Facilities                              ,Premises Related Expenditure  ,RepairsAlterations&MtceOfBldgs,BA02,Energy Conservation,16/01/2013,262,625,R,STARK SOFTWARE INTERNATIONAL  
Central Services,SupS Facilities,Facilities                              ,Premises Related Expenditure  ,RepairsAlterations&MtceOfBldgs,BA03,DDM - Mechanical,20/12/2012,263,"13,753.19",R,ENER-G COMBINED POWER LIMITED 
Central Services,SupS Facilities,Facilities                              ,Premises Related Expenditure  ,RepairsAlterations&MtceOfBldgs,BA06,Repairs & Maintenance General,05/02/2013,264,"6,690.00",R,FORBO FLOORING UK LTD         
Central Services,SupS Facilities,Facilities                              ,Premises Related Expenditure  ,RepairsAlterations&MtceOfBldgs,BA06,Repairs & Maintenance General,31/01/2013,265,"1,217.08",R,DATA TECHNIQUES               
Central Services,SupS Facilities,Facilities                              ,Premises Related Expenditure  ,RepairsAlterations&MtceOfBldgs,BA89,Fire Safety Risk Assessment,31/01/2013,266,"2,672.01",R,FIRST CHOICE FACILITIES PLC   
Central Services,SupS Facilities,Facilities                              ,Premises Related Expenditure  ,RepairsAlterations&MtceOfBldgs,BA90,Water Hygiene,08/02/2013,267,"1,068.23",R,COFELY LIMITED                
Central Services,SupS Facilities,Corporate Services Buildings            ,Premises Related Expenditure  ,RepairsAlterations&MtceOfBldgs,BA03,DDM - Mechanical,30/01/2013,268,"4,098.21",R,COFELY LIMITED                
Central Services,SupS Facilities,Corporate Services Buildings            ,Premises Related Expenditure  ,RepairsAlterations&MtceOfBldgs,BA05,DDM - Electrical,31/01/2013,269,"1,005.00",R,DATA TECHNIQUES               
Central Services,SupS Facilities,Corporate Services Buildings            ,Premises Related Expenditure  ,RepairsAlterations&MtceOfBldgs,BA05,DDM - Electrical,16/01/2013,270,560,R,SSD LIMITED                   
Central Services,SupS Facilities,Corporate Services Buildings            ,Premises Related Expenditure  ,RepairsAlterations&MtceOfBldgs,BA05,DDM - Electrical,15/02/2013,271,917.02,R,DATA TECHNIQUES               
Central Services,SupS Facilities,Corporate Services Buildings            ,Premises Related Expenditure  ,RepairsAlterations&MtceOfBldgs,BA05,DDM - Electrical,18/02/2013,272,753.37,R,DATA TECHNIQUES               
Central Services,SupS Facilities,Corporate Services Buildings            ,Premises Related Expenditure  ,Energy Costs                  ,BB02,Electricity,15/01/2013,273,"12,980.32",R,KENT COUNTY COUNCIL           
Central Services,SupS Facilities,Corporate Services Buildings            ,Premises Related Expenditure  ,Energy Costs                  ,BB02,Electricity,20/12/2012,274,"13,270.44",R,KENT COUNTY COUNCIL           
Central Services,SupS Facilities,Corporate Services Buildings            ,Premises Related Expenditure  ,Energy Costs                  ,BB02,Electricity,15/01/2013,275,"13,624.27",R,KENT COUNTY COUNCIL           
Central Services,SupS Facilities,Corporate Services Buildings            ,Premises Related Expenditure  ,Energy Costs                  ,BB02,Electricity,08/02/2013,276,"13,701.83",R,KENT COUNTY COUNCIL           
Central Services,SupS Facilities,Corporate Services Buildings            ,Premises Related Expenditure  ,Energy Costs                  ,BB02,Electricity,05/02/2013,277,"1,172.56",R,EDF ENERGY 1 LIMITED          
Central Services,SupS Facilities,Corporate Services Buildings            ,Premises Related Expenditure  ,Water Services                ,BE01,Use of Water (Metered),25/01/2013,278,850.56,R,SUTTON AND EAST SURREY WATER  
Cultural Env Reg&Plan Services,Parks & Open Spaces,E & R Buildings                         ,Premises Related Expenditure  ,RepairsAlterations&MtceOfBldgs,BA03,DDM - Mechanical,30/01/2013,279,569.45,R,COFELY LIMITED                
Adult Social Care,PS u65 Day Care,C & H Buildings                         ,Premises Related Expenditure  ,RepairsAlterations&MtceOfBldgs,BA01,DDM - General Building,09/11/2012,280,567.08,R,SALTASH ENTERPRISES LTD       
Adult Social Care,PS u65 Day Care,C & H Buildings                         ,Premises Related Expenditure  ,RepairsAlterations&MtceOfBldgs,BA01,DDM - General Building,09/11/2012,281,600.45,R,SALTASH ENTERPRISES LTD       
Adult Social Care,PS u65 Day Care,C & H Buildings                         ,Premises Related Expenditure  ,RepairsAlterations&MtceOfBldgs,BA03,DDM - Mechanical,30/01/2013,282,694.4,R,COFELY LIMITED                
Adult Social Care,PS u65 Day Care,C & H Buildings                         ,Premises Related Expenditure  ,RepairsAlterations&MtceOfBldgs,BA05,DDM - Electrical,08/02/2013,283,940.86,R,COFELY LIMITED                
Adult Social Care,PS u65 Day Care,C & H Buildings                         ,Premises Related Expenditure  ,RepairsAlterations&MtceOfBldgs,BA05,DDM - Electrical,15/01/2013,284,"1,036.50",R,ENERGY SAVING LIGHTING (UK) LT
Cultural Env Reg&Plan Services,Parks & Open Spaces,Leisure Buildings                       ,Premises Related Expenditure  ,RepairsAlterations&MtceOfBldgs,BA01,DDM - General Building,11/01/2013,285,786.82,R,AXIS ELEVATORS LTD            
Cultural Env Reg&Plan Services,Parks & Open Spaces,Leisure Buildings                       ,Premises Related Expenditure  ,RepairsAlterations&MtceOfBldgs,BA03,DDM - Mechanical,30/01/2013,286,668.48,R,COFELY LIMITED                
Central Services,SupS DOF,BUSINESS PARTNERS                       ,Employees                     ,Direct Employee Expenses      ,AA17,Agency Staff & Casual Paymts,11/02/2013,287,"8,450.00",R,REDACTED
Central Services,SupS DOF,AD RESOURCES                            ,Employees                     ,Direct Employee Expenses      ,AA17,Agency Staff & Casual Paymts,04/01/2013,288,"10,500.00",R,REDACTED
Central Services,SupS DOF,AD RESOURCES                            ,Employees                     ,Direct Employee Expenses      ,AA17,Agency Staff & Casual Paymts,14/02/2013,289,"16,500.00",R,REDACTED
Central Services,SupS DOF,AD RESOURCES                            ,Supplies & Services           ,Services                      ,DF03,Consultants,31/12/2012,290,"6,900.00",R,PUBLIC SECTOR CONSULTANTS     
Central Services,SupS DOF,AD RESOURCES                            ,Supplies & Services           ,Grants and Subscriptions      ,DJ04,Subscriptions,21/02/2013,291,"1,990.00",R,CIPFA BUSINESS LTD            
Central Services,SupS Audit and Fraud,Internal Audit&Service Review           ,Supplies & Services           ,Services                      ,DF58,Audit Fee,23/10/2012,292,"4,500.00",R,RSM TENON                     
Central Services,SupS Audit and Fraud,Internal Audit&Service Review           ,Supplies & Services           ,Services                      ,DF58,Audit Fee,21/01/2013,293,"1,350.00",R,LONDON BOROUGH OF SUTTON      
Central Services,SupS Audit and Fraud,Internal Audit&Service Review           ,Supplies & Services           ,Services                      ,DF58,Audit Fee,19/01/2013,294,"1,800.00",R,RSM TENON                     
Central Services,SupS  Risk and Insurance,Insurance Premiums & Funding            ,Supplies & Services           ,Services                      ,DF74,Insurance Premiums,28/01/2013,295,832.54,R,ZURICH INSURANCE COMPANY      
Central Services,SupS Strategic Finance,Treasury & Insurance                    ,Employees                     ,Direct Employee Expenses      ,AA17,Agency Staff & Casual Paymts,11/12/2012,296,"2,350.00",R,REDACTED
Central Services,SupS Strategic Finance,Treasury & Insurance                    ,Employees                     ,Direct Employee Expenses      ,AA17,Agency Staff & Casual Paymts,05/12/2012,297,"2,350.00",R,REDACTED
Central Services,GENERATED ACCOUNT,Establishments' Cash Collect'n          ,Third Party Payments          ,Private Contractors           ,EH02,Miscellaneous Hired Services,31/01/2013,298,627.9,R,LOOMIS UK LTD                 
Central Services,SupS DOF,Service Accountancy                     ,Employees                     ,Direct Employee Expenses      ,AA17,Agency Staff & Casual Paymts,01/02/2013,299,"4,600.00",R,REDACTED
Central Services,SupS DOF,Service Accountancy                     ,Employees                     ,Direct Employee Expenses      ,AA17,Agency Staff & Casual Paymts,11/02/2013,300,"4,600.00",R,REDACTED
Central Services,SupS DOF,Service Accountancy                     ,Transfer Payments             ,Housing Benefits              ,FA50,Burial and Cremation,17/01/2013,301,"1,116.80",R,F.W. PAINE                    
Central Services,SupS Legal,AD CORPORATE GOVERNANCE               ,Supplies & Services           ,Comms and Computing           ,DG02,Software Licences,04/12/2012,302,"2,100.00",R,MAGIQUE GALILEO SOFTWARE LTD  
Central Services,SupS Legal,Legal Services                          ,Supplies & Services           ,Services                      ,DF28,Court Fees,06/02/2013,303,"1,900.00",R,REDACTED
Central Services,SupS Legal,Legal Services                          ,Supplies & Services           ,Services                      ,DF28,Court Fees,06/02/2013,304,700,R,REDACTED
Central Services,SupS Legal,Legal Services                          ,Supplies & Services           ,Services                      ,DF28,Court Fees,20/02/2013,305,"2,225.00",R,REDACTED
Central Services,Registration of electors,Electoral Registration                  ,Supplies & Services           ,Comms and Computing           ,DG04,Postage - General,04/02/2013,306,"1,051.11",R,ROYAL MAIL GROUP LTD          
Central Services,SupS Legal,Shared Legal Service                    ,Employees                     ,Indirect Employee Expenses    ,AB57,External Training Costs,11/02/2013,307,600,R,LGG                           
Central Services,SupS Legal,Shared Legal Service                    ,Supplies & Services           ,Services                      ,DF03,Consultants,01/02/2013,308,"1,380.00",R,CGJ ROBERTS - HRC GROUP       
Central Services,SupS Legal,Shared Legal Service                    ,Supplies & Services           ,Services                      ,DF09,Miscellaneous Fees,31/01/2013,309,823.71,R,WINCANTON RECORDS MANAGEMENT  
Central Services,SupS Legal,Shared Legal Service                    ,Supplies & Services           ,Comms and Computing           ,DG09,Computer Purchases - Misc,23/01/2013,310,915.4,R,SPECIALIST COMPUTER CENT. PLC 
Central Services,SupS Legal,Richmond Legal                          ,Supplies & Services           ,Services                      ,DF11,Counsel's fees,21/01/2013,311,"2,000.00",R,REDACTED
Central Services,SupS Legal,Richmond Legal                          ,Supplies & Services           ,Services                      ,DF11,Counsel's fees,22/01/2013,312,840,R,REDACTED
Central Services,SupS Legal,Richmond Legal                          ,Supplies & Services           ,Services                      ,DF11,Counsel's fees,21/01/2013,313,"3,100.00",R,REDACTED
Central Services,SupS Legal,Richmond Legal                          ,Supplies & Services           ,Services                      ,DF11,Counsel's fees,24/12/2012,314,"1,300.00",R,REDACTED
Central Services,SupS Legal,Richmond Legal                          ,Supplies & Services           ,Services                      ,DF11,Counsel's fees,02/01/2013,315,793.35,R,REDACTED
Central Services,SupS Legal,Richmond Legal                          ,Supplies & Services           ,Services                      ,DF11,Counsel's fees,17/12/2012,316,600,R,REDACTED
Central Services,SupS Legal,Richmond Legal                          ,Supplies & Services           ,Services                      ,DF11,Counsel's fees,30/11/2012,317,"20,167.50",R,REDACTED
Central Services,SupS Legal,Richmond Legal                          ,Supplies & Services           ,Services                      ,DF11,Counsel's fees,28/12/2012,318,675,R,REDACTED
Central Services,SupS Legal,Richmond Legal                          ,Supplies & Services           ,Services                      ,DF11,Counsel's fees,11/02/2013,319,"1,151.86",R,REDACTED
Central Services,SupS Legal,Richmond Legal                          ,Supplies & Services           ,Services                      ,DF14,Doctors and other fees,16/11/2012,320,800,R,REDACTED
Central Services,SupS Legal,Richmond Legal                          ,Supplies & Services           ,Services                      ,DF14,Doctors and other fees,09/11/2012,321,540,R,ANGLIA DNA SERVICES LTD       
Central Services,SupS Legal,Richmond Legal                          ,Supplies & Services           ,Services                      ,DF14,Doctors and other fees,12/02/2013,322,"4,013.75",R,REDACTED
Central Services,SupS Legal,Richmond Legal                          ,Supplies & Services           ,Services                      ,DF28,Court Fees,12/02/2013,323,"2,225.00",R,HMCTS                         
Central Services,SupS Legal,Richmond Legal                          ,Supplies & Services           ,Services                      ,DF95,Services from Provider,21/12/2012,324,750,R,RUSSELL -  COOKE LLP          
Central Services,SupS Legal,Richmond Legal                          ,Supplies & Services           ,Services                      ,DF95,Services from Provider,06/12/2012,325,"2,820.00",R,REDACTED
Central Services,SupS Legal,Richmond Legal                          ,Supplies & Services           ,Services                      ,DF95,Services from Provider,29/11/2012,326,"1,476.60",R,SHOOSMITHS SOLICITORS         
Central Services,SupS Legal,Richmond Legal                          ,Supplies & Services           ,Services                      ,DF95,Services from Provider,12/02/2013,327,"2,739.94",R,RUSSELL - COOKE               
Central Services,SupS Legal,Richmond Legal                          ,Supplies & Services           ,Services                      ,DF95,Services from Provider,28/12/2012,328,"1,523.40",R,SHOOSMITHS SOLICITORS         
Central Services,SupS Legal,Richmond Legal                          ,Supplies & Services           ,Services                      ,DF95,Services from Provider,30/01/2013,329,"1,806.30",R,SHOOSMITHS SOLICITORS         
Central Services,SupS IT,AD Business Improvement                 ,Supplies & Services           ,Equip Furniture/Materials     ,DA09,Equip-Purchases,20/02/2013,330,"1,030.00",R,INCOM TELECOMMUNICATIONS      
Central Services,SupS IT,Operations & Telecomms                  ,Premises Related Expenditure  ,RepairsAlterations&MtceOfBldgs,BA05,DDM - Electrical,31/01/2013,331,"2,556.28",R,DATA TECHNIQUES               
Central Services,SupS IT,Operations & Telecomms                  ,Premises Related Expenditure  ,RepairsAlterations&MtceOfBldgs,BA05,DDM - Electrical,31/01/2013,332,"4,645.73",R,DATA TECHNIQUES               
Central Services,SupS IT,Operations & Telecomms                  ,Premises Related Expenditure  ,RepairsAlterations&MtceOfBldgs,BA05,DDM - Electrical,18/02/2013,333,"1,675.00",R,DATA TECHNIQUES               
Central Services,SupS IT,Operations & Telecomms                  ,Supplies & Services           ,Comms and Computing           ,DG15,Network Maintenance,23/01/2013,334,591.67,R,CISILION LTD                  
Central Services,SupS IT,Operations & Telecomms                  ,Supplies & Services           ,Comms and Computing           ,DG15,Network Maintenance,08/02/2013,335,"9,750.00",R,AXIAL SYSTEMS                 
Central Services,SupS IT,Operations & Telecomms                  ,Supplies & Services           ,Comms and Computing           ,DG15,Network Maintenance,01/02/2013,336,"6,011.25",R,NEW NET TECHNOLOGIES          
Central Services,SupS IT,Operations & Telecomms                  ,Supplies & Services           ,Comms and Computing           ,DG54,Corporate Telephones,29/01/2013,337,"1,035.00",R,O2 (UK) LIMITED               
Central Services,SupS IT,Operations & Telecomms                  ,Supplies & Services           ,Comms and Computing           ,DG54,Corporate Telephones,02/02/2013,338,"3,854.19",R,COLT TELECOMMUNICATIONS       
Central Services,SupS IT,Operations & Telecomms                  ,Supplies & Services           ,Comms and Computing           ,DG54,Corporate Telephones,04/02/2013,339,"10,283.79",R,T MOBILE (UK)                 
Central Services,SupS IT,Distributed Services                    ,Supplies & Services           ,Equip Furniture/Materials     ,DA65,Application Licenses,23/01/2013,340,"23,995.00",R,COMPUTERLAND                  
Central Services,SupS IT,Distributed Services                    ,Supplies & Services           ,Equip Furniture/Materials     ,DA65,Application Licenses,23/01/2013,341,"17,098.90",R,COMPUTERLAND                  
Central Services,SupS IT,Distributed Services                    ,Supplies & Services           ,Equip Furniture/Materials     ,DA65,Application Licenses,15/01/2013,342,"4,320.00",R,COMPUTERLAND                  
Central Services,SupS IT,Distributed Services                    ,Supplies & Services           ,Equip Furniture/Materials     ,DA65,Application Licenses,23/01/2013,343,"9,800.00",R,COMPUTERLAND                  
Central Services,SupS IT,Distributed Services                    ,Supplies & Services           ,Comms and Computing           ,DG63,Software Licences - Data,10/01/2013,344,"12,000.00",R,DUE NORTH LTD                 
Central Services,SupS IT,Distributed Services                    ,Supplies & Services           ,Comms and Computing           ,DG63,Software Licences - Data,01/01/2013,345,"1,200.00",R,GEOPLAN                       
Central Services,SupS IT,Distributed Services                    ,Supplies & Services           ,Comms and Computing           ,DG63,Software Licences - Data,18/12/2012,346,"1,260.00",R,PROCESSFLOWS UK LTD           
Central Services,SupS IT,Distributed Services                    ,Supplies & Services           ,Comms and Computing           ,DG65,Application Licences,24/01/2013,347,"1,522.82",R,CIVICA UK LIMITED             
Central Services,SupS IT,Facilities Magt Cptal Works             ,Premises Related Expenditure  ,RepairsAlterations&MtceOfBldgs,BA01,DDM - General Building,29/01/2013,348,"25,159.66",R,SALTASH ENTERPRISES LTD       
Central Services,SupS IT,Facilities Magt Cptal Works             ,Premises Related Expenditure  ,RepairsAlterations&MtceOfBldgs,BA29,Build Maint Mgt Fees,29/01/2013,349,532,R,EDE'S (U.K.) LTD              
Central Services,SupS IT,Facilities Magt Cptal Works             ,Premises Related Expenditure  ,RepairsAlterations&MtceOfBldgs,BA29,Build Maint Mgt Fees,29/01/2013,350,582,R,EDE'S (U.K.) LTD              
Central Services,SupS IT,Facilities Magt Cptal Works             ,Premises Related Expenditure  ,RepairsAlterations&MtceOfBldgs,BA29,Build Maint Mgt Fees,19/02/2013,351,"2,725.80",R,UNIQUE OFFICE SOLUTIONS LTD   
Central Services,SupS IT,Facilities Magt Cptal Works             ,Premises Related Expenditure  ,RepairsAlterations&MtceOfBldgs,BA29,Build Maint Mgt Fees,19/02/2013,352,"4,630.50",R,UNIQUE OFFICE SOLUTIONS LTD   
Central Services,SupS IT,Facilities Magt Cptal Works             ,Premises Related Expenditure  ,RepairsAlterations&MtceOfBldgs,BA29,Build Maint Mgt Fees,19/02/2013,353,"2,589.48",R,UNIQUE OFFICE SOLUTIONS LTD   
Central Services,SupS IT,Customer Contact Programme              ,Employees                     ,Direct Employee Expenses      ,AA17,Agency Staff & Casual Paymts,30/01/2013,354,"6,700.00",R,REDACTED
Central Services,SupS IT,Customer Contact Programme              ,Employees                     ,Direct Employee Expenses      ,AA17,Agency Staff & Casual Paymts,18/02/2013,355,"6,700.00",R,REDACTED
Cultural Env Reg&Plan Services,Mgt & Support (Env),Senior Mgt. - E.S.C.                    ,Supplies & Services           ,Services                      ,DF03,Consultants,07/12/2012,356,"1,610.48",R,EUNOMIA RESEARCH & CONSULTING 
Cultural Env Reg&Plan Services,Mgt & Support (Env),Senior Mgt. - E.S.C.                    ,Supplies & Services           ,Services                      ,DF03,Consultants,09/01/2013,357,"13,333.33",R,REDQUADRANT LTD               
Cultural Env Reg&Plan Services,Mgt & Support (Env),Senior Mgt. - E.S.C.                    ,Supplies & Services           ,Services                      ,DF11,Counsel's fees,11/01/2013,358,797.5,R,REDACTED
Highways & Transport Services,Hwys/Rds (struct) not split,Surf Water Drainage                     ,Third Party Payments          ,Private Contractors           ,EH56,Carriageway/Fway Maint,26/01/2013,359,"4,228.91",R,FM CONWAY LTD                 
Highways & Transport Services,Hwys/Rds (struct) not split,Surf Water Drainage                     ,Third Party Payments          ,Private Contractors           ,EH56,Carriageway/Fway Maint,05/02/2013,360,598.45,R,FM CONWAY LTD                 
Highways & Transport Services,Repair prin/oth rds not split,Walk Sheets                             ,Third Party Payments          ,Private Contractors           ,EH56,Carriageway/Fway Maint,05/02/2013,361,"8,873.47",R,FM CONWAY LTD                 
Highways & Transport Services,Repair prin/oth rds not split,Walk Sheets                             ,Third Party Payments          ,Private Contractors           ,EH56,Carriageway/Fway Maint,05/02/2013,362,"2,534.64",R,FM CONWAY LTD                 
Highways & Transport Services,Repair prin/oth rds not split,Walk Sheets                             ,Third Party Payments          ,Private Contractors           ,EH56,Carriageway/Fway Maint,15/02/2013,363,"1,432.68",R,FM CONWAY LTD                 
Highways & Transport Services,Saf mtc prin/oth rds not split,Traffic Signs.                          ,Third Party Payments          ,Private Contractors           ,EH01,Miscellaneous Contrct Services,15/02/2013,364,521.55,R,FM CONWAY LTD                 
Highways & Transport Services,Saf mtc prin/oth rds not split,Traffic Signals .                       ,Third Party Payments          ,Other Agencies                ,EJ57,Traffic Signals Control Unit,17/01/2013,365,"76,361.60",R,TRANSPORT FOR LONDON          
Highways & Transport Services,TRAF & HWYS CAPITAL PROJECTS,TRAF & HWYS CAPITAL PROJECTS         ,Third Party Payments          ,Private Contractors           ,EH56,Carriageway/Fway Maint,05/02/2013,366,"2,870.04",R,FM CONWAY LTD                 
Highways & Transport Services,TRAF & HWYS CAPITAL PROJECTS,TRAF & HWYS CAPITAL PROJECTS         ,Third Party Payments          ,Private Contractors           ,EH56,Carriageway/Fway Maint,05/02/2013,367,524.16,R,FM CONWAY LTD                 
Highways & Transport Services,Transport Plg/Policy/Strategy,CPZ implementation & Consultat          ,Third Party Payments          ,Private Contractors           ,EH56,Carriageway/Fway Maint,24/01/2013,368,"15,490.00",R,PARKEON LTD                   
Highways & Transport Services,Transport Plg/Policy/Strategy,CPZ implementation & Consultat          ,Third Party Payments          ,Private Contractors           ,EH56,Carriageway/Fway Maint,28/01/2013,369,"4,167.42",R,FM CONWAY LTD                 
Highways & Transport Services,Transport Plg/Policy/Strategy,CPZ implementation & Consultat          ,Third Party Payments          ,Private Contractors           ,EH56,Carriageway/Fway Maint,28/01/2013,370,"1,466.29",R,FM CONWAY LTD                 
Highways & Transport Services,Transport Plg/Policy/Strategy,CPZ implementation & Consultat          ,Third Party Payments          ,Private Contractors           ,EH56,Carriageway/Fway Maint,28/01/2013,371,"1,915.03",R,FM CONWAY LTD                 
Highways & Transport Services,Transport Plg/Policy/Strategy,CPZ implementation & Consultat          ,Third Party Payments          ,Private Contractors           ,EH56,Carriageway/Fway Maint,28/01/2013,372,"3,701.79",R,FM CONWAY LTD                 
Highways & Transport Services,Transport Plg/Policy/Strategy,CPZ implementation & Consultat          ,Third Party Payments          ,Private Contractors           ,EH56,Carriageway/Fway Maint,05/02/2013,373,675.38,R,FM CONWAY LTD                 
Highways & Transport Services,Traffic Management,Tr Man & Accid Sch                      ,Supplies & Services           ,Services                      ,DF02,Misc Advertising/Publicity,16/02/2013,374,762.3,R,NEWSQUEST (LONDON)LTD         
Highways & Transport Services,Street Lighting.,Street Lighting .                       ,Premises Related Expenditure  ,Energy Costs                  ,BB02,Electricity,01/02/2013,375,"63,389.64",R,KENT COUNTY COUNCIL           
Highways & Transport Services,Street Lighting.,Street Lighting .                       ,Premises Related Expenditure  ,Energy Costs                  ,BB02,Electricity,01/02/2013,376,"63,389.66",R,KENT COUNTY COUNCIL           
Highways & Transport Services,Street Lighting.,Street Lighting .                       ,Premises Related Expenditure  ,Energy Costs                  ,BB02,Electricity,01/02/2013,377,"61,346.69",R,KENT COUNTY COUNCIL           
Highways & Transport Services,Street Lighting.,Street Lighting .                       ,Third Party Payments          ,Private Contractors           ,EH01,Miscellaneous Contrct Services,23/01/2013,378,644,R,UK POWER NETWORKS (OPERATIONS)
Highways & Transport Services,Street Lighting.,Street Lighting .                       ,Third Party Payments          ,Private Contractors           ,EH01,Miscellaneous Contrct Services,22/02/2013,379,"13,947.98",R,MAY GURNEY LTD T/A CARTLEDGE  
Highways & Transport Services,Street Lighting.,Street Lighting .                       ,Third Party Payments          ,Private Contractors           ,EH01,Miscellaneous Contrct Services,18/02/2013,380,"2,014.23",R,MAY GURNEY LTD T/A CARTLEDGE  
Highways & Transport Services,Street Lighting.,Street Lighting .                       ,Third Party Payments          ,Private Contractors           ,EH01,Miscellaneous Contrct Services,18/02/2013,381,616.38,R,MAY GURNEY LTD T/A CARTLEDGE  
Highways & Transport Services,Street Lighting.,Street Lighting .                       ,Third Party Payments          ,Private Contractors           ,EH01,Miscellaneous Contrct Services,22/02/2013,382,"2,907.34",R,MAY GURNEY LTD T/A CARTLEDGE  
Highways & Transport Services,Off-street parking,Morden Station                          ,Premises Related Expenditure  ,Rents                         ,BC03,Room/venue rental hire,25/02/2013,383,961.54,R,EVERSHEDS LLP                 
Highways & Transport Services,Off-street parking,Morden Station                          ,Premises Related Expenditure  ,Rents                         ,BC03,Room/venue rental hire,25/02/2013,384,"47,756.45",R,EVERSHEDS LLP                 
Highways & Transport Services,Off-street parking,St. Georges Car Park WEST M/S           ,Premises Related Expenditure  ,Rents                         ,BC01,Miscellaneous Rents,16/02/2013,385,"2,118.86",R,SACKVILLE SPF IV (GP) NO 1 LTD
Highways & Transport Services,Safe routes inc schl x patrol,MERTON PRIORY (S106)                    ,Third Party Payments          ,Private Contractors           ,EH02,Miscellaneous Hired Services,21/01/2013,386,750,R,CITY&URBAN PEST CONT&HYGIENE  
Highways & Transport Services,Parking Enforcement not split,Civil Enforcement Officers              ,Supplies & Services           ,Expenses                      ,DH02,Conferences,13/02/2013,387,600,R,LONDON BOROUGH OF CAMDEN(AR)  
Highways & Transport Services,Parking Enforcement not split,Operational Running Costs               ,Supplies & Services           ,Prntng Stnry Gen Off Exp      ,DE01,External Printing,30/01/2013,388,"1,754.40",R,NAGELS UK LTD                 
Highways & Transport Services,Parking Enforcement not split,Operational Running Costs               ,Supplies & Services           ,Comms and Computing           ,DG61,Computer Servs Special,31/01/2013,389,"1,300.00",R,IMPERIAL CIVIL ENFORC.SOLUT.  
Highways & Transport Services,Parking Enforcement not split,Operational Running Costs               ,Supplies & Services           ,Grants and Subscriptions      ,DJ54,Contributions,05/02/2013,390,"1,040.00",R,BRITISH PARKING ASSOCIATION   
Highways & Transport Services,Parking Enforcement not split,Operational Running Costs               ,Third Party Payments          ,Other Agencies                ,EJ58,Parking Cttee for London,28/02/2013,391,"10,000.00",R,HMCTS                         
Highways & Transport Services,Transport Plg/Policy/Strategy,RASWA                                   ,Employees                     ,Indirect Employee Expenses    ,AB57,External Training Costs,31/01/2013,392,"1,261.00",R,PITNEY BOWES SOFTWARE LTD     
Highways & Transport Services,Hwys/Rds (struct) not split,Footpath Crossings.                     ,Third Party Payments          ,Private Contractors           ,EH56,Carriageway/Fway Maint,26/01/2013,393,"2,000.43",R,FM CONWAY LTD                 
Highways & Transport Services,Hwys/Rds (struct) not split,Footpath Crossings.                     ,Third Party Payments          ,Private Contractors           ,EH56,Carriageway/Fway Maint,26/01/2013,394,"1,353.89",R,FM CONWAY LTD                 
Highways & Transport Services,Hwys/Rds (struct) not split,Footpath Crossings.                     ,Third Party Payments          ,Private Contractors           ,EH56,Carriageway/Fway Maint,28/01/2013,395,"5,505.23",R,FM CONWAY LTD                 
Highways & Transport Services,Hwys/Rds (struct) not split,Footpath Crossings.                     ,Third Party Payments          ,Private Contractors           ,EH56,Carriageway/Fway Maint,05/02/2013,396,"6,321.77",R,FM CONWAY LTD                 
Highways & Transport Services,Hwys/Rds (struct) not split,Footpath Crossings.                     ,Third Party Payments          ,Private Contractors           ,EH56,Carriageway/Fway Maint,05/02/2013,397,592.16,R,FM CONWAY LTD                 
Highways & Transport Services,Hwys/Rds (struct) not split,Footpath Crossings.                     ,Third Party Payments          ,Private Contractors           ,EH56,Carriageway/Fway Maint,15/02/2013,398,"2,141.13",R,FM CONWAY LTD                 
Cultural Env Reg&Plan Services,Street Clean - Not highways,Street Cleansing (Inc. Gully)           ,Premises Related Expenditure  ,Rents                         ,BC01,Miscellaneous Rents,31/01/2013,399,855.36,R,MERTON PRIORY HOMES (RENT)    
Cultural Env Reg&Plan Services,Street Clean - Not highways,Street Cleansing (Inc. Gully)           ,Supplies & Services           ,Equip Furniture/Materials     ,DA01,Equipment - R & M,31/01/2013,400,611.1,R,N A BROWN LTD                 
Cultural Env Reg&Plan Services,Street Clean - Not highways,Street Cleansing (Inc. Gully)           ,Supplies & Services           ,Equip Furniture/Materials     ,DA32,Wheeled Bins,24/01/2013,401,"1,040.00",R,UK CONTAINER MAINTENANCE LTD  
Cultural Env Reg&Plan Services,Street Clean - Not highways,Street Cleansing (Inc. Gully)           ,Supplies & Services           ,Equip Furniture/Materials     ,DA32,Wheeled Bins,01/02/2013,402,"1,071.30",R,ESE                           
Cultural Env Reg&Plan Services,Street Clean - Not highways,Street Cleansing (Inc. Gully)           ,Supplies & Services           ,Equip Furniture/Materials     ,DA32,Wheeled Bins,18/02/2013,403,"5,405.00",R,EGBERT H TAYLOR & CO LTD      
Cultural Env Reg&Plan Services,Street Clean - Not highways,Street Cleansing (Inc. Gully)           ,Supplies & Services           ,Services                      ,DF04,Miscellaneous Expenses,01/02/2013,404,700,R,GRAFFITIHOTLINE               
Cultural Env Reg&Plan Services,Waste Disposal (not separated),Waste Disposal .                        ,Third Party Payments          ,Private Contractors           ,EH66,Clinical Waste Disposal,31/01/2013,405,967.4,R,S.GRUNDON (WASTE) LTD.        
Cultural Env Reg&Plan Services,Waste Disposal (not separated),Waste Disposal .                        ,Third Party Payments          ,Private Contractors           ,EH96,Gen Waste - Alt.  Contractor  ,31/01/2013,406,"1,596.59",R,CORY ENVIRONMENTAL LIMITED    
Highways & Transport Services,Hwys/Rds (struct) not split,Grass Cut/Tr Mtce                       ,Premises Related Expenditure  ,Ground Maintenance Costs      ,BL03,Maintenance of Grounds,30/01/2013,407,540.87,R,VEOLIA ES (UK) LIMITED        
Highways & Transport Services,Hwys/Rds (struct) not split,Grass Cut/Tr Mtce                       ,Premises Related Expenditure  ,Ground Maintenance Costs      ,BL03,Maintenance of Grounds,30/01/2013,408,904.93,R,VEOLIA ES (UK) LIMITED        
Highways & Transport Services,Hwys/Rds (struct) not split,Grass Cut/Tr Mtce                       ,Premises Related Expenditure  ,Ground Maintenance Costs      ,BL03,Maintenance of Grounds,28/01/2013,409,"4,689.34",R,VEOLIA ES (UK) LIMITED        
Highways & Transport Services,Hwys/Rds (struct) not split,Grass Cut/Tr Mtce                       ,Premises Related Expenditure  ,Ground Maintenance Costs      ,BL03,Maintenance of Grounds,30/01/2013,410,"1,041.85",R,VEOLIA ES (UK) LIMITED        
Highways & Transport Services,Hwys/Rds (struct) not split,Grass Cut/Tr Mtce                       ,Premises Related Expenditure  ,Ground Maintenance Costs      ,BL03,Maintenance of Grounds,04/02/2013,411,"13,490.38",R,VEOLIA ES (UK) LIMITED        
Highways & Transport Services,Hwys/Rds (struct) not split,Grass Cut/Tr Mtce                       ,Third Party Payments          ,Private Contractors           ,EH56,Carriageway/Fway Maint,05/02/2013,412,"3,900.30",R,FM CONWAY LTD                 
Cultural Env Reg&Plan Services,Public Health,Dog Control.                            ,Third Party Payments          ,Private Contractors           ,EH02,Miscellaneous Hired Services,04/02/2013,413,"2,242.00",R,NOAH'S ARK ENVIRONMENTAL SERV.
Cultural Env Reg&Plan Services,Recycling (Collection),Recycling Activities                    ,Supplies & Services           ,Equip Furniture/Materials     ,DA04,Materials,31/01/2013,414,648,R,BROXAP LIMITED                
Cultural Env Reg&Plan Services,Recycling (Collection),BARROW AND BINS REPLACEMENT        ,Supplies & Services           ,Equip Furniture/Materials     ,DA09,Equip-Purchases,30/01/2013,415,"8,726.81",R,AMBEROL LTD                   
Cultural Env Reg&Plan Services,Recycling (Collection),Recycling Collection                    ,Supplies & Services           ,Equip Furniture/Materials     ,DA32,Wheeled Bins,23/01/2013,416,543.75,R,SPIDER UK LTD                 
Cultural Env Reg&Plan Services,Household Waste Collection,Refuse Collection (Operations)          ,Supplies & Services           ,Equip Furniture/Materials     ,DA32,Wheeled Bins,24/01/2013,417,"1,040.00",R,UK CONTAINER MAINTENANCE LTD  
Cultural Env Reg&Plan Services,Inspect/Enforce (Consumer P),Trading Standards                       ,Employees                     ,Indirect Employee Expenses    ,AB02,Recruitment Adverts,31/01/2013,418,"1,153.80",R,PENNA COMMUNICATIONS (NO 2 A/C
Cultural Env Reg&Plan Services,Inspect/Enforce (Consumer P),Trading Standards                       ,Supplies & Services           ,Services                      ,DF11,Counsel's fees,11/01/2013,419,"11,290.00",R,REDACTED
Cultural Env Reg&Plan Services,Inspect/Enforce (Consumer P),Trading Standards                       ,Supplies & Services           ,Services                      ,DF11,Counsel's fees,06/02/2013,420,"6,996.69",R,REDACTED
Cultural Env Reg&Plan Services,Inspect/Enforce (Consumer P),Trading Standards                       ,Supplies & Services           ,Grants and Subscriptions      ,DJ04,Subscriptions,08/02/2013,421,"1,500.00",R,LOTSA CIC                     
Cultural Env Reg&Plan Services,Public Health,Merton Winter Warmer Programme          ,Supplies & Services           ,Equip Furniture/Materials     ,DA09,Equip-Purchases,15/02/2013,422,"29,151.00",R,TUNSTALL TELECOM LIMITED      
Cultural Env Reg&Plan Services,Food Safety,Health & Safety                         ,Third Party Payments          ,Private Contractors           ,EH10,Contract Payments,30/01/2013,423,"2,050.00",R,PUBLIC ANALYST SCIENTIFIC SER.
Cultural Env Reg&Plan Services,Pest Control,Pest Control                            ,Supplies & Services           ,Equip Furniture/Materials     ,DA09,Equip-Purchases,08/01/2013,424,985.85,R,KILLGERM CHEMICALS LIMITED    
Cultural Env Reg&Plan Services,Housing Standards,Housing/Env                             ,Employees                     ,Direct Employee Expenses      ,AA17,Agency Staff & Casual Paymts,30/01/2013,425,829.15,R,REDACTED
Cultural Env Reg&Plan Services,Housing Standards,Housing/Env                             ,Employees                     ,Direct Employee Expenses      ,AA17,Agency Staff & Casual Paymts,06/02/2013,426,547.4,R,REDACTED
Cultural Env Reg&Plan Services,Housing Standards,Housing/Env                             ,Supplies & Services           ,Equip Furniture/Materials     ,DA09,Equip-Purchases,30/01/2013,427,"2,333.00",R,SUPPORTING U LTD              
Cultural Env Reg&Plan Services,Housing Standards,Housing/Env                             ,Supplies & Services           ,Equip Furniture/Materials     ,DA09,Equip-Purchases,15/02/2013,428,"2,700.00",R,LAMBETH SCIENTIFIC SERVICES   
Cultural Env Reg&Plan Services,Housing Standards,AIR QUALITY GRANT (DEFRA) MB            ,Third Party Payments          ,Private Contractors           ,EH02,Miscellaneous Hired Services,01/02/2013,429,"1,239.00",R,AECOM LIMITED                 
Cultural Env Reg&Plan Services,Housing Standards,AIR QUALITY GRANT (DEFRA) MB            ,Third Party Payments          ,Private Contractors           ,EH02,Miscellaneous Hired Services,23/10/2012,430,760,R,AECOM LIMITED                 
Central Services,Grants - Voluntary Groups,Vestry Hall                             ,Employees                     ,Direct Employee Expenses      ,AA17,Agency Staff & Casual Paymts,31/01/2013,431,706,R,REDACTED
Central Services,Grants - Voluntary Groups,Vestry Hall                             ,Employees                     ,Direct Employee Expenses      ,AA17,Agency Staff & Casual Paymts,11/02/2013,432,"4,486.95",R,REDACTED
Central Services,Grants - Voluntary Groups,Vestry Hall                             ,Premises Related Expenditure  ,RepairsAlterations&MtceOfBldgs,BA06,Repairs & Maintenance General,08/02/2013,433,"1,150.00",R,REDACTED
Central Services,Grants - Voluntary Groups,Vestry Hall                             ,Premises Related Expenditure  ,RepairsAlterations&MtceOfBldgs,BA06,Repairs & Maintenance General,18/02/2013,434,760,R,DAPPA MRP FLOORING            
Central Services,Grants - Voluntary Groups,Vestry Hall                             ,Premises Related Expenditure  ,Energy Costs                  ,BB02,Electricity,05/02/2013,435,"1,801.85",R,EDF ENERGY                    
Central Services,Grants - Voluntary Groups,Vestry Hall                             ,Premises Related Expenditure  ,Energy Costs                  ,BB02,Electricity,05/02/2013,436,835.03,R,EDF ENERGY                    
Central Services,Grants - Voluntary Groups,Vestry Hall                             ,Premises Related Expenditure  ,Energy Costs                  ,BB03,Gas (incl. Butane),25/01/2013,437,996.04,R,KENT COUNTY COUNCIL           
Central Services,Grants - Voluntary Groups,Vestry Hall                             ,Premises Related Expenditure  ,Energy Costs                  ,BB03,Gas (incl. Butane),25/01/2013,438,939.68,R,KENT COUNTY COUNCIL           
Central Services,Grants - Voluntary Groups,Vestry Hall                             ,Premises Related Expenditure  ,Cleaning and Domestic Supplies,BH03,Cleaning Services,01/02/2013,439,"1,338.15",R,BIRKIN CLEANING SERVICES LTD  
Cultural Env Reg&Plan Services,BC Regs & Other not split,Building Control                        ,Supplies & Services           ,Prntng Stnry Gen Off Exp      ,DE05,Micro-filming,30/01/2013,440,"2,492.20",R,DOCUMENT SCANNING SOLUTIONS LT
Cultural Env Reg&Plan Services,DC Advice Apps & Reg not split,Development Control                     ,Supplies & Services           ,Services                      ,DF02,Misc Advertising/Publicity,26/01/2013,441,527.04,R,NEWSQUEST (LONDON)LTD         
Cultural Env Reg&Plan Services,DC Advice Apps & Reg not split,Development Control                     ,Supplies & Services           ,Grants and Subscriptions      ,DJ04,Subscriptions,06/02/2013,442,990,R,HAYMARKET PUBLISHING SERV.LTD 
Cultural Env Reg&Plan Services,Planning Policy not split,REGENERATION & INVESTMENT              ,Supplies & Services           ,Services                      ,DF30,Activities Programme,12/02/2013,443,500,R,EXCALIBUR EVENTS              
Cultural Env Reg&Plan Services,Planning Policy not split,REGENERATION & INVESTMENT              ,Supplies & Services           ,Grants and Subscriptions      ,DJ01,Grants,12/02/2013,444,"6,180.00",R,REDACTED
Cultural Env Reg&Plan Services,Planning Policy not split,HPDG - FUTUREMERTON                     ,Supplies & Services           ,Services                      ,DF03,Consultants,15/02/2013,445,"1,260.00",R,PETER BEARD LANDROOM LIMITED  
Cultural Env Reg&Plan Services,Planning Policy not split,Green Deal Pioneer Places               ,Supplies & Services           ,Services                      ,DF30,Activities Programme,07/02/2013,446,"10,200.00",R,SUSTAINABLE MERTON            
Cultural Env Reg&Plan Services,Planning Policy not split,Collective Energy Switching             ,Supplies & Services           ,Services                      ,DF30,Activities Programme,01/02/2013,447,"2,833.00",R,SUSTAINABLE MERTON            
CS -Oth Operating Inc & Expend,Extraordinary Items & PY Adj.,MILES RD GENERATOR                      ,Premises Related Expenditure  ,Rents                         ,BC01,Miscellaneous Rents,23/11/2012,448,"8,000.00",R,W&R BUXTON LTD PENSION FUND   
Cultural Env Reg&Plan Services,Economic Dev (Not separated),BUSINESS SUPPORT                        ,Supplies & Services           ,Services                      ,DF03,Consultants,16/01/2013,449,"9,890.00",R,SHARED INTELLIGENCE LTD       
Cultural Env Reg&Plan Services,Economic Dev (Not separated),BUSINESS SUPPORT                        ,Supplies & Services           ,Grants and Subscriptions      ,DJ01,Grants,22/02/2013,450,"13,180.00",R,DEEN CITY FARM                
Cultural Env Reg&Plan Services,Economic Dev (Not separated),MITCHAM OLF                             ,Supplies & Services           ,Services                      ,DF03,Consultants,20/12/2012,451,"6,740.00",R,LONDON SUSTAINABILITY EXCHANGE
CS -Oth Operating Inc & Expend,T/A Vehicle Maintenance etc,Transport-Contract Hire                 ,Premises Related Expenditure  ,Energy Costs                  ,BB03,Gas (incl. Butane),25/01/2013,452,"1,477.23",R,KENT COUNTY COUNCIL           
CS -Oth Operating Inc & Expend,T/A Vehicle Maintenance etc,Transport-Contract Hire                 ,Premises Related Expenditure  ,Energy Costs                  ,BB03,Gas (incl. Butane),23/01/2013,453,697.3,R,KENT COUNTY COUNCIL           
CS -Oth Operating Inc & Expend,T/A Vehicle Maintenance etc,Transport-Contract Hire                 ,Transport Related Expenditure ,Direct Transport Costs        ,CA52,Reps Vehicles Ins Claims,24/01/2013,454,500,R,FLEETSPEED COACHWORKS LTD.    
CS -Oth Operating Inc & Expend,T/A Vehicle Maintenance etc,Transport-Contract Hire                 ,Transport Related Expenditure ,Contract Hire and Op Leasing  ,CC53,Plant Hire for MRCS,27/01/2013,455,700,R,PHOENIX VEHICLE HIRE LTD      
CS -Oth Operating Inc & Expend,T/A Vehicle Maintenance etc,Transport-Contract Hire                 ,Transport Related Expenditure ,Contract Hire and Op Leasing  ,CC53,Plant Hire for MRCS,29/01/2013,456,"1,311.00",R,GVS HIRE LTD                  
CS -Oth Operating Inc & Expend,T/A Vehicle Maintenance etc,Transport-Contract Hire                 ,Transport Related Expenditure ,Contract Hire and Op Leasing  ,CC53,Plant Hire for MRCS,28/12/2012,457,"1,083.00",R,GVS HIRE LTD                  
CS -Oth Operating Inc & Expend,T/A Vehicle Maintenance etc,Transport-Contract Hire                 ,Transport Related Expenditure ,Contract Hire and Op Leasing  ,CC53,Plant Hire for MRCS,25/01/2013,458,"2,000.00",R,NOBLET MUNICIPAL SERVICES LTD 
CS -Oth Operating Inc & Expend,T/A Vehicle Maintenance etc,Transport-Contract Hire                 ,Transport Related Expenditure ,Contract Hire and Op Leasing  ,CC53,Plant Hire for MRCS,31/01/2013,459,851,R,SHB HIRE LTD                  
CS -Oth Operating Inc & Expend,T/A Vehicle Maintenance etc,Transport-Contract Hire                 ,Transport Related Expenditure ,Contract Hire and Op Leasing  ,CC53,Plant Hire for MRCS,31/01/2013,460,851,R,SHB HIRE LTD                  
CS -Oth Operating Inc & Expend,T/A Vehicle Maintenance etc,Transport-Contract Hire                 ,Transport Related Expenditure ,Contract Hire and Op Leasing  ,CC53,Plant Hire for MRCS,31/01/2013,461,851,R,SHB HIRE LTD                  
CS -Oth Operating Inc & Expend,T/A Vehicle Maintenance etc,Transport-Contract Hire                 ,Transport Related Expenditure ,Contract Hire and Op Leasing  ,CC57,Plant Hire for Housing,20/01/2013,462,667,R,KENT COUNTY COUNCIL           
CS -Oth Operating Inc & Expend,T/A Vehicle Maintenance etc,Transport-Contract Hire                 ,Transport Related Expenditure ,Contract Hire and Op Leasing  ,CC57,Plant Hire for Housing,31/01/2013,463,940,R,REDACTED
CS -Oth Operating Inc & Expend,T/A Vehicle Maintenance etc,Transport-Contract Hire                 ,Transport Related Expenditure ,Contract Hire and Op Leasing  ,CC58,Plant Hire - Ad Hoc,21/11/2012,464,560,R,GVS HIRE LTD                  
CS -Oth Operating Inc & Expend,T/A Vehicle Maintenance etc,Transport-Contract Hire                 ,Transport Related Expenditure ,Contract Hire and Op Leasing  ,CC58,Plant Hire - Ad Hoc,21/11/2012,465,560,R,GVS HIRE LTD                  
CS -Oth Operating Inc & Expend,T/A Vehicle Maintenance etc,Transport-Contract Hire                 ,Transport Related Expenditure ,Contract Hire and Op Leasing  ,CC59,Plant Hire - Non-Rechargeable ,31/01/2013,466,"1,386.00",R,BURNT TREE VEHICLE RENTAL     
CS -Oth Operating Inc & Expend,T/A Vehicle Maintenance etc,Transport-Contract Hire                 ,Transport Related Expenditure ,Contract Hire and Op Leasing  ,CC59,Plant Hire - Non-Rechargeable ,31/01/2013,467,"1,386.00",R,BURNT TREE VEHICLE RENTAL     
CS -Oth Operating Inc & Expend,T/A Vehicle Maintenance etc,Transport-Contract Hire                 ,Transport Related Expenditure ,Contract Hire and Op Leasing  ,CC59,Plant Hire - Non-Rechargeable ,31/01/2013,468,"1,386.00",R,BURNT TREE VEHICLE RENTAL     
CS -Oth Operating Inc & Expend,T/A Vehicle Maintenance etc,Transport-Contract Hire                 ,Transport Related Expenditure ,Contract Hire and Op Leasing  ,CC59,Plant Hire - Non-Rechargeable ,31/01/2013,469,"2,238.32",R,REDACTED
CS -Oth Operating Inc & Expend,T/A Vehicle Maintenance etc,Transport-Contract Hire                 ,Transport Related Expenditure ,Contract Hire and Op Leasing  ,CC60,Vehicle Hire for LB Sutton,31/01/2013,470,"1,715.00",R,BARCLAYS ASSET & SALES FINANCE
CS -Oth Operating Inc & Expend,T/A Vehicle Maintenance etc,Transport-Contract Hire                 ,Transport Related Expenditure ,Contract Hire and Op Leasing  ,CC64,Mini Cab Hire for Education,31/01/2013,471,836,R,AERIAL CAR SERVICES LTD       
CS -Oth Operating Inc & Expend,T/A Vehicle Maintenance etc,Transport-Contract Hire                 ,Transport Related Expenditure ,Contract Hire and Op Leasing  ,CC64,Mini Cab Hire for Education,31/01/2013,472,665,R,AERIAL CAR SERVICES LTD       
CS -Oth Operating Inc & Expend,T/A Vehicle Maintenance etc,Transport-Contract Hire                 ,Transport Related Expenditure ,Contract Hire and Op Leasing  ,CC64,Mini Cab Hire for Education,31/01/2013,473,"2,720.00",R,BARCLAYS ASSET & SALES FINANCE
CS -Oth Operating Inc & Expend,T/A Vehicle Maintenance etc,Transport-Contract Hire                 ,Transport Related Expenditure ,Contract Hire and Op Leasing  ,CC64,Mini Cab Hire for Education,31/01/2013,474,"2,210.00",R,BARCLAYS ASSET & SALES FINANCE
CS -Oth Operating Inc & Expend,T/A Vehicle Maintenance etc,Transport-Contract Hire                 ,Transport Related Expenditure ,Contract Hire and Op Leasing  ,CC64,Mini Cab Hire for Education,31/01/2013,475,"1,444.00",R,BARCLAYS ASSET & SALES FINANCE
CS -Oth Operating Inc & Expend,T/A Vehicle Maintenance etc,Transport-Contract Hire                 ,Transport Related Expenditure ,Contract Hire and Op Leasing  ,CC64,Mini Cab Hire for Education,31/01/2013,476,"1,584.00",R,BARCLAYS ASSET & SALES FINANCE
CS -Oth Operating Inc & Expend,T/A Vehicle Maintenance etc,Transport-Contract Hire                 ,Transport Related Expenditure ,Contract Hire and Op Leasing  ,CC64,Mini Cab Hire for Education,31/01/2013,477,"1,584.00",R,BARCLAYS ASSET & SALES FINANCE
CS -Oth Operating Inc & Expend,T/A Vehicle Maintenance etc,Transport-Contract Hire                 ,Transport Related Expenditure ,Contract Hire and Op Leasing  ,CC64,Mini Cab Hire for Education,31/01/2013,478,624,R,BARCLAYS ASSET & SALES FINANCE
CS -Oth Operating Inc & Expend,T/A Vehicle Maintenance etc,Transport-Contract Hire                 ,Transport Related Expenditure ,Contract Hire and Op Leasing  ,CC64,Mini Cab Hire for Education,31/01/2013,479,"3,515.00",R,BARCLAYS ASSET & SALES FINANCE
CS -Oth Operating Inc & Expend,T/A Vehicle Maintenance etc,Transport-Contract Hire                 ,Transport Related Expenditure ,Contract Hire and Op Leasing  ,CC64,Mini Cab Hire for Education,31/01/2013,480,"2,380.00",R,BARCLAYS ASSET & SALES FINANCE
CS -Oth Operating Inc & Expend,T/A Vehicle Maintenance etc,Transport-Contract Hire                 ,Transport Related Expenditure ,Contract Hire and Op Leasing  ,CC64,Mini Cab Hire for Education,31/01/2013,481,"3,346.00",R,BARCLAYS ASSET & SALES FINANCE
CS -Oth Operating Inc & Expend,T/A Vehicle Maintenance etc,Transport-Contract Hire                 ,Transport Related Expenditure ,Contract Hire and Op Leasing  ,CC64,Mini Cab Hire for Education,31/01/2013,482,"1,512.00",R,NVCAR HIRE LTD                
CS -Oth Operating Inc & Expend,T/A Vehicle Maintenance etc,Transport-Contract Hire                 ,Transport Related Expenditure ,Contract Hire and Op Leasing  ,CC64,Mini Cab Hire for Education,31/01/2013,483,"2,346.00",R,NVCAR HIRE LTD                
CS -Oth Operating Inc & Expend,T/A Vehicle Maintenance etc,Transport-Contract Hire                 ,Transport Related Expenditure ,Contract Hire and Op Leasing  ,CC64,Mini Cab Hire for Education,31/01/2013,484,"1,082.00",R,NVCAR HIRE LTD                
CS -Oth Operating Inc & Expend,T/A Vehicle Maintenance etc,Transport-Contract Hire                 ,Transport Related Expenditure ,Contract Hire and Op Leasing  ,CC64,Mini Cab Hire for Education,31/01/2013,485,"2,603.00",R,NVCAR HIRE LTD                
CS -Oth Operating Inc & Expend,T/A Vehicle Maintenance etc,Transport-Contract Hire                 ,Transport Related Expenditure ,Contract Hire and Op Leasing  ,CC64,Mini Cab Hire for Education,31/01/2013,486,"1,368.00",R,NVCAR HIRE LTD                
CS -Oth Operating Inc & Expend,T/A Vehicle Maintenance etc,Transport-Contract Hire                 ,Transport Related Expenditure ,Contract Hire and Op Leasing  ,CC64,Mini Cab Hire for Education,31/01/2013,487,"1,026.00",R,NVCAR HIRE LTD                
CS -Oth Operating Inc & Expend,T/A Vehicle Maintenance etc,Transport-Contract Hire                 ,Transport Related Expenditure ,Contract Hire and Op Leasing  ,CC64,Mini Cab Hire for Education,31/01/2013,488,"1,330.00",R,NVCAR HIRE LTD                
CS -Oth Operating Inc & Expend,T/A Vehicle Maintenance etc,Transport-Contract Hire                 ,Transport Related Expenditure ,Contract Hire and Op Leasing  ,CC64,Mini Cab Hire for Education,31/01/2013,489,"1,428.00",R,BARCLAYS ASSET & SALES FINANCE
CS -Oth Operating Inc & Expend,T/A Vehicle Maintenance etc,Transport-Contract Hire                 ,Transport Related Expenditure ,Contract Hire and Op Leasing  ,CC64,Mini Cab Hire for Education,31/01/2013,490,"1,440.00",R,BARCLAYS ASSET & SALES FINANCE
CS -Oth Operating Inc & Expend,T/A Vehicle Maintenance etc,Transport-Contract Hire                 ,Transport Related Expenditure ,Contract Hire and Op Leasing  ,CC64,Mini Cab Hire for Education,31/01/2013,491,"1,260.00",R,BARCLAYS ASSET & SALES FINANCE
CS -Oth Operating Inc & Expend,T/A Vehicle Maintenance etc,Transport-Contract Hire                 ,Transport Related Expenditure ,Contract Hire and Op Leasing  ,CC64,Mini Cab Hire for Education,31/01/2013,492,735,R,BARCLAYS ASSET & SALES FINANCE
CS -Oth Operating Inc & Expend,T/A Vehicle Maintenance etc,Transport-Contract Hire                 ,Transport Related Expenditure ,Contract Hire and Op Leasing  ,CC64,Mini Cab Hire for Education,01/02/2013,493,925,R,KENDALL CARS                  
CS -Oth Operating Inc & Expend,T/A Vehicle Maintenance etc,Transport-Contract Hire                 ,Transport Related Expenditure ,Contract Hire and Op Leasing  ,CC64,Mini Cab Hire for Education,31/01/2013,494,"2,278.10",R,KINGSTON ACCESSIBILITY TRAN LT
CS -Oth Operating Inc & Expend,T/A Vehicle Maintenance etc,Transport-Contract Hire                 ,Transport Related Expenditure ,Contract Hire and Op Leasing  ,CC64,Mini Cab Hire for Education,31/01/2013,495,826,R,KINGSTON ACCESSIBILITY TRAN LT
CS -Oth Operating Inc & Expend,T/A Vehicle Maintenance etc,Transport-Contract Hire                 ,Transport Related Expenditure ,Contract Hire and Op Leasing  ,CC64,Mini Cab Hire for Education,31/01/2013,496,"1,764.00",R,KINGSTON ACCESSIBILITY TRAN LT
CS -Oth Operating Inc & Expend,T/A Vehicle Maintenance etc,Transport-Contract Hire                 ,Transport Related Expenditure ,Contract Hire and Op Leasing  ,CC64,Mini Cab Hire for Education,31/01/2013,497,"1,574.64",R,KINGSTON ACCESSIBILITY TRAN LT
CS -Oth Operating Inc & Expend,T/A Vehicle Maintenance etc,Transport-Contract Hire                 ,Transport Related Expenditure ,Contract Hire and Op Leasing  ,CC64,Mini Cab Hire for Education,31/01/2013,498,900,R,KINGSTON ACCESSIBILITY TRAN LT
CS -Oth Operating Inc & Expend,T/A Vehicle Maintenance etc,Transport-Contract Hire                 ,Transport Related Expenditure ,Contract Hire and Op Leasing  ,CC64,Mini Cab Hire for Education,31/01/2013,499,"1,428.00",R,KINGSTON ACCESSIBILITY TRAN LT
CS -Oth Operating Inc & Expend,T/A Vehicle Maintenance etc,Transport-Contract Hire                 ,Transport Related Expenditure ,Contract Hire and Op Leasing  ,CC64,Mini Cab Hire for Education,31/01/2013,500,"1,632.00",R,KINGSTON ACCESSIBILITY TRAN LT
CS -Oth Operating Inc & Expend,T/A Vehicle Maintenance etc,Transport-Contract Hire                 ,Transport Related Expenditure ,Contract Hire and Op Leasing  ,CC64,Mini Cab Hire for Education,31/01/2013,501,"2,108.00",R,KINGSTON ACCESSIBILITY TRAN LT
CS -Oth Operating Inc & Expend,T/A Vehicle Maintenance etc,Transport-Contract Hire                 ,Transport Related Expenditure ,Contract Hire and Op Leasing  ,CC64,Mini Cab Hire for Education,31/01/2013,502,"1,088.00",R,KINGSTON ACCESSIBILITY TRAN LT
CS -Oth Operating Inc & Expend,T/A Vehicle Maintenance etc,Transport-Contract Hire                 ,Transport Related Expenditure ,Contract Hire and Op Leasing  ,CC64,Mini Cab Hire for Education,31/01/2013,503,"2,520.00",R,KINGSTON ACCESSIBILITY TRAN LT
CS -Oth Operating Inc & Expend,T/A Vehicle Maintenance etc,Transport-Contract Hire                 ,Transport Related Expenditure ,Contract Hire and Op Leasing  ,CC64,Mini Cab Hire for Education,31/01/2013,504,"2,380.00",R,KINGSTON ACCESSIBILITY TRAN LT
CS -Oth Operating Inc & Expend,T/A Vehicle Maintenance etc,Transport-Contract Hire                 ,Transport Related Expenditure ,Contract Hire and Op Leasing  ,CC64,Mini Cab Hire for Education,31/01/2013,505,"1,568.00",R,KINGSTON ACCESSIBILITY TRAN LT
CS -Oth Operating Inc & Expend,T/A Vehicle Maintenance etc,Transport-Contract Hire                 ,Transport Related Expenditure ,Contract Hire and Op Leasing  ,CC64,Mini Cab Hire for Education,31/01/2013,506,"1,406.00",R,KINGSTON ACCESSIBILITY TRAN LT
CS -Oth Operating Inc & Expend,T/A Vehicle Maintenance etc,Transport-Contract Hire                 ,Transport Related Expenditure ,Contract Hire and Op Leasing  ,CC64,Mini Cab Hire for Education,31/01/2013,507,"2,335.10",R,KINGSTON ACCESSIBILITY TRAN LT
CS -Oth Operating Inc & Expend,T/A Vehicle Maintenance etc,Transport-Contract Hire                 ,Transport Related Expenditure ,Contract Hire and Op Leasing  ,CC64,Mini Cab Hire for Education,31/01/2013,508,"2,752.20",R,KINGSTON ACCESSIBILITY TRAN LT
CS -Oth Operating Inc & Expend,T/A Vehicle Maintenance etc,Transport-Contract Hire                 ,Transport Related Expenditure ,Contract Hire and Op Leasing  ,CC64,Mini Cab Hire for Education,31/01/2013,509,988,R,KINGSTON ACCESSIBILITY TRAN LT
CS -Oth Operating Inc & Expend,T/A Vehicle Maintenance etc,Transport-Contract Hire                 ,Transport Related Expenditure ,Contract Hire and Op Leasing  ,CC64,Mini Cab Hire for Education,31/01/2013,510,700,R,KINGSTON ACCESSIBILITY TRAN LT
CS -Oth Operating Inc & Expend,T/A Vehicle Maintenance etc,Transport-Contract Hire                 ,Transport Related Expenditure ,Contract Hire and Op Leasing  ,CC64,Mini Cab Hire for Education,31/01/2013,511,"2,269.16",R,KINGSTON ACCESSIBILITY TRAN LT
CS -Oth Operating Inc & Expend,T/A Vehicle Maintenance etc,Transport-Contract Hire                 ,Transport Related Expenditure ,Contract Hire and Op Leasing  ,CC64,Mini Cab Hire for Education,31/01/2013,512,"1,705.82",R,KINGSTON ACCESSIBILITY TRAN LT
CS -Oth Operating Inc & Expend,T/A Vehicle Maintenance etc,Transport-Contract Hire                 ,Transport Related Expenditure ,Contract Hire and Op Leasing  ,CC64,Mini Cab Hire for Education,31/01/2013,513,712.8,R,KINGSTON ACCESSIBILITY TRAN LT
CS -Oth Operating Inc & Expend,T/A Vehicle Maintenance etc,Transport-Contract Hire                 ,Transport Related Expenditure ,Contract Hire and Op Leasing  ,CC64,Mini Cab Hire for Education,31/01/2013,514,"1,898.10",R,KINGSTON ACCESSIBILITY TRAN LT
CS -Oth Operating Inc & Expend,T/A Vehicle Maintenance etc,Transport-Contract Hire                 ,Transport Related Expenditure ,Contract Hire and Op Leasing  ,CC64,Mini Cab Hire for Education,31/01/2013,515,"2,050.10",R,KINGSTON ACCESSIBILITY TRAN LT
CS -Oth Operating Inc & Expend,T/A Vehicle Maintenance etc,Transport-Contract Hire                 ,Transport Related Expenditure ,Contract Hire and Op Leasing  ,CC64,Mini Cab Hire for Education,31/01/2013,516,"2,345.00",R,KINGSTON ACCESSIBILITY TRAN LT
CS -Oth Operating Inc & Expend,T/A Vehicle Maintenance etc,Transport-Contract Hire                 ,Transport Related Expenditure ,Contract Hire and Op Leasing  ,CC64,Mini Cab Hire for Education,31/01/2013,517,756,R,NVCAR HIRE LTD                
CS -Oth Operating Inc & Expend,T/A Vehicle Maintenance etc,Transport-Contract Hire                 ,Transport Related Expenditure ,Contract Hire and Op Leasing  ,CC64,Mini Cab Hire for Education,31/01/2013,518,"1,224.00",R,BRUNSWICK CARS LTD            
CS -Oth Operating Inc & Expend,T/A Vehicle Maintenance etc,Transport-Contract Hire                 ,Transport Related Expenditure ,Contract Hire and Op Leasing  ,CC64,Mini Cab Hire for Education,31/01/2013,519,"2,226.00",R,BRUNSWICK CARS LTD            
CS -Oth Operating Inc & Expend,T/A Vehicle Maintenance etc,Transport-Contract Hire                 ,Transport Related Expenditure ,Contract Hire and Op Leasing  ,CC64,Mini Cab Hire for Education,31/01/2013,520,"2,380.00",R,CAPITAL CARS                  
CS -Oth Operating Inc & Expend,T/A Vehicle Maintenance etc,Transport-Contract Hire                 ,Transport Related Expenditure ,Contract Hire and Op Leasing  ,CC64,Mini Cab Hire for Education,31/01/2013,521,"1,554.00",R,CAPITAL CARS                  
CS -Oth Operating Inc & Expend,T/A Vehicle Maintenance etc,Transport-Contract Hire                 ,Transport Related Expenditure ,Contract Hire and Op Leasing  ,CC64,Mini Cab Hire for Education,31/01/2013,522,900,R,CAPITAL CARS                  
CS -Oth Operating Inc & Expend,T/A Vehicle Maintenance etc,Transport-Contract Hire                 ,Transport Related Expenditure ,Contract Hire and Op Leasing  ,CC64,Mini Cab Hire for Education,31/01/2013,523,"1,071.00",R,CAPITAL CARS                  
CS -Oth Operating Inc & Expend,T/A Vehicle Maintenance etc,Transport-Contract Hire                 ,Transport Related Expenditure ,Contract Hire and Op Leasing  ,CC64,Mini Cab Hire for Education,31/01/2013,524,"1,872.00",R,CAPITAL CARS                  
CS -Oth Operating Inc & Expend,T/A Vehicle Maintenance etc,Transport-Contract Hire                 ,Transport Related Expenditure ,Contract Hire and Op Leasing  ,CC64,Mini Cab Hire for Education,31/01/2013,525,"1,023.00",R,CAPITAL CARS                  
CS -Oth Operating Inc & Expend,T/A Vehicle Maintenance etc,Transport-Contract Hire                 ,Transport Related Expenditure ,Contract Hire and Op Leasing  ,CC64,Mini Cab Hire for Education,31/01/2013,526,"2,262.00",R,CAPITAL CARS                  
CS -Oth Operating Inc & Expend,T/A Vehicle Maintenance etc,Transport-Contract Hire                 ,Transport Related Expenditure ,Contract Hire and Op Leasing  ,CC64,Mini Cab Hire for Education,31/01/2013,527,"1,406.00",R,CAPITAL CARS                  
CS -Oth Operating Inc & Expend,T/A Vehicle Maintenance etc,Transport-Contract Hire                 ,Transport Related Expenditure ,Contract Hire and Op Leasing  ,CC64,Mini Cab Hire for Education,31/01/2013,528,"2,014.00",R,CAPITAL CARS                  
CS -Oth Operating Inc & Expend,T/A Vehicle Maintenance etc,Transport-Contract Hire                 ,Transport Related Expenditure ,Contract Hire and Op Leasing  ,CC64,Mini Cab Hire for Education,31/01/2013,529,900,R,CAPITAL CARS                  
CS -Oth Operating Inc & Expend,T/A Vehicle Maintenance etc,Transport-Contract Hire                 ,Transport Related Expenditure ,Contract Hire and Op Leasing  ,CC64,Mini Cab Hire for Education,31/01/2013,530,665,R,CAPITAL CARS                  
CS -Oth Operating Inc & Expend,T/A Vehicle Maintenance etc,Transport-Contract Hire                 ,Transport Related Expenditure ,Contract Hire and Op Leasing  ,CC64,Mini Cab Hire for Education,31/01/2013,531,665,R,CAPITAL CARS                  
CS -Oth Operating Inc & Expend,T/A Vehicle Maintenance etc,Transport-Contract Hire                 ,Transport Related Expenditure ,Contract Hire and Op Leasing  ,CC64,Mini Cab Hire for Education,31/01/2013,532,627,R,CAPITAL CARS                  
CS -Oth Operating Inc & Expend,T/A Vehicle Maintenance etc,Transport-Contract Hire                 ,Transport Related Expenditure ,Contract Hire and Op Leasing  ,CC64,Mini Cab Hire for Education,31/01/2013,533,"1,254.00",R,SILVERBURN FINANCE (UK) LTD   
CS -Oth Operating Inc & Expend,T/A Vehicle Maintenance etc,Transport-Contract Hire                 ,Transport Related Expenditure ,Contract Hire and Op Leasing  ,CC64,Mini Cab Hire for Education,31/01/2013,534,760,R,SILVERBURN FINANCE (UK) LTD   
CS -Oth Operating Inc & Expend,T/A Vehicle Maintenance etc,Transport-Contract Hire                 ,Transport Related Expenditure ,Contract Hire and Op Leasing  ,CC64,Mini Cab Hire for Education,31/01/2013,535,"1,824.00",R,SILVERBURN FINANCE (UK) LTD   
CS -Oth Operating Inc & Expend,T/A Vehicle Maintenance etc,Transport-Contract Hire                 ,Transport Related Expenditure ,Contract Hire and Op Leasing  ,CC64,Mini Cab Hire for Education,31/01/2013,536,646,R,SILVERBURN FINANCE (UK) LTD   
CS -Oth Operating Inc & Expend,T/A Vehicle Maintenance etc,Transport-Contract Hire                 ,Transport Related Expenditure ,Contract Hire and Op Leasing  ,CC64,Mini Cab Hire for Education,31/01/2013,537,"1,554.00",R,SILVERBURN FINANCE (UK) LTD   
CS -Oth Operating Inc & Expend,T/A Vehicle Maintenance etc,Transport-Contract Hire                 ,Transport Related Expenditure ,Contract Hire and Op Leasing  ,CC64,Mini Cab Hire for Education,31/01/2013,538,777.1,R,SILVERBURN FINANCE (UK) LTD   
CS -Oth Operating Inc & Expend,T/A Vehicle Maintenance etc,Transport-Contract Hire                 ,Transport Related Expenditure ,Contract Hire and Op Leasing  ,CC64,Mini Cab Hire for Education,31/01/2013,539,"3,230.00",R,SILVERBURN FINANCE (UK) LTD   
CS -Oth Operating Inc & Expend,T/A Vehicle Maintenance etc,Transport-Contract Hire                 ,Transport Related Expenditure ,Contract Hire and Op Leasing  ,CC64,Mini Cab Hire for Education,31/01/2013,540,"1,824.00",R,SILVERBURN FINANCE (UK) LTD   
CS -Oth Operating Inc & Expend,T/A Vehicle Maintenance etc,Transport-Contract Hire                 ,Transport Related Expenditure ,Contract Hire and Op Leasing  ,CC64,Mini Cab Hire for Education,31/01/2013,541,684,R,SILVERBURN FINANCE (UK) LTD   
CS -Oth Operating Inc & Expend,T/A Vehicle Maintenance etc,Transport-Contract Hire                 ,Transport Related Expenditure ,Contract Hire and Op Leasing  ,CC64,Mini Cab Hire for Education,31/01/2013,542,912,R,SILVERBURN FINANCE (UK) LTD   
CS -Oth Operating Inc & Expend,T/A Vehicle Maintenance etc,Transport-Contract Hire                 ,Transport Related Expenditure ,Contract Hire and Op Leasing  ,CC64,Mini Cab Hire for Education,31/01/2013,543,"1,064.00",R,SILVERBURN FINANCE (UK) LTD   
CS -Oth Operating Inc & Expend,T/A Vehicle Maintenance etc,Transport-Contract Hire                 ,Transport Related Expenditure ,Contract Hire and Op Leasing  ,CC64,Mini Cab Hire for Education,31/01/2013,544,"1,596.00",R,SILVERBURN FINANCE (UK) LTD   
CS -Oth Operating Inc & Expend,T/A Vehicle Maintenance etc,Transport-Contract Hire                 ,Transport Related Expenditure ,Contract Hire and Op Leasing  ,CC64,Mini Cab Hire for Education,31/01/2013,545,616,R,A STAR TRANSPORT LIMITED      
CS -Oth Operating Inc & Expend,T/A Vehicle Maintenance etc,Transport-Contract Hire                 ,Transport Related Expenditure ,Contract Hire and Op Leasing  ,CC64,Mini Cab Hire for Education,31/01/2013,546,918,R,A STAR TRANSPORT LIMITED      
CS -Oth Operating Inc & Expend,T/A Vehicle Maintenance etc,Transport-Contract Hire                 ,Transport Related Expenditure ,Contract Hire and Op Leasing  ,CC64,Mini Cab Hire for Education,31/01/2013,547,806,R,A STAR TRANSPORT LIMITED      
CS -Oth Operating Inc & Expend,T/A Vehicle Maintenance etc,Transport-Contract Hire                 ,Transport Related Expenditure ,Contract Hire and Op Leasing  ,CC64,Mini Cab Hire for Education,31/01/2013,548,725,R,GALPINS SERVICE               
CS -Oth Operating Inc & Expend,T/A Vehicle Maintenance etc,Transport-Contract Hire                 ,Transport Related Expenditure ,Contract Hire and Op Leasing  ,CC64,Mini Cab Hire for Education,31/01/2013,549,720,R,GALPINS SERVICE               
CS -Oth Operating Inc & Expend,T/A Vehicle Maintenance etc,Transport-Contract Hire                 ,Transport Related Expenditure ,Contract Hire and Op Leasing  ,CC64,Mini Cab Hire for Education,31/01/2013,550,"1,070.67",R,GALPINS SERVICE               
CS -Oth Operating Inc & Expend,T/A Vehicle Maintenance etc,Transport-Contract Hire                 ,Transport Related Expenditure ,Contract Hire and Op Leasing  ,CC64,Mini Cab Hire for Education,31/01/2013,551,825,R,GALPINS SERVICE               
CS -Oth Operating Inc & Expend,T/A Vehicle Maintenance etc,Transport-Contract Hire                 ,Transport Related Expenditure ,Contract Hire and Op Leasing  ,CC64,Mini Cab Hire for Education,30/01/2013,552,814,R,GALPINS SERVICE               
CS -Oth Operating Inc & Expend,T/A Vehicle Maintenance etc,Transport-Contract Hire                 ,Transport Related Expenditure ,Contract Hire and Op Leasing  ,CC64,Mini Cab Hire for Education,31/01/2013,553,660,R,GALPINS SERVICE               
CS -Oth Operating Inc & Expend,T/A Vehicle Maintenance etc,Transport-Contract Hire                 ,Transport Related Expenditure ,Contract Hire and Op Leasing  ,CC64,Mini Cab Hire for Education,31/01/2013,554,"1,346.06",R,KINGSTON ACCESSIBILITY TRAN LT
CS -Oth Operating Inc & Expend,T/A Vehicle Maintenance etc,Transport-Contract Hire                 ,Transport Related Expenditure ,Contract Hire and Op Leasing  ,CC64,Mini Cab Hire for Education,31/01/2013,555,"2,016.00",R,SILVERBURN FINANCE (UK) LTD   
CS -Oth Operating Inc & Expend,T/A Vehicle Maintenance etc,Transport-Contract Hire                 ,Transport Related Expenditure ,Contract Hire and Op Leasing  ,CC64,Mini Cab Hire for Education,31/01/2013,556,532,R,SILVERBURN FINANCE (UK) LTD   
CS -Oth Operating Inc & Expend,T/A Vehicle Maintenance etc,Transport-Contract Hire                 ,Transport Related Expenditure ,Contract Hire and Op Leasing  ,CC64,Mini Cab Hire for Education,31/01/2013,557,"2,991.36",R,SILVERBURN FINANCE (UK) LTD   
CS -Oth Operating Inc & Expend,T/A Vehicle Maintenance etc,Transport-Contract Hire                 ,Transport Related Expenditure ,Contract Hire and Op Leasing  ,CC64,Mini Cab Hire for Education,31/01/2013,558,"1,140.00",R,SILVERBURN FINANCE (UK) LTD   
CS -Oth Operating Inc & Expend,T/A Vehicle Maintenance etc,Transport-Contract Hire                 ,Transport Related Expenditure ,Contract Hire and Op Leasing  ,CC64,Mini Cab Hire for Education,31/01/2013,559,"1,368.00",R,SILVERBURN FINANCE (UK) LTD   
CS -Oth Operating Inc & Expend,T/A Vehicle Maintenance etc,Transport-Contract Hire                 ,Transport Related Expenditure ,Contract Hire and Op Leasing  ,CC64,Mini Cab Hire for Education,31/01/2013,560,"1,358.50",R,SILVERBURN FINANCE (UK) LTD   
CS -Oth Operating Inc & Expend,T/A Vehicle Maintenance etc,Transport-Contract Hire                 ,Transport Related Expenditure ,Contract Hire and Op Leasing  ,CC64,Mini Cab Hire for Education,31/01/2013,561,558,R,CHEAM STATION CARS            
CS -Oth Operating Inc & Expend,T/A Vehicle Maintenance etc,Transport-Contract Hire                 ,Transport Related Expenditure ,Contract Hire and Op Leasing  ,CC64,Mini Cab Hire for Education,31/01/2013,562,"1,080.00",R,CHEAM STATION CARS            
CS -Oth Operating Inc & Expend,T/A Vehicle Maintenance etc,Transport-Contract Hire                 ,Transport Related Expenditure ,Contract Hire and Op Leasing  ,CC64,Mini Cab Hire for Education,31/01/2013,563,"1,715.00",R,BARCLAYS ASSET & SALES FINANCE
CS -Oth Operating Inc & Expend,T/A Vehicle Maintenance etc,Transport-Contract Hire                 ,Transport Related Expenditure ,Contract Hire and Op Leasing  ,CC64,Mini Cab Hire for Education,26/01/2013,564,"2,850.00",R,WALLINGTON CARS & COURIERS LTD
CS -Oth Operating Inc & Expend,T/A Vehicle Maintenance etc,Transport-Contract Hire                 ,Transport Related Expenditure ,Contract Hire and Op Leasing  ,CC64,Mini Cab Hire for Education,30/11/2012,565,"-1,485.00",R,CAPITAL CARS                  
CS -Oth Operating Inc & Expend,T/A Vehicle Maintenance etc,Transport-Contract Hire                 ,Transport Related Expenditure ,Contract Hire and Op Leasing  ,CC64,Mini Cab Hire for Education,30/11/2012,566,-837,R,CAPITAL CARS                  
CS -Oth Operating Inc & Expend,T/A Vehicle Maintenance etc,Transport-Contract Hire                 ,Transport Related Expenditure ,Contract Hire and Op Leasing  ,CC66,Mini Cab Hire -Soc Serv -Child,31/01/2013,567,"2,101.20",R,KINGSTON ACCESSIBILITY TRAN LT
CS -Oth Operating Inc & Expend,T/A Vehicle Maintenance etc,Transport-Contract Hire                 ,Transport Related Expenditure ,Contract Hire and Op Leasing  ,CC66,Mini Cab Hire -Soc Serv -Child,31/01/2013,568,"2,039.66",R,KINGSTON ACCESSIBILITY TRAN LT
CS -Oth Operating Inc & Expend,T/A Vehicle Maintenance etc,Transport-Contract Hire                 ,Transport Related Expenditure ,Contract Hire and Op Leasing  ,CC66,Mini Cab Hire -Soc Serv -Child,31/01/2013,569,685.67,R,GALPINS SERVICE               
CS -Oth Operating Inc & Expend,T/A Vehicle Maintenance etc,Transport-Contract Hire                 ,Transport Related Expenditure ,Contract Hire and Op Leasing  ,CC67,Mini Cab Hire -Soc Serv -Adult,31/01/2013,570,888,R,AERIAL CAR SERVICES LTD       
CS -Oth Operating Inc & Expend,T/A Vehicle Maintenance etc,Transport-Contract Hire                 ,Transport Related Expenditure ,Contract Hire and Op Leasing  ,CC67,Mini Cab Hire -Soc Serv -Adult,31/01/2013,571,880,R,AERIAL CAR SERVICES LTD       
CS -Oth Operating Inc & Expend,T/A Vehicle Maintenance etc,Transport-Contract Hire                 ,Transport Related Expenditure ,Contract Hire and Op Leasing  ,CC67,Mini Cab Hire -Soc Serv -Adult,31/01/2013,572,576,R,BARCLAYS ASSET & SALES FINANCE
CS -Oth Operating Inc & Expend,T/A Vehicle Maintenance etc,Transport-Contract Hire                 ,Transport Related Expenditure ,Contract Hire and Op Leasing  ,CC67,Mini Cab Hire -Soc Serv -Adult,31/01/2013,573,792,R,BARCLAYS ASSET & SALES FINANCE
CS -Oth Operating Inc & Expend,T/A Vehicle Maintenance etc,Transport-Contract Hire                 ,Transport Related Expenditure ,Contract Hire and Op Leasing  ,CC67,Mini Cab Hire -Soc Serv -Adult,31/01/2013,574,704,R,BARCLAYS ASSET & SALES FINANCE
CS -Oth Operating Inc & Expend,T/A Vehicle Maintenance etc,Transport-Contract Hire                 ,Transport Related Expenditure ,Contract Hire and Op Leasing  ,CC67,Mini Cab Hire -Soc Serv -Adult,31/01/2013,575,"1,456.00",R,NVCAR HIRE LTD                
CS -Oth Operating Inc & Expend,T/A Vehicle Maintenance etc,Transport-Contract Hire                 ,Transport Related Expenditure ,Contract Hire and Op Leasing  ,CC67,Mini Cab Hire -Soc Serv -Adult,31/01/2013,576,"1,246.00",R,NVCAR HIRE LTD                
CS -Oth Operating Inc & Expend,T/A Vehicle Maintenance etc,Transport-Contract Hire                 ,Transport Related Expenditure ,Contract Hire and Op Leasing  ,CC67,Mini Cab Hire -Soc Serv -Adult,31/01/2013,577,512,R,BARCLAYS ASSET & SALES FINANCE
CS -Oth Operating Inc & Expend,T/A Vehicle Maintenance etc,Transport-Contract Hire                 ,Transport Related Expenditure ,Contract Hire and Op Leasing  ,CC67,Mini Cab Hire -Soc Serv -Adult,31/01/2013,578,784,R,BARCLAYS ASSET & SALES FINANCE
CS -Oth Operating Inc & Expend,T/A Vehicle Maintenance etc,Transport-Contract Hire                 ,Transport Related Expenditure ,Contract Hire and Op Leasing  ,CC67,Mini Cab Hire -Soc Serv -Adult,31/01/2013,579,720,R,KINGSTON ACCESSIBILITY TRAN LT
CS -Oth Operating Inc & Expend,T/A Vehicle Maintenance etc,Transport-Contract Hire                 ,Transport Related Expenditure ,Contract Hire and Op Leasing  ,CC67,Mini Cab Hire -Soc Serv -Adult,31/01/2013,580,"1,705.82",R,KINGSTON ACCESSIBILITY TRAN LT
CS -Oth Operating Inc & Expend,T/A Vehicle Maintenance etc,Transport-Contract Hire                 ,Transport Related Expenditure ,Contract Hire and Op Leasing  ,CC67,Mini Cab Hire -Soc Serv -Adult,31/01/2013,581,"1,538.58",R,KINGSTON ACCESSIBILITY TRAN LT
CS -Oth Operating Inc & Expend,T/A Vehicle Maintenance etc,Transport-Contract Hire                 ,Transport Related Expenditure ,Contract Hire and Op Leasing  ,CC67,Mini Cab Hire -Soc Serv -Adult,31/01/2013,582,"1,485.00",R,KINGSTON ACCESSIBILITY TRAN LT
CS -Oth Operating Inc & Expend,T/A Vehicle Maintenance etc,Transport-Contract Hire                 ,Transport Related Expenditure ,Contract Hire and Op Leasing  ,CC67,Mini Cab Hire -Soc Serv -Adult,31/01/2013,583,967.2,R,KINGSTON ACCESSIBILITY TRAN LT
CS -Oth Operating Inc & Expend,T/A Vehicle Maintenance etc,Transport-Contract Hire                 ,Transport Related Expenditure ,Contract Hire and Op Leasing  ,CC67,Mini Cab Hire -Soc Serv -Adult,31/01/2013,584,840,R,KINGSTON ACCESSIBILITY TRAN LT
CS -Oth Operating Inc & Expend,T/A Vehicle Maintenance etc,Transport-Contract Hire                 ,Transport Related Expenditure ,Contract Hire and Op Leasing  ,CC67,Mini Cab Hire -Soc Serv -Adult,31/01/2013,585,"1,470.00",R,CAPITAL CARS                  
CS -Oth Operating Inc & Expend,T/A Vehicle Maintenance etc,Transport-Contract Hire                 ,Transport Related Expenditure ,Contract Hire and Op Leasing  ,CC67,Mini Cab Hire -Soc Serv -Adult,31/01/2013,586,784,R,CAPITAL CARS                  
CS -Oth Operating Inc & Expend,T/A Vehicle Maintenance etc,Transport-Contract Hire                 ,Transport Related Expenditure ,Contract Hire and Op Leasing  ,CC67,Mini Cab Hire -Soc Serv -Adult,31/01/2013,587,"1,034.00",R,CAPITAL CARS                  
CS -Oth Operating Inc & Expend,T/A Vehicle Maintenance etc,Transport-Contract Hire                 ,Transport Related Expenditure ,Contract Hire and Op Leasing  ,CC67,Mini Cab Hire -Soc Serv -Adult,31/01/2013,588,"1,152.00",R,A STAR TRANSPORT LIMITED      
CS -Oth Operating Inc & Expend,T/A Vehicle Maintenance etc,Transport-Contract Hire                 ,Transport Related Expenditure ,Contract Hire and Op Leasing  ,CC67,Mini Cab Hire -Soc Serv -Adult,31/01/2013,589,664,R,GALPINS SERVICE               
CS -Oth Operating Inc & Expend,T/A Vehicle Maintenance etc,Transport-Contract Hire                 ,Transport Related Expenditure ,Contract Hire and Op Leasing  ,CC68,Vehicle Hire Special Projects,31/01/2013,590,"1,209.50",R,BARCLAYS ASSET & SALES FINANCE
CS -Oth Operating Inc & Expend,T/A Vehicle Maintenance etc,Transport-Contract Hire                 ,Transport Related Expenditure ,Contract Hire and Op Leasing  ,CC68,Vehicle Hire Special Projects,31/01/2013,591,882,R,BARCLAYS ASSET & SALES FINANCE
CS -Oth Operating Inc & Expend,T/A Vehicle Maintenance etc,Transport-Contract Hire                 ,Transport Related Expenditure ,Contract Hire and Op Leasing  ,CC68,Vehicle Hire Special Projects,31/01/2013,592,"2,844.00",R,BARCLAYS ASSET & SALES FINANCE
CS -Oth Operating Inc & Expend,T/A Vehicle Maintenance etc,Transport-Contract Hire                 ,Transport Related Expenditure ,Contract Hire and Op Leasing  ,CC68,Vehicle Hire Special Projects,01/02/2013,593,800,R,KENDALL CARS                  
CS -Oth Operating Inc & Expend,T/A Vehicle Maintenance etc,Transport-Contract Hire                 ,Transport Related Expenditure ,Contract Hire and Op Leasing  ,CC68,Vehicle Hire Special Projects,31/01/2013,594,"2,323.24",R,KINGSTON ACCESSIBILITY TRAN LT
CS -Oth Operating Inc & Expend,T/A Vehicle Maintenance etc,Transport-Contract Hire                 ,Transport Related Expenditure ,Contract Hire and Op Leasing  ,CC68,Vehicle Hire Special Projects,31/01/2013,595,"2,622.00",R,KINGSTON ACCESSIBILITY TRAN LT
CS -Oth Operating Inc & Expend,T/A Vehicle Maintenance etc,Transport-Contract Hire                 ,Transport Related Expenditure ,Contract Hire and Op Leasing  ,CC68,Vehicle Hire Special Projects,31/01/2013,596,832.2,R,KINGSTON ACCESSIBILITY TRAN LT
CS -Oth Operating Inc & Expend,T/A Vehicle Maintenance etc,Transport-Contract Hire                 ,Transport Related Expenditure ,Contract Hire and Op Leasing  ,CC68,Vehicle Hire Special Projects,31/01/2013,597,990,R,CAPITAL CARS                  
CS -Oth Operating Inc & Expend,T/A Vehicle Maintenance etc,Transport-Contract Hire                 ,Transport Related Expenditure ,Contract Hire and Op Leasing  ,CC68,Vehicle Hire Special Projects,31/01/2013,598,520,R,CAPITAL CARS                  
CS -Oth Operating Inc & Expend,T/A Vehicle Maintenance etc,Transport-Contract Hire                 ,Transport Related Expenditure ,Contract Hire and Op Leasing  ,CC68,Vehicle Hire Special Projects,31/01/2013,599,"1,292.00",R,SILVERBURN FINANCE (UK) LTD   
CS -Oth Operating Inc & Expend,T/A Vehicle Maintenance etc,Transport-Contract Hire                 ,Transport Related Expenditure ,Contract Hire and Op Leasing  ,CC68,Vehicle Hire Special Projects,31/01/2013,600,570,R,GALPINS SERVICE               
CS -Oth Operating Inc & Expend,T/A Vehicle Maintenance etc,Transport-Contract Hire                 ,Transport Related Expenditure ,Contract Hire and Op Leasing  ,CC68,Vehicle Hire Special Projects,31/01/2013,601,627,R,GALPINS SERVICE               
CS -Oth Operating Inc & Expend,T/A Vehicle Maintenance etc,Transport-Contract Hire                 ,Transport Related Expenditure ,Contract Hire and Op Leasing  ,CC68,Vehicle Hire Special Projects,31/01/2013,602,887,R,GALPINS SERVICE               
CS -Oth Operating Inc & Expend,T/A Vehicle Maintenance etc,Transport-Contract Hire                 ,Transport Related Expenditure ,Contract Hire and Op Leasing  ,CC68,Vehicle Hire Special Projects,31/01/2013,603,"2,280.00",R,KINGSTON ACCESSIBILITY TRAN LT
CS -Oth Operating Inc & Expend,T/A Vehicle Maintenance etc,Transport-Workshop                      ,Premises Related Expenditure  ,RepairsAlterations&MtceOfBldgs,BA03,DDM - Mechanical,30/01/2013,604,501.37,R,COFELY LIMITED                
CS -Oth Operating Inc & Expend,T/A Vehicle Maintenance etc,Transport-Workshop                      ,Premises Related Expenditure  ,Energy Costs                  ,BB03,Gas (incl. Butane),25/01/2013,605,"1,477.23",R,KENT COUNTY COUNCIL           
CS -Oth Operating Inc & Expend,T/A Vehicle Maintenance etc,Transport-Workshop                      ,Premises Related Expenditure  ,Energy Costs                  ,BB03,Gas (incl. Butane),23/01/2013,606,697.3,R,KENT COUNTY COUNCIL           
CS -Oth Operating Inc & Expend,T/A Vehicle Maintenance etc,Transport-Workshop                      ,Transport Related Expenditure ,Direct Transport Costs        ,CA02,Tyres,05/02/2013,607,755,R,MORDEN TYRE SERVICES LTD      
CS -Oth Operating Inc & Expend,T/A Vehicle Maintenance etc,Transport-Workshop                      ,Transport Related Expenditure ,Direct Transport Costs        ,CA02,Tyres,05/02/2013,608,"1,255.00",R,MORDEN TYRE SERVICES LTD      
CS -Oth Operating Inc & Expend,T/A Vehicle Maintenance etc,Transport-Workshop                      ,Transport Related Expenditure ,Direct Transport Costs        ,CA02,Tyres,07/02/2013,609,"1,005.00",R,MORDEN TYRE SERVICES LTD      
CS -Oth Operating Inc & Expend,T/A Vehicle Maintenance etc,Transport-Workshop                      ,Transport Related Expenditure ,Direct Transport Costs        ,CA02,Tyres,08/02/2013,610,"1,675.00",R,MORDEN TYRE SERVICES LTD      
CS -Oth Operating Inc & Expend,T/A Vehicle Maintenance etc,Transport-Workshop                      ,Transport Related Expenditure ,Direct Transport Costs        ,CA55,Specialist Maint. (Off Site),25/01/2013,611,"2,768.41",R,FLEETSPEED COACHWORKS LTD.    
CS -Oth Operating Inc & Expend,T/A Vehicle Maintenance etc,Transport-Workshop                      ,Transport Related Expenditure ,Direct Transport Costs        ,CA55,Specialist Maint. (Off Site),31/01/2013,612,"1,150.85",R,FLEETSPEED COACHWORKS LTD.    
CS -Oth Operating Inc & Expend,T/A Vehicle Maintenance etc,Transport-Workshop                      ,Transport Related Expenditure ,Direct Transport Costs        ,CA55,Specialist Maint. (Off Site),30/01/2013,613,892.88,R,KINGSLEY COMM COMPONENTS LTD  
CS -Oth Operating Inc & Expend,T/A Vehicle Maintenance etc,Transport-Workshop                      ,Transport Related Expenditure ,Direct Transport Costs        ,CA55,Specialist Maint. (Off Site),30/01/2013,614,899.88,R,KINGSLEY COMM COMPONENTS LTD  
CS -Oth Operating Inc & Expend,T/A Vehicle Maintenance etc,Transport-Workshop                      ,Transport Related Expenditure ,Direct Transport Costs        ,CA55,Specialist Maint. (Off Site),30/01/2013,615,899.88,R,KINGSLEY COMM COMPONENTS LTD  
CS -Oth Operating Inc & Expend,T/A Vehicle Maintenance etc,Transport-Workshop                      ,Transport Related Expenditure ,Direct Transport Costs        ,CA56,Specialist Maint. (On Site),01/02/2013,616,"1,390.00",R,AIR-WEIGH EUROPE              
CS -Oth Operating Inc & Expend,T/A Vehicle Maintenance etc,Transport-Workshop                      ,Transport Related Expenditure ,Direct Transport Costs        ,CA72,Vehicle Parts,04/02/2013,617,645.15,R,COMMERCIAL & PLANT LTD        
CS -Oth Operating Inc & Expend,T/A Vehicle Maintenance etc,Transport-Workshop                      ,Transport Related Expenditure ,Direct Transport Costs        ,CA72,Vehicle Parts,31/01/2013,618,"1,245.26",R,REDACTED
CS -Oth Operating Inc & Expend,T/A Vehicle Maintenance etc,Transport-Workshop                      ,Transport Related Expenditure ,Direct Transport Costs        ,CA72,Vehicle Parts,05/02/2013,619,556.6,R,HITACHI CAPITAL INV. FINANCE  
CS -Oth Operating Inc & Expend,T/A Vehicle Maintenance etc,Transport-Workshop                      ,Transport Related Expenditure ,Direct Transport Costs        ,CA72,Vehicle Parts,30/01/2013,620,531.5,R,BEADLES SIDCUP LTD            
CS -Oth Operating Inc & Expend,T/A Vehicle Maintenance etc,Transport-Workshop                      ,Transport Related Expenditure ,Direct Transport Costs        ,CA72,Vehicle Parts,25/01/2013,621,604.56,R,DENNIS EAGLE LIMITED          
CS -Oth Operating Inc & Expend,T/A Vehicle Maintenance etc,Transport-Workshop                      ,Transport Related Expenditure ,Direct Transport Costs        ,CA72,Vehicle Parts,30/01/2013,622,760.6,R,DENNIS EAGLE LIMITED          
CS -Oth Operating Inc & Expend,T/A Vehicle Maintenance etc,Transport-Workshop                      ,Transport Related Expenditure ,Direct Transport Costs        ,CA72,Vehicle Parts,16/01/2013,623,"1,020.28",R,BUNCE (ASHBURY) LTD.          
CS -Oth Operating Inc & Expend,T/A Vehicle Maintenance etc,Transport-Workshop                      ,Transport Related Expenditure ,Contract Hire and Op Leasing  ,CC60,Vehicle Hire for LB Sutton,31/01/2013,624,666,R,CAPITAL CARS                  
CS -Oth Operating Inc & Expend,T/A Vehicle Maintenance etc,Transport-Workshop                      ,Transport Related Expenditure ,Contract Hire and Op Leasing  ,CC60,Vehicle Hire for LB Sutton,31/01/2013,625,960,R,BARCLAYS ASSET & SALES FINANCE
CS -Oth Operating Inc & Expend,T/A Vehicle Maintenance etc,Transport-Workshop                      ,Transport Related Expenditure ,Contract Hire and Op Leasing  ,CC60,Vehicle Hire for LB Sutton,31/01/2013,626,"3,519.00",R,BARCLAYS ASSET & SALES FINANCE
CS -Oth Operating Inc & Expend,T/A Vehicle Maintenance etc,Transport-Workshop                      ,Transport Related Expenditure ,Contract Hire and Op Leasing  ,CC60,Vehicle Hire for LB Sutton,31/01/2013,627,"1,462.00",R,BARCLAYS ASSET & SALES FINANCE
CS -Oth Operating Inc & Expend,T/A Vehicle Maintenance etc,Transport-Workshop                      ,Transport Related Expenditure ,Contract Hire and Op Leasing  ,CC60,Vehicle Hire for LB Sutton,31/01/2013,628,"2,660.00",R,BRUNSWICK CARS LTD            
CS -Oth Operating Inc & Expend,T/A Vehicle Maintenance etc,Transport-Workshop                      ,Transport Related Expenditure ,Contract Hire and Op Leasing  ,CC60,Vehicle Hire for LB Sutton,31/01/2013,629,"2,261.00",R,BRUNSWICK CARS LTD            
CS -Oth Operating Inc & Expend,T/A Vehicle Maintenance etc,Transport-Workshop                      ,Transport Related Expenditure ,Contract Hire and Op Leasing  ,CC60,Vehicle Hire for LB Sutton,31/01/2013,630,"1,957.00",R,BRUNSWICK CARS LTD            
CS -Oth Operating Inc & Expend,T/A Vehicle Maintenance etc,Transport-Workshop                      ,Transport Related Expenditure ,Contract Hire and Op Leasing  ,CC60,Vehicle Hire for LB Sutton,29/01/2013,631,"1,710.00",R,CALVERTON FACTORS LTD         
CS -Oth Operating Inc & Expend,T/A Vehicle Maintenance etc,Transport-Workshop                      ,Transport Related Expenditure ,Contract Hire and Op Leasing  ,CC60,Vehicle Hire for LB Sutton,29/01/2013,632,"1,444.00",R,CALVERTON FACTORS LTD         
CS -Oth Operating Inc & Expend,T/A Vehicle Maintenance etc,Transport-Workshop                      ,Transport Related Expenditure ,Contract Hire and Op Leasing  ,CC60,Vehicle Hire for LB Sutton,29/01/2013,633,"1,980.00",R,CALVERTON FACTORS LTD         
CS -Oth Operating Inc & Expend,T/A Vehicle Maintenance etc,Transport-Workshop                      ,Transport Related Expenditure ,Contract Hire and Op Leasing  ,CC60,Vehicle Hire for LB Sutton,29/01/2013,634,840,R,CALVERTON FACTORS LTD         
CS -Oth Operating Inc & Expend,T/A Vehicle Maintenance etc,Transport-Workshop                      ,Transport Related Expenditure ,Contract Hire and Op Leasing  ,CC65,Vehicle Hire for Education,04/01/2013,635,621,R,CROYDON COACHES               
CS -Oth Operating Inc & Expend,T/A Vehicle Maintenance etc,Transport-Workshop                      ,Supplies & Services           ,Clothing Unfrms Laundry       ,DC02,Clothing & Uniforms,16/11/2012,636,"1,277.81",R,SAFETY MANAGEMENT             
CS -Oth Operating Inc & Expend,Extraordinary Items & PY Adj.,Housing Shops                           ,Premises Related Expenditure  ,RepairsAlterations&MtceOfBldgs,BA06,Repairs & Maintenance General,30/12/2012,637,"2,035.00",R,CALOW LTD                     
CS -Oth Operating Inc & Expend,Extraordinary Items & PY Adj.,Housing Shops                           ,Premises Related Expenditure  ,RepairsAlterations&MtceOfBldgs,BA06,Repairs & Maintenance General,30/12/2012,638,"1,080.00",R,CALOW LTD                     
CS -Oth Operating Inc & Expend,Extraordinary Items & PY Adj.,Housing Shops                           ,Premises Related Expenditure  ,RepairsAlterations&MtceOfBldgs,BA06,Repairs & Maintenance General,30/12/2012,639,"2,590.00",R,CALOW LTD                     
CS -Oth Operating Inc & Expend,Extraordinary Items & PY Adj.,Housing Shops                           ,Premises Related Expenditure  ,RepairsAlterations&MtceOfBldgs,BA06,Repairs & Maintenance General,30/12/2012,640,"1,300.00",R,CALOW LTD                     
CS -Oth Operating Inc & Expend,Extraordinary Items & PY Adj.,Housing Shops                           ,Premises Related Expenditure  ,RepairsAlterations&MtceOfBldgs,BA06,Repairs & Maintenance General,21/01/2013,641,550,R,CITY&URBAN PEST CONT&HYGIENE  
CS -Oth Operating Inc & Expend,Extraordinary Items & PY Adj.,Housing Shops                           ,Premises Related Expenditure  ,RepairsAlterations&MtceOfBldgs,BA79,Security of Premises,02/01/2013,642,"11,441.60",R,G.P HADEN ASSOCIATES          
CS -Oth Operating Inc & Expend,Extraordinary Items & PY Adj.,36 Weir Rd (Lor. pk)                    ,Premises Related Expenditure  ,RepairsAlterations&MtceOfBldgs,BA67,Remvl Rubbish/Spoil,21/01/2013,643,"1,950.00",R,CITY&URBAN PEST CONT&HYGIENE  
Central Services,NDC Unused Office Accomodation,Montgomery Close                        ,Premises Related Expenditure  ,RepairsAlterations&MtceOfBldgs,BA03,DDM - Mechanical,30/01/2013,644,617.24,R,COFELY LIMITED                
CS -Oth Operating Inc & Expend,Extraordinary Items & PY Adj.,Pollards Hill Comm Cntre                ,Premises Related Expenditure  ,RepairsAlterations&MtceOfBldgs,BA03,DDM - Mechanical,30/01/2013,645,692.01,R,COFELY LIMITED                
Childrens & Education Services,Statutory & Regulatory Duties,Senior Mngt & Support Services          ,Employees                     ,Indirect Employee Expenses    ,AB02,Recruitment Adverts,29/01/2013,646,570,R,REDACTED
Childrens & Education Services,Statutory & Regulatory Duties,Senior Mngt & Support Services          ,Employees                     ,Indirect Employee Expenses    ,AB57,External Training Costs,11/02/2013,647,"3,631.25",R,THE DIVERSITY PRACTICE        
Childrens & Education Services,Statutory & Regulatory Duties,Senior Mngt & Support Services          ,Supplies & Services           ,Services                      ,DF11,Counsel's fees,11/12/2012,648,"2,735.00",R,REDACTED
Childrens & Education Services,Statutory & Regulatory Duties,Senior Mngt & Support Services          ,Supplies & Services           ,Services                      ,DF11,Counsel's fees,11/12/2012,649,"1,500.00",R,REDACTED
Childrens & Education Services,Statutory & Regulatory Duties,Senior Mngt & Support Services          ,Supplies & Services           ,Services                      ,DF11,Counsel's fees,28/12/2012,650,"1,280.00",R,REDACTED
Childrens & Education Services,Statutory & Regulatory Duties,Senior Mngt & Support Services          ,Supplies & Services           ,Services                      ,DF11,Counsel's fees,21/01/2013,651,"1,620.00",R,REDACTED
Childrens & Education Services,Statutory & Regulatory Duties,Senior Mngt & Support Services          ,Supplies & Services           ,Services                      ,DF11,Counsel's fees,23/01/2013,652,995,R,REDACTED
Childrens & Education Services,Statutory & Regulatory Duties,Senior Mngt & Support Services          ,Supplies & Services           ,Services                      ,DF11,Counsel's fees,22/11/2012,653,970,R,REDACTED
Childrens & Education Services,Statutory & Regulatory Duties,Senior Mngt & Support Services          ,Supplies & Services           ,Services                      ,DF11,Counsel's fees,31/12/2012,654,"1,197.50",R,REDACTED
Childrens & Education Services,Statutory & Regulatory Duties,Senior Mngt & Support Services          ,Supplies & Services           ,Services                      ,DF11,Counsel's fees,03/01/2013,655,"1,100.00",R,REDACTED
Childrens & Education Services,Statutory & Regulatory Duties,Senior Mngt & Support Services          ,Supplies & Services           ,Services                      ,DF11,Counsel's fees,28/12/2012,656,"4,956.66",R,REDACTED
Childrens & Education Services,Statutory & Regulatory Duties,Senior Mngt & Support Services          ,Supplies & Services           ,Services                      ,DF11,Counsel's fees,13/02/2013,657,900,R,REDACTED
Childrens & Education Services,Statutory & Regulatory Duties,Senior Mngt & Support Services          ,Supplies & Services           ,Services                      ,DF11,Counsel's fees,22/01/2013,658,"1,800.00",R,REDACTED
Childrens & Education Services,Statutory & Regulatory Duties,Senior Mngt & Support Services          ,Supplies & Services           ,Services                      ,DF11,Counsel's fees,10/12/2012,659,"1,558.33",R,REDACTED
Childrens & Education Services,Statutory & Regulatory Duties,Senior Mngt & Support Services          ,Supplies & Services           ,Services                      ,DF11,Counsel's fees,29/01/2013,660,517.5,R,REDACTED
Childrens & Education Services,Statutory & Regulatory Duties,Senior Mngt & Support Services          ,Supplies & Services           ,Services                      ,DF11,Counsel's fees,13/02/2013,661,"1,095.00",R,REDACTED
Childrens & Education Services,Statutory & Regulatory Duties,Senior Mngt & Support Services          ,Supplies & Services           ,Services                      ,DF28,Court Fees,13/02/2012,662,"2,225.00",R,HMCTS                         
Childrens & Education Services,Statutory & Regulatory Duties,Schools IT Support                      ,Supplies & Services           ,Comms and Computing           ,DG50,Other IT Expenditure,31/01/2013,663,950,R,LONDON GRID FOR LEARNING TRUST
Childrens & Education Services,Statutory & Regulatory Duties,Schools IT Support                      ,Supplies & Services           ,Comms and Computing           ,DG50,Other IT Expenditure,31/01/2013,664,"2,137.50",R,LONDON GRID FOR LEARNING TRUST
Childrens & Education Services,Statutory & Regulatory Duties,Schools IT Support                      ,Supplies & Services           ,Comms and Computing           ,DG50,Other IT Expenditure,31/01/2013,665,"1,662.50",R,LONDON GRID FOR LEARNING TRUST
Childrens & Education Services,Statutory & Regulatory Duties,Schools IT Support                      ,Supplies & Services           ,Comms and Computing           ,DG50,Other IT Expenditure,30/01/2013,666,"1,662.50",R,LONDON GRID FOR LEARNING TRUST
Childrens & Education Services,Statutory & Regulatory Duties,Schools IT Support                      ,Supplies & Services           ,Comms and Computing           ,DG50,Other IT Expenditure,30/01/2013,667,"1,662.50",R,LONDON GRID FOR LEARNING TRUST
Childrens & Education Services,Statutory & Regulatory Duties,Schools IT Support                      ,Supplies & Services           ,Comms and Computing           ,DG50,Other IT Expenditure,31/01/2013,668,"2,137.50",R,LONDON GRID FOR LEARNING TRUST
Childrens & Education Services,Statutory & Regulatory Duties,Schools IT Support                      ,Supplies & Services           ,Comms and Computing           ,DG50,Other IT Expenditure,30/01/2013,669,"5,700.00",R,LONDON GRID FOR LEARNING TRUST
Childrens & Education Services,Statutory & Regulatory Duties,Schools IT Support                      ,Supplies & Services           ,Comms and Computing           ,DG50,Other IT Expenditure,31/01/2013,670,"1,662.50",R,LONDON GRID FOR LEARNING TRUST
Childrens & Education Services,Statutory & Regulatory Duties,Schools IT Support                      ,Supplies & Services           ,Comms and Computing           ,DG50,Other IT Expenditure,31/01/2013,671,"2,137.50",R,LONDON GRID FOR LEARNING TRUST
Childrens & Education Services,Statutory & Regulatory Duties,Schools IT Support                      ,Supplies & Services           ,Comms and Computing           ,DG50,Other IT Expenditure,30/01/2013,672,"2,375.00",R,LONDON GRID FOR LEARNING TRUST
Childrens & Education Services,Statutory & Regulatory Duties,Schools IT Support                      ,Supplies & Services           ,Comms and Computing           ,DG50,Other IT Expenditure,31/01/2013,673,"2,137.50",R,LONDON GRID FOR LEARNING TRUST
Childrens & Education Services,Statutory & Regulatory Duties,Schools IT Support                      ,Supplies & Services           ,Comms and Computing           ,DG50,Other IT Expenditure,30/01/2013,674,"2,137.50",R,LONDON GRID FOR LEARNING TRUST
Childrens & Education Services,Statutory & Regulatory Duties,Schools IT Support                      ,Supplies & Services           ,Comms and Computing           ,DG50,Other IT Expenditure,31/01/2013,675,"2,375.00",R,LONDON GRID FOR LEARNING TRUST
Childrens & Education Services,Statutory & Regulatory Duties,Schools IT Support                      ,Supplies & Services           ,Comms and Computing           ,DG50,Other IT Expenditure,31/01/2013,676,"1,662.50",R,LONDON GRID FOR LEARNING TRUST
Childrens & Education Services,Statutory & Regulatory Duties,Schools IT Support                      ,Supplies & Services           ,Comms and Computing           ,DG50,Other IT Expenditure,31/01/2013,677,"2,375.00",R,LONDON GRID FOR LEARNING TRUST
Childrens & Education Services,Statutory & Regulatory Duties,Schools IT Support                      ,Supplies & Services           ,Comms and Computing           ,DG50,Other IT Expenditure,31/01/2013,678,"1,662.50",R,LONDON GRID FOR LEARNING TRUST
Childrens & Education Services,Statutory & Regulatory Duties,Schools IT Support                      ,Supplies & Services           ,Comms and Computing           ,DG50,Other IT Expenditure,31/01/2013,679,"1,662.50",R,LONDON GRID FOR LEARNING TRUST
Childrens & Education Services,Statutory & Regulatory Duties,Schools IT Support                      ,Supplies & Services           ,Comms and Computing           ,DG50,Other IT Expenditure,31/01/2013,680,"2,375.00",R,LONDON GRID FOR LEARNING TRUST
Childrens & Education Services,Statutory & Regulatory Duties,Schools IT Support                      ,Supplies & Services           ,Comms and Computing           ,DG50,Other IT Expenditure,07/02/2013,681,697.73,R,STUFF-UK.NET                  
Childrens & Education Services,Statutory & Regulatory Duties,Schools IT Support                      ,Supplies & Services           ,Comms and Computing           ,DG50,Other IT Expenditure,31/01/2013,682,"1,662.50",R,LONDON GRID FOR LEARNING TRUST
Childrens & Education Services,Statutory & Regulatory Duties,Schools IT Support                      ,Supplies & Services           ,Expenses                      ,DH03,Hospitality,05/07/2012,683,"1,488.50",R,ISS COLLECTIONS LTD           
Childrens & Education Services,Asset Management,PFI Unitary Charges                     ,Third Party Payments          ,Private Contractors           ,EH02,Miscellaneous Hired Services,31/08/2012,684,"2,349.76",R,NEWSCHOOLS (MERTON) LIMITED   
Childrens & Education Services,Asset Management,PFI Unitary Charges                     ,Third Party Payments          ,Private Contractors           ,EH02,Miscellaneous Hired Services,01/02/2013,685,595,R,THE CRESCENT FENCING CO.      
Childrens & Education Services,Asset Management,PFI Unitary Charges                     ,Third Party Payments          ,Private Contractors           ,EH02,Miscellaneous Hired Services,30/04/2012,686,602.97,R,NEWSCHOOLS (MERTON) LIMITED   
Childrens & Education Services,Asset Management,PFI Unitary Charges                     ,Third Party Payments          ,Private Contractors           ,EH02,Miscellaneous Hired Services,31/01/2013,687,630,R,NEWSCHOOLS (MERTON) LIMITED   
Childrens & Education Services,Asset Management,PFI Unitary Charges                     ,Third Party Payments          ,Private Contractors           ,EH02,Miscellaneous Hired Services,30/10/2012,688,"3,723.80",R,NEWSCHOOLS (MERTON) LIMITED   
Childrens & Education Services,GENERATED ACCOUNT,SEN Transitions Team                    ,Employees                     ,Direct Employee Expenses      ,AA17,Agency Staff & Casual Paymts,12/01/2013,689,"2,800.00",R,REDACTED
Childrens & Education Services,Statutory & Regulatory Duties,Head of Special Educatn Needs           ,Employees                     ,Indirect Employee Expenses    ,AB02,Recruitment Adverts,22/01/2013,690,"14,536.80",R,PENNA COMMUNICATIONS (NO 2 A/C
Childrens & Education Services,Statutory & Regulatory Duties,Head of Special Educatn Needs           ,Supplies & Services           ,Expenses                      ,DH50,Special Projects,11/02/2013,691,"1,688.85",R,DAN GRANT ASSOCIATES LTD      
Childrens & Education Services,Education Psychology Service,Education Psychology.                   ,Employees                     ,Direct Employee Expenses      ,AA17,Agency Staff & Casual Paymts,13/02/2013,692,937.5,R,REDACTED
Childrens & Education Services,Education Psychology Service,Education Psychology.                   ,Supplies & Services           ,Equip Furniture/Materials     ,DA09,Equip-Purchases,05/02/2013,693,"3,750.50",R,PEARSON                       
Childrens & Education Services,Support for SEN Pupils,Statementing-Transport                  ,Transport Related Expenditure ,Recharge frm Transport Holding,CB01,Transport,08/01/2013,694,"1,105.00",R,MERTON MENCAP                 
Childrens & Education Services,Support for SEN Pupils,Statementing-Transport                  ,Transport Related Expenditure ,Public Transport              ,CD50,Home Sch/Coll Trans(Trav Exps),01/02/2013,695,640,R,REDACTED
Childrens & Education Services,Behavioural Support,Statement Support Team                  ,Employees                     ,Direct Employee Expenses      ,AA17,Agency Staff & Casual Paymts,02/02/2013,696,"3,000.00",R,REDACTED
Childrens & Education Services,Pupil Referral Units,Expanded Pupil Referral Unit            ,Third Party Payments          ,Private Contractors           ,EH01,Miscellaneous Contrct Services,30/01/2013,697,"4,865.14",R,SW LONDON ST GEORGES NHS TRUST
Childrens & Education Services,Oth U5s Provn Not Prim or Spec,GSSG Workforce Development              ,Employees                     ,Indirect Employee Expenses    ,AB56,Internal Training Costs,28/01/2013,698,960,R,ACTUAL FIRST AID LTD          
Childrens & Education Services,Oth U5s Provn Not Prim or Spec,GSSG Workforce Development              ,Employees                     ,Indirect Employee Expenses    ,AB56,Internal Training Costs,19/02/2013,699,500,R,REDACTED
Childrens & Education Services,Oth U5s Provn Not Prim or Spec,GSSG Workforce Development              ,Employees                     ,Indirect Employee Expenses    ,AB56,Internal Training Costs,18/02/2013,700,760,R,ACTUAL FIRST AID LTD          
Childrens & Education Services,Oth U5s Provn Not Prim or Spec,GSSG Workforce Development              ,Employees                     ,Indirect Employee Expenses    ,AB57,External Training Costs,11/01/2013,701,"19,900.00",R,NATIONAL CHILDMINDING ASSOC.  
Childrens & Education Services,Oth U5s Provn Not Prim or Spec,GSSG Workforce Development              ,Supplies & Services           ,Grants and Subscriptions      ,DJ01,Grants,04/02/2013,702,"2,000.00",R,REDACTED
Childrens & Education Services,Oth U5s Provn Not Prim or Spec,GSSG Workforce Development              ,Supplies & Services           ,Grants and Subscriptions      ,DJ01,Grants,04/02/2013,703,"1,500.00",R,FIRST LITTLE STEPS            
Childrens & Education Services,Oth U5s Provn Not Prim or Spec,GSSG Workforce Development              ,Supplies & Services           ,Grants and Subscriptions      ,DJ01,Grants,04/02/2013,704,"2,000.00",R,BUMBLE BEES'S DAY NURSERY-COCC
Childrens & Education Services,Oth U5s Provn Not Prim or Spec,GSSG Workforce Development              ,Supplies & Services           ,Grants and Subscriptions      ,DJ01,Grants,04/02/2013,705,"3,000.00",R,COMPTON NURSERY               
Childrens & Education Services,Oth U5s Provn Not Prim or Spec,GSSG Workforce Development              ,Supplies & Services           ,Grants and Subscriptions      ,DJ01,Grants,04/02/2013,706,"2,000.00",R,KINGSWOOD DAYCARE NURSERY     
Childrens & Education Services,Oth U5s Provn Not Prim or Spec,GSSG Workforce Development              ,Supplies & Services           ,Grants and Subscriptions      ,DJ01,Grants,04/02/2013,707,"2,000.00",R,LOVE LANE DAY NURSERY         
Childrens & Education Services,Nursery schools,EY Business Support                     ,Employees                     ,Indirect Employee Expenses    ,AB57,External Training Costs,31/01/2013,708,600,R,THE NATIONAL AUTISTIC SOCIETY 
Childrens & Education Services,Nursery schools,EY Business Support                     ,Supplies & Services           ,Comms and Computing           ,DG02,Software Licences,24/01/2013,709,500,R,CAPITA BUSINESS SERVICES LTD  
Childrens & Education Services,Nursery schools,EY Business Support                     ,Supplies & Services           ,Comms and Computing           ,DG02,Software Licences,08/02/2013,710,980,R,TRIANGLE CONSULTING SOCIAL ENT
Childrens & Education Services,Nursery schools,Nursery Grant payment-2 yr old          ,Supplies & Services           ,Equip Furniture/Materials     ,DA04,Materials,24/01/2013,711,"1,129.02",R,TTS LTD                       
Childrens & Education Services,Nursery schools,Nursery Grant payment-2 yr old          ,Supplies & Services           ,Equip Furniture/Materials     ,DA80,Books,04/02/2013,712,552.07,R,I CAN CHARITY                 
Childrens & Education Services,Nursery schools,Nursery Grant payment-2 yr old          ,Supplies & Services           ,Grants and Subscriptions      ,DJ01,Grants,04/02/2013,713,"19,440.00",R,JOLLYTIME PLAYGROUP           
Childrens & Education Services,Nursery schools,Nursery Grant payment-2 yr old          ,Supplies & Services           ,Grants and Subscriptions      ,DJ01,Grants,04/02/2013,714,972,R,KINGSWOOD DAYCARE NURSERY     
Childrens & Education Services,Nursery schools,Nursery Grant payment-2 yr old          ,Supplies & Services           ,Grants and Subscriptions      ,DJ01,Grants,04/02/2013,715,793.8,R,HASLEMERE HOUSE DAY NURSERY   
Childrens & Education Services,Nursery schools,Nursery Grant payment-2 yr old          ,Supplies & Services           ,Grants and Subscriptions      ,DJ01,Grants,07/02/2013,716,972,R,LA PETITE FLEUR PRE-SCHOOL    
Childrens & Education Services,Nursery schools,Nursery Grant payment-2 yr old          ,Supplies & Services           ,Grants and Subscriptions      ,DJ01,Grants,14/02/2013,717,"1,116.00",R,BUNNIES ON THE GREEN NURSERY  
Childrens & Education Services,Nursery schools,Nursery Grant payment-2 yr old          ,Supplies & Services           ,Grants and Subscriptions      ,DJ01,Grants,15/02/2013,718,864,R,DICKY BIRDS PRE SCHOOL NURSERY
Childrens & Education Services,Nursery schools,Nursery Grant payment-2 yr old          ,Supplies & Services           ,Grants and Subscriptions      ,DJ01,Grants,19/02/2013,719,972,R,HASLEMERE HOUSE DAY NURSERY   
Childrens & Education Services,Nursery schools,Nursery Grant payment-2 yr old          ,Supplies & Services           ,Grants and Subscriptions      ,DJ01,Grants,19/02/2013,720,792,R,HASLEMERE HOUSE DAY NURSERY   
Childrens & Education Services,Nursery schools,Nursery Grant payment-2 yr old          ,Supplies & Services           ,Grants and Subscriptions      ,DJ01,Grants,19/02/2013,721,972,R,HASLEMERE HOUSE DAY NURSERY   
Childrens & Education Services,GENERATED ACCOUNT,Lavender Children's Centre              ,Premises Related Expenditure  ,Cleaning and Domestic Supplies,BH03,Cleaning Services,18/01/2013,722,587,R,RE MCS CLEANING SERVICES LTD  
Childrens & Education Services,GENERATED ACCOUNT,Lavender Children's Centre              ,Supplies & Services           ,Services                      ,DF30,Activities Programme,23/01/2013,723,500,R,TTS LTD                       
Childrens & Education Services,GENERATED ACCOUNT,Mitcham MAT (Premises)                  ,Premises Related Expenditure  ,RepairsAlterations&MtceOfBldgs,BA01,DDM - General Building,21/01/2013,724,"3,140.00",R,P J HARVEY & CO LTD           
Childrens & Education Services,GENERATED ACCOUNT,Mitcham MAT (Premises)                  ,Premises Related Expenditure  ,Energy Costs                  ,BB02,Electricity,25/01/2013,725,"2,535.02",R,EDF ENERGY 1 LIMITED          
Childrens & Education Services,GENERATED ACCOUNT,Mitcham MAT (Premises)                  ,Supplies & Services           ,Equip Furniture/Materials     ,DA01,Equipment - R & M,28/01/2013,726,800,R,UNIQUE OFFICE SOLUTIONS LTD   
Childrens & Education Services,Nursery schools,Lavender CC Non Childcare               ,Employees                     ,Indirect Employee Expenses    ,AB56,Internal Training Costs,01/02/2013,727,743.52,R,REDACTED
Childrens & Education Services,Nursery schools,Lavender CC Non Childcare               ,Premises Related Expenditure  ,Cleaning and Domestic Supplies,BH03,Cleaning Services,18/01/2013,728,587,R,RE MCS CLEANING SERVICES LTD  
Childrens & Education Services,Nursery schools,E.Years-Intergenerational Cntr          ,Premises Related Expenditure  ,RepairsAlterations&MtceOfBldgs,BA06,Repairs & Maintenance General,15/02/2013,729,"4,249.47",R,MORTON FAIRVIEW ELEC SERVICES 
Childrens & Education Services,Nursery schools,E.Years-Intergenerational Cntr          ,Premises Related Expenditure  ,Energy Costs                  ,BB02,Electricity,14/08/2012,730,541.19,R,EDF ENERGY                    
Childrens & Education Services,Nursery schools,E.Years-Intergenerational Cntr          ,Premises Related Expenditure  ,Cleaning and Domestic Supplies,BH03,Cleaning Services,25/12/2012,731,964.45,R,JULIUS RUTHERFOORD & CO LTD   
Childrens & Education Services,Nursery schools,E.Years-Intergenerational Cntr          ,Premises Related Expenditure  ,Cleaning and Domestic Supplies,BH03,Cleaning Services,25/01/2013,732,964.45,R,JULIUS RUTHERFOORD & CO LTD   
Childrens & Education Services,Nursery schools,E.Years-Intergenerational Cntr          ,Supplies & Services           ,Equip Furniture/Materials     ,DA09,Equip-Purchases,12/02/2013,733,"1,778.33",R,THE CONSORTIUM                
Childrens & Education Services,Nursery schools,E.Years-Intergenerational Cntr          ,Supplies & Services           ,Services                      ,DF30,Activities Programme,11/12/2012,734,"1,200.00",R,B. Y. INNOVATIONS LTD         
Childrens & Education Services,Nursery schools,Steers Mead Pre School                  ,Supplies & Services           ,Equip Furniture/Materials     ,DA09,Equip-Purchases,11/02/2013,735,"2,664.00",R,TOTAL SENSORY                 
Childrens & Education Services,Vocational - Adult Education,AE-additional learner SF                ,Supplies & Services           ,Services                      ,DF07,Bought in Teaching Services,10/02/2013,736,675,R,REDACTED
Childrens & Education Services,Vocational - Adult Education,AE-Adult Education Main                 ,Premises Related Expenditure  ,Water Services                ,BE01,Use of Water (Metered),31/01/2013,737,988.13,R,THAMES WATER UTILITIES LTD.   
Childrens & Education Services,Vocational - Adult Education,AE-Adult Education Main                 ,Premises Related Expenditure  ,Cleaning and Domestic Supplies,BH03,Cleaning Services,25/01/2013,738,"2,699.35",R,JULIUS RUTHERFOORD & CO LTD   
Childrens & Education Services,Vocational - Adult Education,AE-Adult Education Main                 ,Supplies & Services           ,Catering                      ,DB01,Contract Catering,16/01/2013,739,520,R,INVESTEC ASSET FINANCE PLC    
Childrens & Education Services,Vocational - Adult Education,AE-Adult Education Main                 ,Supplies & Services           ,Catering                      ,DB01,Contract Catering,17/01/2013,740,520,R,INVESTEC ASSET FINANCE PLC    
Childrens & Education Services,Youth Centres (Residential),Youth Service                           ,Supplies & Services           ,Grants and Subscriptions      ,DJ04,Subscriptions,14/02/2013,741,"2,000.00",R,PARTNERSHIP FOR YOUNG LONDON  
Childrens & Education Services,Youth Centres (Residential),Duke of Edinburgh Awrds                 ,Transport Related Expenditure ,Recharge frm Transport Holding,CB02,Transport SLA/Rech - Dir Std,13/02/2013,742,650,R,MITCHAM BELLE COACHES         
Childrens & Education Services,Youth Centres (Residential),South W'don Yth Ctre                    ,Premises Related Expenditure  ,Rents                         ,BC03,Room/venue rental hire,30/09/2012,743,"6,162.00",R,YMCA LONDON SOUTH WEST        
Childrens & Education Services,Youth Centres (Residential),YAP PA (Conx)                           ,Third Party Payments          ,Private Contractors           ,EH01,Miscellaneous Contrct Services,05/02/2013,744,"34,950.00",R,CATCH 22                      
Childrens & Education Services,Youth Centres (Residential),Youth Office Premises Cost              ,Premises Related Expenditure  ,RepairsAlterations&MtceOfBldgs,BA05,DDM - Electrical,11/02/2013,745,695,R,FIRST CHOICE FACILITIES PLC   
Childrens & Education Services,Youth Centres (Residential),Youth Office Premises Cost              ,Premises Related Expenditure  ,RepairsAlterations&MtceOfBldgs,BA06,Repairs & Maintenance General,01/02/2013,746,978,R,PJ HARVEY & CO LTD            
Childrens & Education Services,Youth Centres (Residential),Youth Office Premises Cost              ,Premises Related Expenditure  ,RepairsAlterations&MtceOfBldgs,BA90,Water Hygiene,28/01/2013,747,729,R,EUROVIA INFRASTRUCTURE LTD    
Childrens & Education Services,Youth Centres (Residential),Youth Office Premises Cost              ,Premises Related Expenditure  ,RepairsAlterations&MtceOfBldgs,BA90,Water Hygiene,20/02/2013,748,511.92,R,EUROVIA INFRASTRUCTURE LTD    
Childrens & Education Services,Youth Centres (Residential),Youth Office Premises Cost              ,Premises Related Expenditure  ,RepairsAlterations&MtceOfBldgs,BA90,Water Hygiene,20/02/2013,749,"2,361.15",R,EUROVIA INFRASTRUCTURE LTD    
Childrens & Education Services,Youth Centres (Residential),ETE Team                                ,Premises Related Expenditure  ,Energy Costs                  ,BB02,Electricity,22/01/2013,750,827.55,R,EDF ENERGY                    
Childrens & Education Services,Youth Centres (Residential),ETE Team                                ,Supplies & Services           ,Comms and Computing           ,DG09,Computer Purchases - Misc,01/02/2013,751,"1,200.00",R,QUALITY EDUCATION SOLUTIONS LT
Childrens & Education Services,Youth Centres (Residential),ETE Team                                ,Supplies & Services           ,Expenses                      ,DH12,Young Peoples Expenses,22/01/2013,752,800,R,ROUGH EDGE                    
Childrens & Education Services,Youth Centres (Residential),ETE Team                                ,Supplies & Services           ,Expenses                      ,DH12,Young Peoples Expenses,13/02/2013,753,732.5,R,THE AWARD SCHEME LTD          
Childrens & Education Services,Pupil Support,Careers Educ IAG Contracts              ,Third Party Payments          ,Private Contractors           ,EH01,Miscellaneous Contrct Services,30/01/2013,754,"13,972.00",R,PENINSULA TRAIN DEVELOP CONS. 
Childrens & Education Services,Pupil Support,CONX - BOROUGH MANAGER                  ,Employees                     ,Indirect Employee Expenses    ,AB57,External Training Costs,21/01/2013,755,700,R,CAPITA BUSINESS SERVICES LTD  
Childrens & Education Services,Asset Management,Premises and Contracts                  ,Supplies & Services           ,Services                      ,DF03,Consultants,26/01/2013,756,"4,025.00",R,PERMANENT FUTURES             
Childrens & Education Services,Asset Management,Revenuisation & S106 Proj               ,Premises Related Expenditure  ,Water Services                ,BE02,Use of Water (Unmetered),30/10/2012,757,"1,445.07",R,THAMES WATER UTILITIES LTD    
Childrens & Education Services,Asset Management,Revenuisation & S106 Proj               ,Premises Related Expenditure  ,Water Services                ,BE02,Use of Water (Unmetered),30/10/2012,758,"1,689.87",R,THAMES WATER UTILITIES LTD    
Childrens & Education Services,Asset Management,Centre Commissioned Servs               ,Supplies & Services           ,Grants and Subscriptions      ,DJ01,Grants,08/01/2013,759,682,R,YOUTH EMPOWERMENT CRIME SCHEME
Childrens & Education Services,Asset Management,Centre Commissioned Servs               ,Supplies & Services           ,Grants and Subscriptions      ,DJ01,Grants,08/01/2013,760,"2,728.00",R,YOUTH EMPOWERMENT CRIME SCHEME
Childrens & Education Services,Asset Management,Centre Commissioned Servs               ,Supplies & Services           ,Grants and Subscriptions      ,DJ01,Grants,31/01/2013,761,"2,240.00",R,NORTH EAST MITCHAM COMM ASSOC 
Childrens & Education Services,Asset Management,Centre Commissioned Servs               ,Supplies & Services           ,Grants and Subscriptions      ,DJ01,Grants,01/10/2012,762,"4,740.00",R,MERTON MENCAP                 
Childrens & Education Services,Asset Management,Centre Commissioned Servs               ,Supplies & Services           ,Grants and Subscriptions      ,DJ01,Grants,01/10/2012,763,"10,260.00",R,MERTON MENCAP                 
Childrens & Education Services,Asset Management,Centre Commissioned Servs               ,Supplies & Services           ,Grants and Subscriptions      ,DJ01,Grants,07/01/2013,764,"6,250.00",R,JIGSAW4U                      
Childrens & Education Services,Asset Management,Centre Commissioned Servs               ,Supplies & Services           ,Grants and Subscriptions      ,DJ01,Grants,01/02/2013,765,"6,250.00",R,SOUTH LONDON TAMIL WELFARE GRP
Childrens & Education Services,Asset Management,Centre Commissioned Servs               ,Supplies & Services           ,Grants and Subscriptions      ,DJ01,Grants,07/01/2013,766,"6,358.75",R,THE SQUAD CLUB                
Childrens & Education Services,Facilitating School Improvemnt,SSQ                                     ,Supplies & Services           ,Services                      ,DF03,Consultants,07/02/2013,767,825,R,REDACTED
Childrens & Education Services,Facilitating School Improvemnt,SSQ                                     ,Supplies & Services           ,Expenses                      ,DH02,Conferences,10/02/2013,768,"1,030.00",R,SPEAKING OF BOOKS             
Childrens & Education Services,Facilitating School Improvemnt,SSQ                                     ,Supplies & Services           ,Expenses                      ,DH02,Conferences,12/02/2013,769,"4,500.00",R,REDACTED
Childrens & Education Services,Facilitating School Improvemnt,SSQ                                     ,Supplies & Services           ,Grants and Subscriptions      ,DJ04,Subscriptions,19/02/2013,770,"5,115.00",R,FISCHER EDUCATION PROJECT LTD 
Childrens & Education Services,Asset Management,Stouthall                               ,Premises Related Expenditure  ,Energy Costs                  ,BB03,Gas (incl. Butane),13/01/2013,771,"2,004.89",R,FLOGAS CO UK                  
Childrens & Education Services,Statutory & Regulatory Duties,Profess Develop Cntre                   ,Premises Related Expenditure  ,Energy Costs                  ,BB02,Electricity,11/02/2013,772,"3,010.83",R,EDF ENERGY 1 LIMITED          
Childrens & Education Services,Admissions & Planning Sch Prov,Schools Admin & Pupil Benefits          ,Transport Related Expenditure ,Public Transport              ,CD50,Home Sch/Coll Trans(Trav Exps),12/01/2013,773,560.7,R,TRANSPORT TRADING LTD         
Childrens & Education Services,Sch Meals & Milk-Not Delegated,School Meals                            ,Premises Related Expenditure  ,RepairsAlterations&MtceOfBldgs,BA01,DDM - General Building,07/02/2013,774,"1,080.00",R,COFELY LIMITED                
Childrens & Education Services,Sch Meals & Milk-Not Delegated,School Meals                            ,Premises Related Expenditure  ,RepairsAlterations&MtceOfBldgs,BA01,DDM - General Building,25/01/2013,775,"1,226.00",R,CATERCRAFT SUPPLIES LTD       
Childrens & Education Services,Sch Meals & Milk-Not Delegated,School Meals                            ,Premises Related Expenditure  ,RepairsAlterations&MtceOfBldgs,BA01,DDM - General Building,29/11/2012,776,552.43,R,FIRST IN SERVICE              
Childrens & Education Services,Sch Meals & Milk-Not Delegated,School Meals                            ,Premises Related Expenditure  ,RepairsAlterations&MtceOfBldgs,BA01,DDM - General Building,21/01/2013,777,"1,859.00",R,DF20 LTD                      
Childrens & Education Services,Sch Meals & Milk-Not Delegated,School Meals                            ,Premises Related Expenditure  ,RepairsAlterations&MtceOfBldgs,BA01,DDM - General Building,12/12/2012,778,503.42,R,FIRST IN SERVICE              
Childrens & Education Services,Sch Meals & Milk-Not Delegated,School Meals                            ,Premises Related Expenditure  ,RepairsAlterations&MtceOfBldgs,BA01,DDM - General Building,31/12/2012,779,"1,027.46",R,FIRST IN SERVICE              
Childrens & Education Services,Pupil Support,Smart-Assessment Centre                 ,Employees                     ,Direct Employee Expenses      ,AA17,Agency Staff & Casual Paymts,14/11/2012,780,525,R,REDACTED
Childrens & Education Services,Pupil Referral Units,Alt Educn(Incl Yr 11 Project)           ,Supplies & Services           ,Services                      ,DF07,Bought in Teaching Services,10/01/2013,781,"1,430.00",R,KIP MCGRATH EDUCATION CENTRE  
Childrens & Education Services,Pupil Referral Units,Alt Educn(Incl Yr 11 Project)           ,Supplies & Services           ,Services                      ,DF07,Bought in Teaching Services,10/01/2013,782,"1,430.00",R,KIP MCGRATH EDUCATION CENTRE  
Childrens & Education Services,Pupil Referral Units,Alt Educn(Incl Yr 11 Project)           ,Supplies & Services           ,Services                      ,DF07,Bought in Teaching Services,21/01/2013,783,985.15,R,KIP MCGRATH EDUCATION CENTRE  
Childrens & Education Services,Pupil Referral Units,Alt Educn(Incl Yr 11 Project)           ,Supplies & Services           ,Services                      ,DF07,Bought in Teaching Services,14/01/2013,784,"1,800.00",R,DIVERSE CUISINE TRAINING      
Childrens & Education Services,Pupil Referral Units,Alt Educn(Incl Yr 11 Project)           ,Supplies & Services           ,Services                      ,DF07,Bought in Teaching Services,10/01/2013,785,"4,883.00",R,KIP MCGRATH EDUCATION CENTRE  
Childrens & Education Services,Pupil Referral Units,Alt Educn(Incl Yr 11 Project)           ,Supplies & Services           ,Services                      ,DF07,Bought in Teaching Services,17/01/2013,786,"1,230.00",R,HA TUTORS LTD                 
Childrens & Education Services,Pupil Referral Units,Alt Educn(Incl Yr 11 Project)           ,Supplies & Services           ,Services                      ,DF07,Bought in Teaching Services,14/01/2013,787,"4,480.00",R,JUSTLEARN LTD                 
Childrens & Education Services,Pupil Referral Units,Alt Educn(Incl Yr 11 Project)           ,Supplies & Services           ,Services                      ,DF07,Bought in Teaching Services,14/01/2013,788,"1,680.00",R,JUSTLEARN LTD                 
Childrens & Education Services,Pupil Referral Units,Alt Educn(Incl Yr 11 Project)           ,Supplies & Services           ,Services                      ,DF07,Bought in Teaching Services,14/01/2013,789,910,R,JUSTLEARN LTD                 
Childrens & Education Services,Pupil Referral Units,Alt Educn(Incl Yr 11 Project)           ,Supplies & Services           ,Services                      ,DF07,Bought in Teaching Services,14/01/2013,790,"2,470.00",R,JUSTLEARN LTD                 
Childrens & Education Services,Pupil Referral Units,Alt Educn(Incl Yr 11 Project)           ,Supplies & Services           ,Services                      ,DF07,Bought in Teaching Services,14/01/2013,791,"1,040.00",R,JUSTLEARN LTD                 
Childrens & Education Services,Pupil Referral Units,Alt Educn(Incl Yr 11 Project)           ,Supplies & Services           ,Services                      ,DF07,Bought in Teaching Services,10/01/2013,792,"1,595.00",R,R W RECHERE & ASSOCIATES LTD  
Childrens & Education Services,Pupil Referral Units,Alt Educn(Incl Yr 11 Project)           ,Supplies & Services           ,Services                      ,DF07,Bought in Teaching Services,05/02/2013,793,"5,040.00",R,JUSTLEARN LTD                 
Childrens & Education Services,Pupil Referral Units,Alt Educn(Incl Yr 11 Project)           ,Supplies & Services           ,Services                      ,DF07,Bought in Teaching Services,07/02/2013,794,"5,040.00",R,BLESSED LTD                   
Childrens & Education Services,Pupil Referral Units,Alt Educn(Incl Yr 11 Project)           ,Supplies & Services           ,Services                      ,DF07,Bought in Teaching Services,31/01/2013,795,"14,510.00",R,IMMANUEL HOUSE-COMM TRAINING  
Childrens & Education Services,Pupil Referral Units,Alt Educn(Incl Yr 11 Project)           ,Supplies & Services           ,Services                      ,DF07,Bought in Teaching Services,07/02/2013,796,"1,032.00",R,HA TUTORS LTD                 
Childrens & Education Services,Pupil Referral Units,Alt Educn(Incl Yr 11 Project)           ,Supplies & Services           ,Services                      ,DF07,Bought in Teaching Services,05/02/2013,797,"4,420.00",R,JUSTLEARN LTD                 
Childrens & Education Services,Pupil Referral Units,Alt Educn(Incl Yr 11 Project)           ,Supplies & Services           ,Services                      ,DF07,Bought in Teaching Services,11/01/2013,798,"1,300.00",R,SUTTON & DISTRICT TRAINING LTD
Childrens & Education Services,Pupil Referral Units,Alt Educn(Incl Yr 11 Project)           ,Supplies & Services           ,Services                      ,DF07,Bought in Teaching Services,11/01/2013,799,520,R,SUTTON & DISTRICT TRAINING LTD
Childrens & Education Services,Pupil Referral Units,Alt Educn(Incl Yr 11 Project)           ,Supplies & Services           ,Services                      ,DF07,Bought in Teaching Services,10/01/2013,800,"16,194.00",R,IMMANUEL HOUSE-COMM TRAINING  
Childrens & Education Services,Facilitating School Improvemnt,New Arrivals                            ,Supplies & Services           ,Equip Furniture/Materials     ,DA58,Education Materials,31/01/2013,801,862.5,R,REDACTED
Childrens & Education Services,Facilitating School Improvemnt,Virtual Schools - Home Tutors           ,Employees                     ,Direct Employee Expenses      ,AA17,Agency Staff & Casual Paymts,30/11/2012,802,"1,419.75",R,REDACTED
Childrens & Education Services,Facilitating School Improvemnt,Virtual Schools - PEA's                 ,Supplies & Services           ,Expenses                      ,DH12,Young Peoples Expenses,11/01/2013,803,"2,106.00",R,THE LINK SECONDARY SCHOOL     
Childrens & Education Services,Facilitating School Improvemnt,Virtual Schools - PEA's                 ,Supplies & Services           ,Expenses                      ,DH12,Young Peoples Expenses,11/01/2013,804,"1,594.00",R,THE LINK SECONDARY SCHOOL     
Childrens & Education Services,Facilitating School Improvemnt,Virtual Schools - PEA's                 ,Supplies & Services           ,Expenses                      ,DH12,Young Peoples Expenses,07/02/2013,805,800,R,AIM HIGHER  LONDON SOUTH      
Childrens & Education Services,Facilitating School Improvemnt,Virtual Schools - PEA's                 ,Supplies & Services           ,Expenses                      ,DH12,Young Peoples Expenses,14/02/2013,806,750,R,WH SMITH PROMOTIONS LIMITED   
Childrens & Education Services,Pupil Referral Units,Smart Centre (Pupil Refer Unit          ,Employees                     ,Direct Employee Expenses      ,AA17,Agency Staff & Casual Paymts,30/09/2012,807,550,R,TRADEWIND RECRUITMENT         
Childrens & Education Services,Pupil Referral Units,Smart Centre (Pupil Refer Unit          ,Employees                     ,Direct Employee Expenses      ,AA17,Agency Staff & Casual Paymts,23/09/2012,808,"1,100.00",R,TRADEWIND RECRUITMENT         
Childrens & Education Services,Pupil Referral Units,Smart Centre (Pupil Refer Unit          ,Employees                     ,Direct Employee Expenses      ,AA17,Agency Staff & Casual Paymts,23/12/2012,809,550,R,TRADEWIND RECRUITMENT         
Childrens & Education Services,Pupil Referral Units,Smart Centre (Pupil Refer Unit          ,Employees                     ,Direct Employee Expenses      ,AA17,Agency Staff & Casual Paymts,09/12/2012,810,728,R,TRADEWIND RECRUITMENT         
Childrens & Education Services,Pupil Referral Units,Smart Centre (Pupil Refer Unit          ,Employees                     ,Direct Employee Expenses      ,AA17,Agency Staff & Casual Paymts,07/10/2012,811,735,R,TRADEWIND RECRUITMENT         
Childrens & Education Services,Pupil Referral Units,Smart Centre (Pupil Refer Unit          ,Employees                     ,Direct Employee Expenses      ,AA17,Agency Staff & Casual Paymts,27/01/2013,812,930,R,TRADEWIND RECRUITMENT         
Childrens & Education Services,Pupil Referral Units,Smart Centre (Pupil Refer Unit          ,Employees                     ,Direct Employee Expenses      ,AA17,Agency Staff & Casual Paymts,03/02/2013,813,550,R,TRADEWIND RECRUITMENT         
Childrens & Education Services,Pupil Referral Units,Smart Centre (Pupil Refer Unit          ,Employees                     ,Direct Employee Expenses      ,AA17,Agency Staff & Casual Paymts,10/02/2013,814,930,R,TRADEWIND RECRUITMENT         
Childrens & Education Services,Pupil Referral Units,Smart Centre (Pupil Refer Unit          ,Employees                     ,Direct Employee Expenses      ,AA17,Agency Staff & Casual Paymts,28/01/2013,815,550,R,REDACTED
Childrens & Education Services,Pupil Referral Units,Smart Centre (Pupil Refer Unit          ,Employees                     ,Direct Employee Expenses      ,AA17,Agency Staff & Casual Paymts,28/01/2013,816,700,R,REDACTED
Childrens & Education Services,Pupil Referral Units,Smart Centre (Pupil Refer Unit          ,Employees                     ,Direct Employee Expenses      ,AA17,Agency Staff & Casual Paymts,11/02/2013,817,550,R,REDACTED
Childrens & Education Services,Pupil Referral Units,Smart Centre (Pupil Refer Unit          ,Employees                     ,Direct Employee Expenses      ,AA17,Agency Staff & Casual Paymts,04/02/2013,818,700,R,REDACTED
Childrens & Education Services,Pupil Referral Units,Smart Centre (Pupil Refer Unit          ,Employees                     ,Direct Employee Expenses      ,AA17,Agency Staff & Casual Paymts,11/02/2013,819,700,R,REDACTED
Childrens & Education Services,Pupil Referral Units,Smart Centre (Pupil Refer Unit          ,Employees                     ,Direct Employee Expenses      ,AA74,Public Duties (AP),21/11/2012,820,"1,042.50",R,EDUCATION PLUS                
Childrens & Education Services,Pupil Referral Units,Smart Centre (Pupil Refer Unit          ,Premises Related Expenditure  ,Cleaning and Domestic Supplies,BH03,Cleaning Services,25/10/2012,821,"1,500.20",R,JULIUS RUTHERFOORD & CO LTD   
Childrens & Education Services,Pupil Referral Units,Smart Centre (Pupil Refer Unit          ,Premises Related Expenditure  ,Cleaning and Domestic Supplies,BH03,Cleaning Services,25/01/2013,822,"1,500.20",R,JULIUS RUTHERFOORD & CO LTD   
Childrens & Education Services,Pupil Referral Units,Smart Centre (Pupil Refer Unit          ,Supplies & Services           ,Services                      ,DF07,Bought in Teaching Services,15/02/2013,823,500,R,REDACTED
Childrens & Education Services,Pupil Referral Units,Smart Centre (Pupil Refer Unit          ,Third Party Payments          ,Other Local Authorities       ,EB55,Placements,30/10/2012,824,"13,650.00",R,SOUTH THAMES COLLEGE          
Childrens & Education Services,Support for SEN Pupils,Non-Delegated Statements                ,Supplies & Services           ,Services                      ,DF09,Miscellaneous Fees,09/01/2013,825,"4,414.62",R,PERSEID SCHOOL                
Childrens & Education Services,Support for SEN Pupils,Non-Delegated Statements                ,Supplies & Services           ,Services                      ,DF09,Miscellaneous Fees,21/12/2012,826,"5,000.00",R,ST DOMINIC'S SCHOOL           
Childrens & Education Services,Support for SEN Pupils,Non-Delegated Statements                ,Supplies & Services           ,Services                      ,DF09,Miscellaneous Fees,13/02/2013,827,"5,094.00",R,CLIFTON HILL SCHOOL           
Childrens & Education Services,Support for SEN Pupils,Non-Delegated Statements                ,Third Party Payments          ,Other Local Authorities       ,EB55,Placements,09/01/2013,828,"4,265.38",R,BRAESIDE DAY NURSERY          
Childrens & Education Services,Support for SEN Pupils,Non-Delegated Statements                ,Third Party Payments          ,Other Local Authorities       ,EB55,Placements,18/01/2013,829,"1,971.54",R,BOW LANE PRE-SCHOOL           
Childrens & Education Services,Support for SEN Pupils,Non-Delegated Statements                ,Third Party Payments          ,Other Establishments          ,EG01,Alternative SEN Provision,31/01/2013,830,627,R,HA TUTORS LTD                 
Childrens & Education Services,Support for SEN Pupils,Non-Delegated Statements                ,Third Party Payments          ,Other Establishments          ,EG01,Alternative SEN Provision,24/01/2013,831,"1,079.40",R,PROSPECT EDUC (TECH)TRUST LTD 
Childrens & Education Services,Support for SEN Pupils,Non-Delegated Statements                ,Third Party Payments          ,Other Establishments          ,EG01,Alternative SEN Provision,30/01/2013,832,925,R,SMART TEACHERS                
Childrens & Education Services,Support for SEN Pupils,Non-Delegated Statements                ,Third Party Payments          ,Other Establishments          ,EG01,Alternative SEN Provision,24/01/2013,833,740,R,SMART TEACHERS                
Childrens & Education Services,Support for SEN Pupils,Non-Delegated Statements                ,Third Party Payments          ,Other Establishments          ,EG01,Alternative SEN Provision,09/02/2013,834,"1,943.60",R,REDACTED
Childrens & Education Services,Support for SEN Pupils,Non-Delegated Statements                ,Third Party Payments          ,Other Establishments          ,EG01,Alternative SEN Provision,31/01/2013,835,925,R,SMART TEACHERS                
Childrens & Education Services,Support for SEN Pupils,Non-Delegated Statements                ,Third Party Payments          ,Other Establishments          ,EG01,Alternative SEN Provision,14/02/2013,836,925,R,SMART TEACHERS                
Childrens & Education Services,Support for SEN Pupils,Non-Delegated Statements                ,Third Party Payments          ,Other Establishments          ,EG50,Ind Day Schs Payments,14/01/2013,837,"7,553.34",R,EAGLE HOUSE SCHOOL (SUTTON)   
Childrens & Education Services,Support for SEN Pupils,Non-Delegated Statements                ,Third Party Payments          ,Other Establishments          ,EG50,Ind Day Schs Payments,14/01/2013,838,"16,512.67",R,EAGLE HOUSE SCHOOL (SUTTON)   
Childrens & Education Services,Support for SEN Pupils,Non-Delegated Statements                ,Third Party Payments          ,Other Establishments          ,EG50,Ind Day Schs Payments,14/01/2013,839,"16,512.67",R,EAGLE HOUSE SCHOOL (SUTTON)   
Childrens & Education Services,Support for SEN Pupils,Non-Delegated Statements                ,Third Party Payments          ,Other Establishments          ,EG50,Ind Day Schs Payments,14/01/2013,840,"15,766.34",R,EAGLE HOUSE SCHOOL            
Childrens & Education Services,Support for SEN Pupils,Non-Delegated Statements                ,Third Party Payments          ,Other Establishments          ,EG50,Ind Day Schs Payments,08/01/2013,841,"6,031.07",R,BLOSSOM LOWER SCHOOL LTD      
Childrens & Education Services,Support for SEN Pupils,Non-Delegated Statements                ,Third Party Payments          ,Other Establishments          ,EG50,Ind Day Schs Payments,14/01/2013,842,"16,512.67",R,EAGLE HOUSE SCHOOL (SUTTON)   
Childrens & Education Services,Support for SEN Pupils,Non-Delegated Statements                ,Third Party Payments          ,Other Establishments          ,EG50,Ind Day Schs Payments,14/01/2013,843,"12,016.67",R,EAGLE HOUSE SCHOOL (SUTTON)   
Childrens & Education Services,Support for SEN Pupils,Non-Delegated Statements                ,Third Party Payments          ,Other Establishments          ,EG50,Ind Day Schs Payments,18/12/2012,844,"29,712.67",R,KISIMUL SCHOOL                
Childrens & Education Services,Support for SEN Pupils,Non-Delegated Statements                ,Third Party Payments          ,Other Establishments          ,EG50,Ind Day Schs Payments,07/12/2012,845,"30,080.00",R,PAPILLON HOUSE SCHOOL         
Childrens & Education Services,Support for SEN Pupils,Non-Delegated Statements                ,Third Party Payments          ,Other Establishments          ,EG50,Ind Day Schs Payments,21/12/2012,846,"9,902.00",R,ST DOMINIC'S SCHOOL           
Childrens & Education Services,Support for SEN Pupils,Non-Delegated Statements                ,Third Party Payments          ,Other Establishments          ,EG50,Ind Day Schs Payments,21/12/2012,847,"9,902.00",R,ST DOMINIC'S SCHOOL           
Childrens & Education Services,Support for SEN Pupils,Non-Delegated Statements                ,Third Party Payments          ,Other Establishments          ,EG50,Ind Day Schs Payments,21/12/2012,848,"9,902.00",R,ST DOMINIC'S SCHOOL           
Childrens & Education Services,Support for SEN Pupils,Non-Delegated Statements                ,Third Party Payments          ,Other Establishments          ,EG50,Ind Day Schs Payments,21/12/2012,849,"9,902.00",R,ST DOMINIC'S SCHOOL           
Childrens & Education Services,Support for SEN Pupils,Non-Delegated Statements                ,Third Party Payments          ,Other Establishments          ,EG50,Ind Day Schs Payments,15/02/2013,850,"18,372.00",R,PHILPOTS MANOR SCHOOL         
Childrens & Education Services,Behavioural Support,Language & Learning Service             ,Employees                     ,Direct Employee Expenses      ,AA17,Agency Staff & Casual Paymts,05/02/2013,851,"1,050.00",R,REDACTED
Childrens & Education Services,Behavioural Support,Sensory Team                            ,Supplies & Services           ,Equip Furniture/Materials     ,DA09,Equip-Purchases,20/12/2012,852,"4,853.00",R,PHONAK UK                     
Childrens & Education Services,Behavioural Support,Sensory Team                            ,Supplies & Services           ,Services                      ,DF73,Advocacy & Mentoring Service,15/01/2013,853,"2,151.80",R,MERTON VISION                 
Childrens & Education Services,Admissions & Planning Sch Prov,Retained Schools Budgets                ,Supplies & Services           ,Prntng Stnry Gen Off Exp      ,DE22,Marketing,31/01/2013,854,"2,450.00",R,GREBOT DONNELLY  ASSOCIAT. LTD
Childrens & Education Services,Del. Ind Secondary Sch Budgets,Schools Delegated Budget                ,Supplies & Services           ,Services                      ,DF03,Consultants,01/02/2013,855,"2,800.00",R,END USER LTD                  
Childrens & Education Services,Del. Ind Secondary Sch Budgets,Schools Delegated Budget                ,Supplies & Services           ,Services                      ,DF11,Counsel's fees,30/11/2012,856,"19,032.50",R,WARD HADAWAY                  
Childrens & Education Services,Facilitating School Improvemnt,SSQ CORE OFFER (DSG)                    ,Supplies & Services           ,Services                      ,DF03,Consultants,31/01/2013,857,"2,180.00",R,REDACTED
Childrens & Education Services,Facilitating School Improvemnt,SSQ CORE OFFER (DSG)                    ,Supplies & Services           ,Services                      ,DF03,Consultants,12/02/2013,858,"15,000.00",R,LONDON BOROUGH OF SUTTON      
Childrens & Education Services,Facilitating School Improvemnt,SSQ CORE OFFER (DSG)                    ,Supplies & Services           ,Expenses                      ,DH02,Conferences,07/01/2013,859,558.4,R,CAPITA BUSINESS SERVICES LTD  
Childrens & Education Services,Nursery schools,EARLY YEARS FUNDING                     ,Premises Related Expenditure  ,RepairsAlterations&MtceOfBldgs,BA79,Security of Premises,21/01/2013,860,"2,256.00",R,ACE CONSULT UK LTD            
Childrens & Education Services,Nursery schools,EARLY YEARS FUNDING                     ,Premises Related Expenditure  ,RepairsAlterations&MtceOfBldgs,BA79,Security of Premises,14/02/2013,861,"2,144.00",R,ACE CONSULT UK LTD            
Childrens & Education Services,Support for SEN Pupils,ART SEN Residential (DSG)               ,Third Party Payments          ,Other Establishments          ,EG51,Ind Resid Schs Payments,05/12/2012,862,943,R,MOOR HOUSE SCHOOL             
Childrens & Education Services,Support for SEN Pupils,ART SEN Residential (DSG)               ,Third Party Payments          ,Other Establishments          ,EG51,Ind Resid Schs Payments,05/12/2012,863,"15,475.00",R,MOOR HOUSE SCHOOL             
Childrens & Education Services,Support for SEN Pupils,ART SEN Residential (DSG)               ,Third Party Payments          ,Other Establishments          ,EG51,Ind Resid Schs Payments,20/12/2012,864,"18,614.00",R,ST MARY'S WRESTWOOD CHILDRENS 
Childrens & Education Services,Support for SEN Pupils,ART SEN Residential (DSG)               ,Third Party Payments          ,Other Establishments          ,EG51,Ind Resid Schs Payments,20/12/2012,865,"15,499.00",R,ST MARY'S WRESTWOOD CHILDRENS 
Childrens & Education Services,Support for SEN Pupils,ART SEN Residential (DSG)               ,Third Party Payments          ,Other Establishments          ,EG51,Ind Resid Schs Payments,21/12/2012,866,"18,278.00",R,ST MARY'S WRESTWOOD CHILDRENS 
Childrens & Education Services,Support for SEN Pupils,ART SEN Residential (DSG)               ,Third Party Payments          ,Other Establishments          ,EG51,Ind Resid Schs Payments,21/12/2012,867,"22,445.83",R,PRIORS COURT FOUNDATION       
Cultural Env Reg&Plan Services,Library DoS not split,Libraries Service-Civic Centre          ,Employees                     ,Indirect Employee Expenses    ,AB57,External Training Costs,29/01/2013,868,"1,400.00",R,CROFT MANAGEMENT CENTRE       
Cultural Env Reg&Plan Services,Library DoS not split,Libraries Service-Civic Centre          ,Premises Related Expenditure  ,RepairsAlterations&MtceOfBldgs,BA79,Security of Premises,01/02/2013,869,"7,055.90",R,SIGHT & SOUND                 
Cultural Env Reg&Plan Services,Library DoS not split,Libraries Service-Civic Centre          ,Supplies & Services           ,Equip Furniture/Materials     ,DA09,Equip-Purchases,19/02/2013,870,648,R,DMA SIGNS LTD                 
Cultural Env Reg&Plan Services,Library DoS not split,Libraries Service-Civic Centre          ,Supplies & Services           ,Services                      ,DF30,Activities Programme,13/02/2013,871,825.5,R,CIPFA SOCIAL RESEARCH         
Cultural Env Reg&Plan Services,Library DoS not split,Libraries Service-Civic Centre          ,Supplies & Services           ,Services                      ,DF32,Customer Survey,13/02/2013,872,"1,512.56",R,CIPFA SOCIAL RESEARCH         
Cultural Env Reg&Plan Services,Library DoS not split,Libraries Service-Civic Centre          ,Supplies & Services           ,Services                      ,DF32,Customer Survey,13/02/2013,873,635,R,CIPFA SOCIAL RESEARCH         
Cultural Env Reg&Plan Services,Library DoS not split,Libraries Service-Civic Centre          ,Supplies & Services           ,Comms and Computing           ,DG56,SRF Work,28/12/2012,874,800,R,SCALABLE COMMUNICATIONS PLC   
Cultural Env Reg&Plan Services,Library DoS not split,Schools Library Service                 ,Supplies & Services           ,Equip Furniture/Materials     ,DA83,Projects,21/01/2013,875,570,R,CURRIE BUILDING SERVICES      
Cultural Env Reg&Plan Services,Library DoS not split,Mitcham Library                         ,Third Party Payments          ,Private Contractors           ,EH10,Contract Payments,25/01/2013,876,"1,541.46",R,JULIUS RUTHERFOORD & CO LTD   
Cultural Env Reg&Plan Services,Library DoS not split,Pollards Hill Library                   ,Third Party Payments          ,Private Contractors           ,EH01,Miscellaneous Contrct Services,25/01/2013,877,"1,206.70",R,JULIUS RUTHERFOORD & CO LTD   
Cultural Env Reg&Plan Services,Library DoS not split,Media Fund                              ,Supplies & Services           ,Equip Furniture/Materials     ,DA60,Lending,30/01/2013,878,798.73,R,BERTRAM LIBRARY SERVICES      
Cultural Env Reg&Plan Services,Library DoS not split,Media Fund                              ,Supplies & Services           ,Equip Furniture/Materials     ,DA60,Lending,31/01/2013,879,521.56,R,BERTRAM LIBRARY SERVICES      
Cultural Env Reg&Plan Services,Library DoS not split,Media Fund                              ,Supplies & Services           ,Equip Furniture/Materials     ,DA60,Lending,15/02/2013,880,670.7,R,BERTRAM LIBRARY SERVICES      
Cultural Env Reg&Plan Services,Library DoS not split,Media Fund                              ,Supplies & Services           ,Equip Furniture/Materials     ,DA60,Lending,18/02/2013,881,506.62,R,BERTRAM LIBRARY SERVICES      
Cultural Env Reg&Plan Services,Library DoS not split,Media Fund                              ,Supplies & Services           ,Equip Furniture/Materials     ,DA62,Ethnic Books,22/01/2013,882,777.23,R,REDACTED
Cultural Env Reg&Plan Services,Library DoS not split,Media Fund                              ,Supplies & Services           ,Equip Furniture/Materials     ,DA62,Ethnic Books,15/02/2013,883,843.11,R,REDACTED
Cultural Env Reg&Plan Services,Library DoS not split,Media Fund                              ,Supplies & Services           ,Equip Furniture/Materials     ,DA83,Projects,01/02/2013,884,"8,250.00",R,LONDON BOROUGH OF HAVERING    
Cultural Env Reg&Plan Services,Library DoS not split,Media Fund                              ,Supplies & Services           ,Equip Furniture/Materials     ,DA89,Videos,22/01/2013,885,527.17,R,BERTRAM LIBRARY SERVICES      
Cultural Env Reg&Plan Services,Library DoS not split,Media Fund                              ,Supplies & Services           ,Equip Furniture/Materials     ,DA89,Videos,31/01/2013,886,527.17,R,BERTRAM LIBRARY SERVICES      
Cultural Env Reg&Plan Services,Library DoS not split,Media Fund                              ,Supplies & Services           ,Equip Furniture/Materials     ,DA89,Videos,06/02/2013,887,658.34,R,BERTRAM LIBRARY SERVICES      
Cultural Env Reg&Plan Services,Library DoS not split,Media Fund                              ,Supplies & Services           ,Equip Furniture/Materials     ,DA89,Videos,20/02/2013,888,535.47,R,BERTRAM LIBRARY SERVICES      
Cultural Env Reg&Plan Services,Library DoS not split,Media Fund                              ,Supplies & Services           ,Prntng Stnry Gen Off Exp      ,DE51,Newspapers and Magazines,04/02/2013,889,"1,570.03",R,DLT MEDIA (UK) LTD            
Cultural Env Reg&Plan Services,Library DoS not split,Media Fund                              ,Supplies & Services           ,Comms and Computing           ,DG04,Postage - General,31/01/2013,890,"1,227.20",R,EXCEL GROUP SERVICES          
